Workbook

Sheet QRY - ExportPupilNumbersbyYearG (hidden)
A1: CenRefs | B1: CENSUSYear | C1: Term | D1: FullRef | E1: Area | F1: Subarea | G1: GeoLocalityName | H1: Tier | I1: PhaseType | J1: Schooltype | K1: SchoolName | L1: SchoolControlType | M1: Denominationtext | N1: LocalAuthority | O1: State | P1: Closed | Q1: Academy Conversion Date | R1: E1 | S1: E2 | T1: N1 | U1: N2 | V1: R | W1: 1 | X1: 2 | Y1: 3 | Z1: 4 | AA1: 5 | AB1: 6 | AC1: 7 | AD1: 8 | AE1: 9 | AF1: 10 | AG1: 11 | AH1: 12 | AI1: 13 | AJ1: 14 | AK1: 15
A2: 62 | B2: 2021 | C2: Spring | D2: 62 | E2: Windsor | F2: Windsor South | G2: Alexander | H2: Three Tier | I2: Primary | J2: First | K2: Alexander First School | L2: Community | M2: None | N2: 868 | O2: State | P2: FALSE | T2: 11 | U2: 11 | V2: 28 | W2: 20 | X2: 13 | Y2: 20 | Z2: 15
A3: 62 | B3: 2021 | C3: Spring | D3: 62 | E3: Maidenhead | F3: Central Maidenhead | G3: Boyn Hill | H3: Two Tier | I3: Primary | J3: Junior | K3: All Saints Church of England Junior School | L3: Voluntary Controlled | M3: Church of England | N3: 868 | O3: State | P3: FALSE | Y3: 66 | Z3: 64 | AA3: 63 | AB3: 78
A4: 62 | B4: 2021 | C4: Spring | D4: 62 | E4: Maidenhead | F4: Central Maidenhead | G4: Tittle Row | H4: Two Tier | I4: Secondary | J4: Secondary | K4: Altwood Church of England School | L4: Academy | M4: Church of England | N4: 868 | O4: State | P4: FALSE | Q4: 2012-09-01 | AC4: 127 | AD4: 91 | AE4: 58 | AF4: 44 | AG4: 53 | AH4: 55 | AI4: 50 | AJ4: 12
A5: 62 | B5: 2021 | C5: Spring | D5: 62 | E5: Maidenhead | F5: North West Maidenhead | G5: St Mark's | H5: Two Tier | I5: Primary | J5: Infants | K5: Alwyn Infant School | L5: Community | M5: None | N5: 868 | O5: State | P5: FALSE | V5: 82 | W5: 81 | X5: 85
A6: 62 | B6: 2021 | C6: Spring | D6: 62 | E6: Maidenhead | F6: Bisham and Cookham | G6: Bisham | H6: Two Tier | I6: Primary | J6: JMI | K6: Bisham C of E Academy | L6: Academy | M6: Church of England | N6: 868 | O6: State | P6: FALSE | Q6: 2017-09-01 | V6: 7 | W6: 10 | X6: 10 | Y6: 8 | Z6: 14 | AA6: 7 | AB6: 9
A7: 62 | B7: 2021 | C7: Spring | D7: 62 | E7: Maidenhead | F7: Central Maidenhead | G7: Boyn Hill | H7: Two Tier | I7: Primary | J7: Infants | K7: Boyne Hill C of E Infant and Nursery School | L7: Voluntary Controlled | M7: Church of England | N7: 868 | O7: State | P7: FALSE | T7: 13 | U7: 44 | V7: 60 | W7: 57 | X7: 58
A8: 62 | B8: 2021 | C8: Spring | D8: 62 | E8: Maidenhead | F8: South East Maidenhead | G8: Bray | H8: Two Tier | I8: Primary | J8: JMI | K8: Braywick Court School | L8: Free School | M8: None | N8: 868 | O8: State | P8: FALSE | U8: 35 | V8: 30 | W8: 30 | X8: 30 | Y8: 30 | Z8: 31 | AA8: 30 | AB8: 30
A9: 62 | B9: 2021 | C9: Spring | D9: 62 | E9: Windsor | F9: Windsor Villages | G9: Fifield | H9: Three Tier | I9: Primary | J9: First | K9: Braywood C of E First School | L9: Voluntary Controlled | M9: Church of England | N9: 868 | O9: State | P9: FALSE | V9: 29 | W9: 30 | X9: 26 | Y9: 21 | Z9: 22
A10: 62 | B10: 2021 | C10: Spring | D10: 62 | E10: Maidenhead | F10: Maidenhead Villages | G10: Burchett's Green | H10: Two Tier | I10: Primary | J10: Infants | K10: Burchetts Green CE Infant School | L10: Academy | M10: Church of England | N10: 868 | O10: State | P10: FALSE | Q10: 2014-12-01 | V10: 22 | W10: 24 | X10: 24
A11: 62 | B11: 2021 | C11: Spring | D11: 62 | E11: Ascot | F11: Ascot | G11: South Sunningdale | H11: Two Tier | I11: Secondary | J11: Secondary | K11: Charters School | L11: Academy | M11: None | N11: 868 | O11: State | P11: FALSE | Q11: 2012-10-01 | AC11: 270 | AD11: 304 | AE11: 270 | AF11: 274 | AG11: 240 | AH11: 197 | AI11: 181
A12: 62 | B12: 2021 | C12: Spring | D12: 62 | E12: Ascot | F12: Ascot | G12: Cheapside | H12: Two Tier | I12: Primary | J12: JMI | K12: Cheapside CE Primary School | L12: Voluntary Aided | M12: Church of England | N12: 868 | O12: State | P12: FALSE | V12: 29 | W12: 30 | X12: 29 | Y12: 28 | Z12: 29 | AA12: 30 | AB12: 30
A13: 62 | B13: 2021 | C13: Spring | D13: 62 | E13: Datchet & Wraysbury | F13: Datchet and Wraysbury | G13: Datchet East | H13: Two Tier | I13: Secondary | J13: Secondary | K13: Churchmead Church of England School | L13: Voluntary Aided | M13: Church of England | N13: 868 | O13: State | P13: FALSE | AC13: 119 | AD13: 90 | AE13: 97 | AF13: 57 | AG13: 53
A14: 62 | B14: 2021 | C14: Spring | D14: 62 | E14: Windsor | F14: Windsor South | G14: New Town | H14: Three Tier | I14: Primary | J14: First | K14: Clewer Green CE School | L14: Academy | M14: Church of England | N14: 868 | O14: State | P14: FALSE | Q14: 2020-04-01 | V14: 59 | W14: 53 | X14: 47 | Y14: 60 | Z14: 55
A15: 62 | B15: 2021 | C15: Spring | D15: 62 | E15: Maidenhead | F15: Bisham and Cookham | G15: Cookham Dean South | H15: Two Tier | I15: Primary | J15: JMI | K15: Cookham Dean CE Primary School | L15: Voluntary Aided | M15: Church of England | N15: 868 | O15: State | P15: FALSE | V15: 27 | W15: 27 | X15: 28 | Y15: 27 | Z15: 25 | AA15: 28 | AB15: 27
A16: 62 | B16: 2021 | C16: Spring | D16: 62 | E16: Maidenhead | F16: Bisham and Cookham | G16: Cookham | H16: NA | I16: Early Years | J16: Nursery School | K16: Cookham Nursery School | L16: Community | M16: None | N16: 868 | O16: State | P16: FALSE | T16: 14 | U16: 58
A17: 62 | B17: 2021 | C17: Spring | D17: 62 | E17: Maidenhead | F17: Bisham and Cookham | G17: Cookham Rise | H17: Two Tier | I17: Primary | J17: JMI | K17: Cookham Rise Primary School | L17: Community | M17: None | N17: 868 | O17: State | P17: FALSE | V17: 30 | W17: 30 | X17: 29 | Y17: 30 | Z17: 31 | AA17: 30 | AB17: 29
A18: 62 | B18: 2021 | C18: Spring | D18: 62 | E18: Maidenhead | F18: North West Maidenhead | G18: St Mark's | H18: Two Tier | I18: Primary | J18: Junior | K18: Courthouse Junior School | L18: Community | M18: None | N18: 868 | O18: State | P18: FALSE | Y18: 85 | Z18: 103 | AA18: 78 | AB18: 97
A19: 62 | B19: 2021 | C19: Spring | D19: 62 | E19: Maidenhead | F19: South West Maidenhead | G19: Lowbrook | H19: Two Tier | I19: Secondary | J19: Secondary | K19: Cox Green School | L19: Academy | M19: None | N19: 868 | O19: State | P19: FALSE | Q19: 2011-12-01 | AC19: 208 | AD19: 195 | AE19: 204 | AF19: 191 | AG19: 183 | AH19: 72 | AI19: 80
A20: 62 | B20: 2021 | C20: Spring | D20: 62 | E20: Datchet & Wraysbury | F20: Datchet and Wraysbury | G20: Datchet East | H20: Two Tier | I20: Primary | J20: JMI | K20: Datchet St Mary's C of E Primary Academy | L20: Academy | M20: Church of England | N20: 868 | O20: State | P20: FALSE | Q20: 2012-01-01 | T20: 4 | U20: 22 | V20: 28 | W20: 31 | X20: 30 | Y20: 31 | Z20: 28 | AA20: 30 | AB20: 44
A21: 62 | B21: 2021 | C21: Spring | D21: 62 | E21: Windsor | F21: Windsor North | G21: Dedworth | H21: Three Tier | I21: Primary | J21: First | K21: Dedworth Green First School | L21: Academy | M21: None | N21: 868 | O21: State | P21: FALSE | Q21: 2016-05-01 | T21: 11 | U21: 6 | V21: 25 | W21: 26 | X21: 29 | Y21: 30 | Z21: 29
A22: 62 | B22: 2021 | C22: Spring | D22: 62 | E22: Windsor | F22: Windsor North | G22: Dedworth | H22: Three Tier | I22: Secondary | J22: Middle | K22: Dedworth Middle School | L22: Academy | M22: None | N22: 868 | O22: State | P22: FALSE | Q22: 2016-05-01 | AA22: 122 | AB22: 135 | AC22: 112 | AD22: 125
A23: 62 | B23: 2021 | C23: Spring | D23: 62 | E23: Maidenhead | F23: Central Maidenhead | G23: Larchfield East | H23: Two Tier | I23: Secondary | J23: Secondary | K23: Desborough College | L23: Academy | M23: None | N23: 868 | O23: State | P23: FALSE | Q23: 2012-10-01 | AC23: 140 | AD23: 179 | AE23: 179 | AF23: 182 | AG23: 153 | AH23: 59 | AI23: 36
A24: 62 | B24: 2021 | C24: Spring | D24: 62 | E24: Windsor | F24: Eton | G24: Eton | H24: Three Tier | I24: Primary | J24: First | K24: Eton Porny C of E First School | L24: Academy | M24: Church of England | N24: 868 | O24: State | P24: FALSE | Q24: 2016-02-01 | V24: 30 | W24: 30 | X24: 30 | Y24: 24 | Z24: 22
A25: 62 | B25: 2021 | C25: Spring | D25: 62 | E25: Windsor | F25: Eton | G25: Eton Wick | H25: Three Tier | I25: Primary | J25: First | K25: Eton Wick C of E First School | L25: Voluntary Controlled | M25: Church of England | N25: 868 | O25: State | P25: FALSE | T25: 9 | U25: 7 | V25: 15 | W25: 12 | X25: 15 | Y25: 25 | Z25: 23
A26: 62 | B26: 2021 | C26: Spring | D26: 62 | E26: Maidenhead | F26: South East Maidenhead | G26: Central | H26: NA | I26: All-through | J26: All Years | K26: Forest Bridge School | L26: Free School | M26: None | N26: 868 | O26: State | P26: FALSE | W26: 4 | X26: 10 | Y26: 6 | Z26: 6 | AA26: 7 | AB26: 9 | AC26: 14 | AD26: 17 | AE26: 4 | AF26: 4 | AG26: 2 | AH26: 1
A27: 62 | B27: 2021 | C27: Spring | D27: 62 | E27: Maidenhead | F27: North West Maidenhead | G27: Furze Platt | H27: Two Tier | I27: Primary | J27: Infants | K27: Furze Platt Infant School | L27: Community | M27: None | N27: 868 | O27: State | P27: FALSE | V27: 88 | W27: 90 | X27: 89
A28: 62 | B28: 2021 | C28: Spring | D28: 62 | E28: Maidenhead | F28: North West Maidenhead | G28: Furze Platt | H28: Two Tier | I28: Primary | J28: Junior | K28: Furze Platt Junior School | L28: Community | M28: None | N28: 868 | O28: State | P28: FALSE | Y28: 89 | Z28: 91 | AA28: 90 | AB28: 90
A29: 62 | B29: 2021 | C29: Spring | D29: 62 | E29: Maidenhead | F29: North West Maidenhead | G29: Furze Platt | H29: Two Tier | I29: Secondary | J29: Secondary | K29: Furze Platt Senior School | L29: Academy | M29: None | N29: 868 | O29: State | P29: FALSE | Q29: 2011-12-01 | AC29: 257 | AD29: 233 | AE29: 220 | AF29: 202 | AG29: 202 | AH29: 144 | AI29: 149
A30: 62 | B30: 2021 | C30: Spring | D30: 62 | E30: Windsor | F30: Windsor South | G30: Hilltop | H30: Three Tier | I30: Primary | J30: First | K30: Hilltop First School | L30: Community | M30: None | N30: 868 | O30: State | P30: FALSE | T30: 4 | U30: 24 | V30: 43 | W30: 44 | X30: 43 | Y30: 42 | Z30: 44
A31: 62 | B31: 2021 | C31: Spring | D31: 62 | E31: Maidenhead | F31: Bisham and Cookham | G31: Cookham | H31: Two Tier | I31: Primary | J31: JMI | K31: Holy Trinity C of E Primary School, Cookham | L31: Voluntary Controlled | M31: Church of England | N31: 868 | O31: State | P31: FALSE | V31: 30 | W31: 30 | X31: 29 | Y31: 30 | Z31: 30 | AA31: 26 | AB31: 30
A32: 62 | B32: 2021 | C32: Spring | D32: 62 | E32: Ascot | F32: Ascot | G32: North Sunningdale | H32: Two Tier | I32: Primary | J32: JMI | K32: Holy Trinity CE Primary School, Sunningdale | L32: Voluntary Aided | M32: Church of England | N32: 868 | O32: State | P32: FALSE | V32: 30 | W32: 30 | X32: 30 | Y32: 30 | Z32: 31 | AA32: 57 | AB32: 30
A33: 62 | B33: 2021 | C33: Spring | D33: 62 | E33: Maidenhead | F33: South East Maidenhead | G33: Holyport Rural | H33: Two Tier | I33: Primary | J33: JMI | K33: Holyport C of E Primary School & Foundation Unit | L33: Academy | M33: Church of England | N33: 868 | O33: State | P33: FALSE | Q33: 2016-06-01 | U33: 8 | V33: 30 | W33: 30 | X33: 24 | Y33: 36 | Z33: 43 | AA33: 47 | AB33: 44
A34: 62 | B34: 2021 | C34: Spring | D34: 62 | E34: Maidenhead | F34: South East Maidenhead | G34: Holyport Rural | H34: Two Tier | I34: Secondary | J34: Secondary | K34: Holyport College | L34: Free School | M34: None | N34: 868 | O34: State | P34: FALSE | AC34: 69 | AD34: 47 | AE34: 83 | AF34: 87 | AG34: 87 | AH34: 109 | AI34: 98
A35: 62 | B35: 2021 | C35: Spring | D35: 62 | E35: Windsor | F35: Windsor North | G35: Homer | H35: Three Tier | I35: Primary | J35: First | K35: Homer First School and Nursery | L35: Community | M35: None | N35: 868 | O35: State | P35: FALSE | T35: 7 | U35: 17 | V35: 40 | W35: 42 | X35: 37 | Y35: 45 | Z35: 58
A36: 62 | B36: 2021 | C36: Spring | D36: 62 | E36: Windsor | F36: Windsor Villages | G36: Old Windsor | H36: Three Tier | I36: Primary | J36: First | K36: Kings Court First School | L36: Community | M36: None | N36: 868 | O36: State | P36: FALSE | V36: 26 | W36: 37 | X36: 41 | Y36: 36 | Z36: 39
A37: 62 | B37: 2021 | C37: Spring | D37: 62 | E37: Maidenhead | F37: Maidenhead Villages | G37: Knowl Hill | H37: Two Tier | I37: Primary | J37: JMI | K37: Knowl Hill C of E Academy | L37: Academy | M37: Church of England | N37: 868 | O37: State | P37: FALSE | Q37: 2014-09-01 | V37: 18 | W37: 25 | X37: 24 | Y37: 23 | Z37: 26 | AA37: 20 | AB37: 16
A38: 62 | B38: 2021 | C38: Spring | D38: 62 | E38: Maidenhead | F38: Central Maidenhead | G38: Larchfield West | H38: Two Tier | I38: Primary | J38: JMI | K38: Larchfield Primary and Nursery School | L38: Community | M38: None | N38: 868 | O38: State | P38: FALSE | T38: 8 | U38: 21 | V38: 30 | W38: 27 | X38: 30 | Y38: 27 | Z38: 30 | AA38: 28 | AB38: 28
A39: 62 | B39: 2021 | C39: Spring | D39: 62 | E39: Maidenhead | F39: South West Maidenhead | G39: Lowbrook | H39: Two Tier | I39: Primary | J39: JMI | K39: Lowbrook Academy | L39: Academy | M39: None | N39: 868 | O39: State | P39: FALSE | Q39: 2011-04-01 | V39: 59 | W39: 30 | X39: 30 | Y39: 30 | Z39: 60 | AA39: 60 | AB39: 58
A40: 62 | B40: 2021 | C40: Spring | D40: 62 | E40: Maidenhead | F40: North East Maidenhead | G40: North Town | H40: NA | I40: Early Years | J40: Nursery School | K40: Maidenhead Nursery School | L40: Community | M40: None | N40: 868 | O40: State | P40: FALSE | R40: 1 | S40: 1 | T40: 18 | U40: 47
A41: 62 | B41: 2021 | C41: Spring | D41: 62 | E41: Maidenhead | F41: South West Maidenhead | G41: Lowbrook | H41: NA | I41: All-through | J41: All Years | K41: Manor Green School | L41: Community | M41: None | N41: 868 | O41: State | P41: FALSE | U41: 1 | V41: 8 | W41: 13 | X41: 12 | Y41: 14 | Z41: 19 | AA41: 20 | AB41: 30 | AC41: 21 | AD41: 31 | AE41: 17 | AF41: 26 | AG41: 26 | AH41: 18 | AI41: 10 | AJ41: 8
A42: 62 | B42: 2021 | C42: Spring | D42: 62 | E42: Maidenhead | F42: North West Maidenhead | G42: Highway | H42: Two Tier | I42: Secondary | J42: Secondary | K42: Newlands Girls' School | L42: Academy | M42: None | N42: 868 | O42: State | P42: FALSE | Q42: 2015-10-01 | AC42: 189 | AD42: 192 | AE42: 191 | AF42: 187 | AG42: 191 | AH42: 129 | AI42: 106
A43: 62 | B43: 2021 | C43: Spring | D43: 62 | E43: Windsor | F43: East Windsor | G43: Oakfield | H43: Three Tier | I43: Primary | J43: First | K43: Oakfield First School | L43: Community | M43: None | N43: 868 | O43: State | P43: FALSE | V43: 59 | W43: 56 | X43: 60 | Y43: 60 | Z43: 54
A44: 62 | B44: 2021 | C44: Spring | D44: 62 | E44: Maidenhead | F44: South East Maidenhead | G44: Fishery | H44: Two Tier | I44: Primary | J44: JMI | K44: Oldfield Primary School | L44: Community | M44: None | N44: 868 | O44: State | P44: FALSE | V44: 60 | W44: 60 | X44: 60 | Y44: 60 | Z44: 60 | AA44: 60 | AB44: 62
A45: 62 | B45: 2021 | C45: Spring | D45: 62 | E45: Maidenhead | F45: South East Maidenhead | G45: Central | H45: NA | I45: All-through | J45: All-through PRU | K45: RISE Alternative Learning Provision | L45: Community | M45: None | N45: 868 | O45: State | P45: FALSE | X45: 1 | Y45: 1 | AA45: 1 | AD45: 1 | AE45: 4 | AF45: 6 | AG45: 9
A46: 62 | B46: 2021 | C46: Spring | D46: 62 | E46: Maidenhead | F46: North East Maidenhead | G46: North Town | H46: Two Tier | I46: Primary | J46: JMI | K46: Riverside Primary School and Nursery | L46: Community | M46: None | N46: 868 | O46: State | P46: FALSE | T46: 21 | U46: 28 | V46: 54 | W46: 48 | X46: 46 | Y46: 57 | Z46: 58 | AA46: 47 | AB46: 43
A47: 62 | B47: 2021 | C47: Spring | D47: 62 | E47: Ascot | F47: Ascot | G47: South Ascot | H47: Two Tier | I47: Primary | J47: JMI | K47: South Ascot Village Primary School | L47: Community | M47: None | N47: 868 | O47: State | P47: FALSE | T47: 8 | U47: 1 | V47: 19 | W47: 19 | X47: 27 | Y47: 26 | Z47: 29 | AA47: 30 | AB47: 30
A48: 62 | B48: 2021 | C48: Spring | D48: 62 | E48: Maidenhead | F48: Central Maidenhead | G48: Tittle Row | H48: Two Tier | I48: Primary | J48: JMI | K48: St Edmund Campion Catholic Primary School | L48: Academy | M48: Roman Catholic | N48: 868 | O48: State | P48: FALSE | Q48: 2017-07-01 | V48: 60 | W48: 60 | X48: 60 | Y48: 60 | Z48: 60 | AA48: 60 | AB48: 61
A49: 62 | B49: 2021 | C49: Spring | D49: 62 | E49: Windsor | F49: Windsor North | G49: Clewer Village | H49: Three Tier | I49: Primary | J49: First | K49: St Edward's Catholic First School | L49: Voluntary Aided | M49: Roman Catholic | N49: 868 | O49: State | P49: FALSE | V49: 60 | W49: 56 | X49: 61 | Y49: 58 | Z49: 60
A50: 62 | B50: 2021 | C50: Spring | D50: 62 | E50: Windsor | F50: Windsor North | G50: Clewer Village | H50: Three Tier | I50: Secondary | J50: Middle | K50: St Edward's Royal Free Ecumenical Middle School | L50: Voluntary Aided | M50: Ecumenical | N50: 868 | O50: State | P50: FALSE | AA50: 120 | AB50: 120 | AC50: 120 | AD50: 119
A51: 62 | B51: 2021 | C51: Spring | D51: 62 | E51: Ascot | F51: Ascot | G51: South Ascot | H51: Two Tier | I51: Primary | J51: JMI | K51: St Francis Catholic Primary School | L51: Academy | M51: Roman Catholic | N51: 868 | O51: State | P51: FALSE | Q51: 2015-09-01 | V51: 30 | W51: 30 | X51: 30 | Y51: 30 | Z51: 30 | AA51: 30 | AB51: 29
A52: 62 | B52: 2021 | C52: Spring | D52: 62 | E52: Maidenhead | F52: North East Maidenhead | G52: St Luke's | H52: Two Tier | I52: Primary | J52: JMI | K52: St Luke's Church of England Primary School | L52: Academy | M52: Church of England | N52: 868 | O52: State | P52: FALSE | Q52: 2014-12-01 | T52: 9 | U52: 24 | V52: 44 | W52: 45 | X52: 45 | Y52: 41 | Z52: 37 | AA52: 39 | AB52: 37
A53: 62 | B53: 2021 | C53: Spring | D53: 62 | E53: Maidenhead | F53: North East Maidenhead | G53: St Luke's | H53: Two Tier | I53: Primary | J53: JMI | K53: St Mary's Catholic Primary School | L53: Academy | M53: Roman Catholic | N53: 868 | O53: State | P53: FALSE | Q53: 2013-07-01 | V53: 44 | W53: 44 | X53: 44 | Y53: 44 | Z53: 44 | AA53: 38 | AB53: 45
A54: 62 | B54: 2021 | C54: Spring | D54: 62 | E54: Ascot | F54: Ascot | G54: Sunninghill | H54: Two Tier | I54: Primary | J54: JMI | K54: St Michael's C of E Primary School, Sunninghill | L54: Voluntary Controlled | M54: Church of England | N54: 868 | O54: State | P54: FALSE | V54: 30 | W54: 21 | X54: 30 | Y54: 30 | Z54: 30 | AA54: 30 | AB54: 32
A55: 62 | B55: 2021 | C55: Spring | D55: 62 | E55: Windsor | F55: Windsor Villages | G55: Old Windsor | H55: Three Tier | I55: Secondary | J55: Middle | K55: St Peter's Church of England Middle School | L55: Academy | M55: Church of England | N55: 868 | O55: State | P55: FALSE | Q55: 2014-11-01 | AA55: 77 | AB55: 74 | AC55: 61 | AD55: 57
A56: 62 | B56: 2021 | C56: Spring | D56: 62 | E56: Windsor | F56: East Windsor | G56: Oakfield | H56: NA | I56: Early Years | J56: Nursery School | K56: The Lawns Nursery | L56: Community | M56: None | N56: 868 | O56: State | P56: FALSE | S56: 6 | T56: 57 | U56: 67
A57: 62 | B57: 2021 | C57: Spring | D57: 62 | E57: Windsor | F57: East Windsor | G57: Home Park | H57: Three Tier | I57: Primary | J57: First | K57: The Queen Anne Royal Free CE First School | L57: Voluntary Controlled | M57: Church of England | N57: 868 | O57: State | P57: FALSE | V57: 29 | W57: 29 | X57: 30 | Y57: 27 | Z57: 27
A58: 62 | B58: 2021 | C58: Spring | D58: 62 | E58: Windsor | F58: Windsor Villages | G58: Great Park | H58: Three Tier | I58: Primary | J58: First | K58: The Royal School (Crown Aided) | L58: Voluntary Aided | M58: Church of England | N58: 868 | O58: State | P58: FALSE | V58: 20 | W58: 22 | X58: 21 | Y58: 15 | Z58: 22
A59: 62 | B59: 2021 | C59: Spring | D59: 62 | E59: Windsor | F59: East Windsor | G59: Trinity | H59: Three Tier | I59: Secondary | J59: Upper | K59: The Windsor Boys' School | L59: Academy | M59: None | N59: 868 | O59: State | P59: FALSE | Q59: 2015-03-01 | AE59: 229 | AF59: 222 | AG59: 218 | AH59: 114 | AI59: 105
A60: 62 | B60: 2021 | C60: Spring | D60: 62 | E60: Windsor | F60: East Windsor | G60: Home Park | H60: Three Tier | I60: Secondary | J60: Middle | K60: Trevelyan Middle School | L60: Academy | M60: None | N60: 868 | O60: State | P60: FALSE | Q60: 2016-11-01 | AA60: 148 | AB60: 150 | AC60: 149 | AD60: 147
A61: 62 | B61: 2021 | C61: Spring | D61: 62 | E61: Windsor | F61: East Windsor | G61: Trinity | H61: Three Tier | I61: Primary | J61: First | K61: Trinity St Stephen Church of England First School | L61: Voluntary Aided | M61: Church of England | N61: 868 | O61: State | P61: FALSE | V61: 27 | W61: 29 | X61: 28 | Y61: 30 | Z61: 27
A62: 62 | B62: 2021 | C62: Spring | D62: 62 | E62: Maidenhead | F62: Maidenhead Villages | G62: Waltham St Lawrence | H62: Two Tier | I62: Primary | J62: JMI | K62: Waltham St Lawrence Primary School | L62: Community | M62: None | N62: 868 | O62: State | P62: FALSE | V62: 22 | W62: 22 | X62: 22 | Y62: 20 | Z62: 18 | AA62: 20 | AB62: 16
A63: 62 | B63: 2021 | C63: Spring | D63: 62 | E63: Maidenhead | F63: South West Maidenhead | G63: Wessex West | H63: Two Tier | I63: Primary | J63: JMI | K63: Wessex Primary School | L63: Community | M63: None | N63: 868 | O63: State | P63: FALSE | T63: 6 | U63: 22 | V63: 45 | W63: 55 | X63: 58 | Y63: 60 | Z63: 59 | AA63: 58 | AB63: 63
A64: 62 | B64: 2021 | C64: Spring | D64: 62 | E64: Maidenhead | F64: Maidenhead Villages | G64: White Waltham | H64: Two Tier | I64: Primary | J64: JMI | K64: White Waltham C of E Academy | L64: Academy | M64: Church of England | N64: 868 | O64: State | P64: FALSE | Q64: 2012-09-01 | V64: 30 | W64: 30 | X64: 30 | Y64: 29 | Z64: 30 | AA64: 31 | AB64: 29
A65: 62 | B65: 2021 | C65: Spring | D65: 62 | E65: Windsor | F65: Windsor South | G65: New Town | H65: Three Tier | I65: Secondary | J65: Upper | K65: Windsor Girls' School | L65: Academy | M65: None | N65: 868 | O65: State | P65: FALSE | Q65: 2015-03-01 | AE65: 198 | AF65: 188 | AG65: 178 | AH65: 85 | AI65: 126
A66: 62 | B66: 2021 | C66: Spring | D66: 62 | E66: Maidenhead | F66: South West Maidenhead | G66: Woodlands Park | H66: Two Tier | I66: Primary | J66: JMI | K66: Woodlands Park Primary & Nursery School | L66: Community | M66: None | N66: 868 | O66: State | P66: FALSE | T66: 1 | U66: 13 | V66: 26 | W66: 26 | X66: 15 | Y66: 20 | Z66: 29 | AA66: 10 | AB66: 21
A67: 62 | B67: 2021 | C67: Spring | D67: 62 | E67: Datchet & Wraysbury | F67: Datchet and Wraysbury | G67: Wraysbury | H67: Two Tier | I67: Primary | J67: JMI | K67: Wraysbury Primary School | L67: Community | M67: None | N67: 868 | O67: State | P67: FALSE | V67: 60 | W67: 59 | X67: 60 | Y67: 58 | Z67: 53 | AA67: 52 | AB67: 49

Sheet Report
C2: ="Report - Summary of School Numbers On Roll in the Royal Borough of Windsor and Maidenhead (" & 'QRY - ExportPupilNumbersbyYearG'!C2 & " " & 'QRY - ExportPupilNumbersbyYearG'!B2 & ")" -> Report - Summary of School Numbers On Roll in the Royal Borough of Windsor and Maidenhead (Spring 2021)
C3: This report gives the number of children attending each school in the borough as at the date shown. The total numbers are shown in the final row.
D5: Use this button to hide or show the 'School Location' and 'School Details' information as preferred.
D7: Use this button to hide or show the help 'bubbles', which give brief explanations of the data in each column.
C9: Filter the results: | D9: Use the filters in the red row below to choose groups of schools. The totals in the final row will reflect the pupil numbers in the selected schools. To use the filters, click on the arrow in the relevant column (e.g. 'Area').
D10: All the available options in that column (e.g. Ascot, Datchet & Wraysbury), Maidenhead and Windsor) will be shown with check boxes. Simply check or uncheck the options you want displayed and click 'ok'.
C11: THE SCHOOL | D11: SCHOOL LOCATION | G11: SCHOOL DETAILS | M11: PUPIL NUMBERS BY YEAR GROUP | AG11: TOTALS | AI11: PUPIL NUMBERS BY KEY STAGE
C12: All state nursery, primary, secondary and special schools, including academies and free schools, in the Royal Borough are included in the School Census. Independent or private schools are not included. The School Census also does not cover independent nurseries, playgroups or childminders. | D12: The Royal Borough is split into four areas for the analysis of pupil numbers: Ascot. Datchet & Wraysbury. Maidenhead. Windsor. | E12: The areas are further split into subareas. | F12: Finally, the subareas are split into localities. Not all of these small geographical areas will have a school in it. | G12: This indicates whether a school is for primary age children or secondary age children. Middle schools count as schools for secondary age children in the Royal Borough. | H12: This indicates whether the school is in a two tier or three tier area. A two tier area has primary and secondary schools. A three tier area has first, middle and upper schools. | I12: This indicates the type of school: Infant. Junior. Primary. First. Middle. Upper. Secondary. Special. | J12: This indicates whether a school is: Community. Voluntary Controlled. Voluntary Aided. Academy. Free. | K12: Where a school is an academy, the date of conversion is indicated here. | L12: This indicates whether the school has a religious character. | M12: This section gives the number of children attending each school as at the chosen school census date. The information is provided by: Age of the children, as at the start of the academic year. National curriculum year groups, otherwise known as school year groups. Key Stages, which relate to the teaching of the national curriculum. The School Census is a statutory data collection for all maintained nursery, primary, secondary and special schools, including academies and free schools. It collects information about individual pupils and information about the schools themselves, such as their educational provision. The School Census is collected on termly, in the Autumn (October), Spring (January) and Summer (May) terms. Please note that this is a snapshot as at the Census date - some children will have left and others joined since that date, and so some numbers will now be different. A small number of children attend two schools, usually a mainstream school and a Pupil Referral Unit (PRU). One of these schools is designated as the 'Main' school, and the other 'Subsidiary'. To avoid double counting, only 'Main' school records are counted here. | AG12: This is the total number of children at the school, excluding any children in a nursery class. | AH12: This is the total number of children at the school, including any children in a nursery class. | AI12: This provides the total number of children attending each school by Key Stage.
C13: A | D13: B | E13: C | F13: D | G13: E | H13: F | I13: G | J13: H | K13: I | L13: J | O13: K | P13: L | Q13: M | R13: N | S13: O | T13: P | U13: Q | V13: R | W13: S | X13: T | Y13: U | Z13: V | AA13: W | AB13: X | AC13: Y | AD13: Z | AE13: AA | AF13: AB | AG13: AC | AH13: AD | AI13: AE | AJ13: AF | AK13: AG | AL13: AH | AM13: AI | AN13: AJ
C14: School | D14: Area | E14: Subarea | F14: Locality | G14: Phase | H14: Tier | I14: Type | J14: Control | K14: Academy | L14: Denomination | M14: Nursery | Q14: Primary | X14: Secondary | AG14: Total | AH14: Total | AI14: Key Stage (KS) Totals
K15: conversion date | M15: Nursery | Q15: First | V15: Middle | Z15: Upper | AG15: excluding | AH15: including
M16: Key Stages (KS) | AG16: nursery | AH16: nursery
M17: Foundation | R17: Key Stage 1 | T17: Key Stage 2 | X17: Key Stage 3 | AA17: Key Stage 4 | AC17: Key Stage 5
M18: National Curriculum Year Groups
M19: E1 | N19: E2 | O19: ='QRY - ExportPupilNumbersbyYearG'!T1 -> N1 | P19: ='QRY - ExportPupilNumbersbyYearG'!U1 -> N2 | Q19: ='QRY - ExportPupilNumbersbyYearG'!V1 -> R | R19: ='QRY - ExportPupilNumbersbyYearG'!W1 -> 1 | S19: ='QRY - ExportPupilNumbersbyYearG'!X1 -> 2 | T19: ='QRY - ExportPupilNumbersbyYearG'!Y1 -> 3 | U19: ='QRY - ExportPupilNumbersbyYearG'!Z1 -> 4 | V19: ='QRY - ExportPupilNumbersbyYearG'!AA1 -> 5 | W19: ='QRY - ExportPupilNumbersbyYearG'!AB1 -> 6 | X19: ='QRY - ExportPupilNumbersbyYearG'!AC1 -> 7 | Y19: ='QRY - ExportPupilNumbersbyYearG'!AD1 -> 8 | Z19: ='QRY - ExportPupilNumbersbyYearG'!AE1 -> 9 | AA19: ='QRY - ExportPupilNumbersbyYearG'!AF1 -> 10 | AB19: ='QRY - ExportPupilNumbersbyYearG'!AG1 -> 11 | AC19: ='QRY - ExportPupilNumbersbyYearG'!AH1 -> 12 | AD19: ='QRY - ExportPupilNumbersbyYearG'!AI1 -> 13 | AE19: ='QRY - ExportPupilNumbersbyYearG'!AJ1 -> 14 | AF19: ='QRY - ExportPupilNumbersbyYearG'!AK1 -> 15 | AI19: Fdn | AJ19: KS1 | AK19: KS2 | AL19: KS3 | AM19: KS4 | AN19: KS5
M20: =IF('QRY - ExportPupilNumbersbyYearG'!C2="Autumn","Age as at 31st August " & 'QRY - ExportPupilNumbersbyYearG'!B2,"Age as at 31st August " & 'QRY - ExportPupilNumbersbyYearG'!B2-1) -> Age as at 31st August 2020
M21: 0 | N21: 1 | O21: 2 | P21: 3 | Q21: 4 | R21: 5 | S21: 6 | T21: 7 | U21: 8 | V21: 9 | W21: 10 | X21: 11 | Y21: 12 | Z21: 13 | AA21: 14 | AB21: 15 | AC21: 16 | AD21: 17 | AE21: 18 | AF21: 19
C23: =IF('QRY - ExportPupilNumbersbyYearG'!K2 ="","n/a",'QRY - ExportPupilNumbersbyYearG'!K2) -> Alexander First School | D23: =IF($C23="n/a","",'QRY - ExportPupilNumbersbyYearG'!E2) -> Windsor | E23: =IF($C23="n/a","",'QRY - ExportPupilNumbersbyYearG'!F2) -> Windsor South | F23: =IF($C23="n/a","",'QRY - ExportPupilNumbersbyYearG'!G2) -> Alexander | G23: =IF($C23="n/a","",'QRY - ExportPupilNumbersbyYearG'!I2) -> Primary | H23: =IF($C23="n/a","",'QRY - ExportPupilNumbersbyYearG'!H2) -> Three Tier | I23: =IF($C23="n/a","",'QRY - ExportPupilNumbersbyYearG'!J2) -> First | J23: =IF($C23="n/a","",'QRY - ExportPupilNumbersbyYearG'!L2) -> Community | K23: =IF('QRY - ExportPupilNumbersbyYearG'!Q2="","",'QRY - ExportPupilNumbersbyYearG'!Q2) ->  | L23: =IF($C23="n/a","",'QRY - ExportPupilNumbersbyYearG'!M2) -> None | M23: =IF($C23<>"n/a",'QRY - ExportPupilNumbersbyYearG'!R2,"n/a") -> 0 | N23: =IF($C23<>"n/a",'QRY - ExportPupilNumbersbyYearG'!S2,"n/a") -> 0 | O23: =IF($C23<>"n/a",'QRY - ExportPupilNumbersbyYearG'!T2,"n/a") -> 11 | P23: =IF($C23<>"n/a",'QRY - ExportPupilNumbersbyYearG'!U2,"n/a") -> 11 | Q23: =IF($C23<>"n/a",'QRY - ExportPupilNumbersbyYearG'!V2,"n/a") -> 28 | R23: =IF($C23<>"n/a",'QRY - ExportPupilNumbersbyYearG'!W2,"n/a") -> 20 | S23: =IF($C23<>"n/a",'QRY - ExportPupilNumbersbyYearG'!X2,"n/a") -> 13 | T23: =IF($C23<>"n/a",'QRY - ExportPupilNumbersbyYearG'!Y2,"n/a") -> 20 | U23: =IF($C23<>"n/a",'QRY - ExportPupilNumbersbyYearG'!Z2,"n/a") -> 15 | V23: =IF($C23<>"n/a",'QRY - ExportPupilNumbersbyYearG'!AA2,"n/a") -> 0 | W23: =IF($C23<>"n/a",'QRY - ExportPupilNumbersbyYearG'!AB2,"n/a") -> 0 | X23: =IF($C23<>"n/a",'QRY - ExportPupilNumbersbyYearG'!AC2,"n/a") -> 0 | Y23: =IF($C23<>"n/a",'QRY - ExportPupilNumbersbyYearG'!AD2,"n/a") -> 0 | Z23: =IF($C23<>"n/a",'QRY - ExportPupilNumbersbyYearG'!AE2,"n/a") -> 0 | AA23: =IF($C23<>"n/a",'QRY - ExportPupilNumbersbyYearG'!AF2,"n/a") -> 0 | AB23: =IF($C23<>"n/a",'QRY - ExportPupilNumbersbyYearG'!AG2,"n/a") -> 0 | AC23: =IF($C23<>"n/a",'QRY - ExportPupilNumbersbyYearG'!AH2,"n/a") -> 0 | AD23: =IF($C23<>"n/a",'QRY - ExportPupilNumbersbyYearG'!AI2,"n/a") -> 0 | AE23: =IF($C23<>"n/a",'QRY - ExportPupilNumbersbyYearG'!AJ2,"n/a") -> 0 | AF23: =IF($C23<>"n/a",'QRY - ExportPupilNumbersbyYearG'!AK2,"n/a") -> 0 | AG23: =IF($C23<>"n/a",SUM(Q23:AF23),"n/a") -> 96 | AH23: =IF($C23<>"n/a",SUM(M23:AF23),"n/a") -> 118 | AI23: =IF(C23<>"n/a",SUM(M23:Q23),"n/a") -> 50 | AJ23: =IF(C23<>"n/a",SUM(R23:S23),"n/a") -> 33 | AK23: =IF(C23<>"n/a",SUM(T23:W23),"n/a") -> 35 | AL23: =IF(C23<>"n/a",SUM(X23:Z23),"n/a") -> 0 | AM23: =IF(C23<>"n/a",SUM(AA23:AB23),"n/a") -> 0 | AN23: =IF(C23<>"n/a",SUM(AC23:AF23),"n/a") -> 0
C24: =IF('QRY - ExportPupilNumbersbyYearG'!K3 ="","n/a",'QRY - ExportPupilNumbersbyYearG'!K3) -> All Saints Church of England Junior School | D24: =IF($C24="n/a","",'QRY - ExportPupilNumbersbyYearG'!E3) -> Maidenhead | E24: =IF($C24="n/a","",'QRY - ExportPupilNumbersbyYearG'!F3) -> Central Maidenhead | F24: =IF($C24="n/a","",'QRY - ExportPupilNumbersbyYearG'!G3) -> Boyn Hill | G24: =IF($C24="n/a","",'QRY - ExportPupilNumbersbyYearG'!I3) -> Primary | H24: =IF($C24="n/a","",'QRY - ExportPupilNumbersbyYearG'!H3) -> Two Tier | I24: =IF($C24="n/a","",'QRY - ExportPupilNumbersbyYearG'!J3) -> Junior | J24: =IF($C24="n/a","",'QRY - ExportPupilNumbersbyYearG'!L3) -> Voluntary Controlled | K24: =IF('QRY - ExportPupilNumbersbyYearG'!Q3="","",'QRY - ExportPupilNumbersbyYearG'!Q3) ->  | L24: =IF($C24="n/a","",'QRY - ExportPupilNumbersbyYearG'!M3) -> Church of England | M24: =IF($C24<>"n/a",'QRY - ExportPupilNumbersbyYearG'!R3,"n/a") -> 0 | N24: =IF($C24<>"n/a",'QRY - ExportPupilNumbersbyYearG'!S3,"n/a") -> 0 | O24: =IF($C24<>"n/a",'QRY - ExportPupilNumbersbyYearG'!T3,"n/a") -> 0 | P24: =IF($C24<>"n/a",'QRY - ExportPupilNumbersbyYearG'!U3,"n/a") -> 0 | Q24: =IF($C24<>"n/a",'QRY - ExportPupilNumbersbyYearG'!V3,"n/a") -> 0 | R24: =IF($C24<>"n/a",'QRY - ExportPupilNumbersbyYearG'!W3,"n/a") -> 0 | S24: =IF($C24<>"n/a",'QRY - ExportPupilNumbersbyYearG'!X3,"n/a") -> 0 | T24: =IF($C24<>"n/a",'QRY - ExportPupilNumbersbyYearG'!Y3,"n/a") -> 66 | U24: =IF($C24<>"n/a",'QRY - ExportPupilNumbersbyYearG'!Z3,"n/a") -> 64 | V24: =IF($C24<>"n/a",'QRY - ExportPupilNumbersbyYearG'!AA3,"n/a") -> 63 | W24: =IF($C24<>"n/a",'QRY - ExportPupilNumbersbyYearG'!AB3,"n/a") -> 78 | X24: =IF($C24<>"n/a",'QRY - ExportPupilNumbersbyYearG'!AC3,"n/a") -> 0 | Y24: =IF($C24<>"n/a",'QRY - ExportPupilNumbersbyYearG'!AD3,"n/a") -> 0 | Z24: =IF($C24<>"n/a",'QRY - ExportPupilNumbersbyYearG'!AE3,"n/a") -> 0 | AA24: =IF($C24<>"n/a",'QRY - ExportPupilNumbersbyYearG'!AF3,"n/a") -> 0 | AB24: =IF($C24<>"n/a",'QRY - ExportPupilNumbersbyYearG'!AG3,"n/a") -> 0 | AC24: =IF($C24<>"n/a",'QRY - ExportPupilNumbersbyYearG'!AH3,"n/a") -> 0 | AD24: =IF($C24<>"n/a",'QRY - ExportPupilNumbersbyYearG'!AI3,"n/a") -> 0 | AE24: =IF($C24<>"n/a",'QRY - ExportPupilNumbersbyYearG'!AJ3,"n/a") -> 0 | AF24: =IF($C24<>"n/a",'QRY - ExportPupilNumbersbyYearG'!AK3,"n/a") -> 0 | AG24: =IF($C24<>"n/a",SUM(Q24:AF24),"n/a") -> 271 | AH24: =IF($C24<>"n/a",SUM(M24:AF24),"n/a") -> 271 | AI24: =IF(C24<>"n/a",SUM(M24:Q24),"n/a") -> 0 | AJ24: =IF(C24<>"n/a",SUM(R24:S24),"n/a") -> 0 | AK24: =IF(C24<>"n/a",SUM(T24:W24),"n/a") -> 271 | AL24: =IF(C24<>"n/a",SUM(X24:Z24),"n/a") -> 0 | AM24: =IF(C24<>"n/a",SUM(AA24:AB24),"n/a") -> 0 | AN24: =IF(C24<>"n/a",SUM(AC24:AF24),"n/a") -> 0
C25: =IF('QRY - ExportPupilNumbersbyYearG'!K4 ="","n/a",'QRY - ExportPupilNumbersbyYearG'!K4) -> Altwood Church of England School | D25: =IF($C25="n/a","",'QRY - ExportPupilNumbersbyYearG'!E4) -> Maidenhead | E25: =IF($C25="n/a","",'QRY - ExportPupilNumbersbyYearG'!F4) -> Central Maidenhead | F25: =IF($C25="n/a","",'QRY - ExportPupilNumbersbyYearG'!G4) -> Tittle Row | G25: =IF($C25="n/a","",'QRY - ExportPupilNumbersbyYearG'!I4) -> Secondary | H25: =IF($C25="n/a","",'QRY - ExportPupilNumbersbyYearG'!H4) -> Two Tier | I25: =IF($C25="n/a","",'QRY - ExportPupilNumbersbyYearG'!J4) -> Secondary | J25: =IF($C25="n/a","",'QRY - ExportPupilNumbersbyYearG'!L4) -> Academy | K25: =IF('QRY - ExportPupilNumbersbyYearG'!Q4="","",'QRY - ExportPupilNumbersbyYearG'!Q4) -> 2012-09-01 | L25: =IF($C25="n/a","",'QRY - ExportPupilNumbersbyYearG'!M4) -> Church of England | M25: =IF($C25<>"n/a",'QRY - ExportPupilNumbersbyYearG'!R4,"n/a") -> 0 | N25: =IF($C25<>"n/a",'QRY - ExportPupilNumbersbyYearG'!S4,"n/a") -> 0 | O25: =IF($C25<>"n/a",'QRY - ExportPupilNumbersbyYearG'!T4,"n/a") -> 0 | P25: =IF($C25<>"n/a",'QRY - ExportPupilNumbersbyYearG'!U4,"n/a") -> 0 | Q25: =IF($C25<>"n/a",'QRY - ExportPupilNumbersbyYearG'!V4,"n/a") -> 0 | R25: =IF($C25<>"n/a",'QRY - ExportPupilNumbersbyYearG'!W4,"n/a") -> 0 | S25: =IF($C25<>"n/a",'QRY - ExportPupilNumbersbyYearG'!X4,"n/a") -> 0 | T25: =IF($C25<>"n/a",'QRY - ExportPupilNumbersbyYearG'!Y4,"n/a") -> 0 | U25: =IF($C25<>"n/a",'QRY - ExportPupilNumbersbyYearG'!Z4,"n/a") -> 0 | V25: =IF($C25<>"n/a",'QRY - ExportPupilNumbersbyYearG'!AA4,"n/a") -> 0 | W25: =IF($C25<>"n/a",'QRY - ExportPupilNumbersbyYearG'!AB4,"n/a") -> 0 | X25: =IF($C25<>"n/a",'QRY - ExportPupilNumbersbyYearG'!AC4,"n/a") -> 127 | Y25: =IF($C25<>"n/a",'QRY - ExportPupilNumbersbyYearG'!AD4,"n/a") -> 91 | Z25: =IF($C25<>"n/a",'QRY - ExportPupilNumbersbyYearG'!AE4,"n/a") -> 58 | AA25: =IF($C25<>"n/a",'QRY - ExportPupilNumbersbyYearG'!AF4,"n/a") -> 44 | AB25: =IF($C25<>"n/a",'QRY - ExportPupilNumbersbyYearG'!AG4,"n/a") -> 53 | AC25: =IF($C25<>"n/a",'QRY - ExportPupilNumbersbyYearG'!AH4,"n/a") -> 55 | AD25: =IF($C25<>"n/a",'QRY - ExportPupilNumbersbyYearG'!AI4,"n/a") -> 50 | AE25: =IF($C25<>"n/a",'QRY - ExportPupilNumbersbyYearG'!AJ4,"n/a") -> 12 | AF25: =IF($C25<>"n/a",'QRY - ExportPupilNumbersbyYearG'!AK4,"n/a") -> 0 | AG25: 490 | AH25: 490 | AI25: 0 | AJ25: 0 | AK25: 0 | AL25: 276 | AM25: 97 | AN25: 117
C26: =IF('QRY - ExportPupilNumbersbyYearG'!K5 ="","n/a",'QRY - ExportPupilNumbersbyYearG'!K5) -> Alwyn Infant School | D26: =IF($C26="n/a","",'QRY - ExportPupilNumbersbyYearG'!E5) -> Maidenhead | E26: =IF($C26="n/a","",'QRY - ExportPupilNumbersbyYearG'!F5) -> North West Maidenhead | F26: =IF($C26="n/a","",'QRY - ExportPupilNumbersbyYearG'!G5) -> St Mark's | G26: =IF($C26="n/a","",'QRY - ExportPupilNumbersbyYearG'!I5) -> Primary | H26: =IF($C26="n/a","",'QRY - ExportPupilNumbersbyYearG'!H5) -> Two Tier | I26: =IF($C26="n/a","",'QRY - ExportPupilNumbersbyYearG'!J5) -> Infants | J26: =IF($C26="n/a","",'QRY - ExportPupilNumbersbyYearG'!L5) -> Community | K26: =IF('QRY - ExportPupilNumbersbyYearG'!Q5="","",'QRY - ExportPupilNumbersbyYearG'!Q5) ->  | L26: =IF($C26="n/a","",'QRY - ExportPupilNumbersbyYearG'!M5) -> None | M26: =IF($C26<>"n/a",'QRY - ExportPupilNumbersbyYearG'!R5,"n/a") -> 0 | N26: =IF($C26<>"n/a",'QRY - ExportPupilNumbersbyYearG'!S5,"n/a") -> 0 | O26: =IF($C26<>"n/a",'QRY - ExportPupilNumbersbyYearG'!T5,"n/a") -> 0 | P26: =IF($C26<>"n/a",'QRY - ExportPupilNumbersbyYearG'!U5,"n/a") -> 0 | Q26: =IF($C26<>"n/a",'QRY - ExportPupilNumbersbyYearG'!V5,"n/a") -> 82 | R26: =IF($C26<>"n/a",'QRY - ExportPupilNumbersbyYearG'!W5,"n/a") -> 81 | S26: =IF($C26<>"n/a",'QRY - ExportPupilNumbersbyYearG'!X5,"n/a") -> 85 | T26: =IF($C26<>"n/a",'QRY - ExportPupilNumbersbyYearG'!Y5,"n/a") -> 0 | U26: =IF($C26<>"n/a",'QRY - ExportPupilNumbersbyYearG'!Z5,"n/a") -> 0 | V26: =IF($C26<>"n/a",'QRY - ExportPupilNumbersbyYearG'!AA5,"n/a") -> 0 | W26: =IF($C26<>"n/a",'QRY - ExportPupilNumbersbyYearG'!AB5,"n/a") -> 0 | X26: =IF($C26<>"n/a",'QRY - ExportPupilNumbersbyYearG'!AC5,"n/a") -> 0 | Y26: =IF($C26<>"n/a",'QRY - ExportPupilNumbersbyYearG'!AD5,"n/a") -> 0 | Z26: =IF($C26<>"n/a",'QRY - ExportPupilNumbersbyYearG'!AE5,"n/a") -> 0 | AA26: =IF($C26<>"n/a",'QRY - ExportPupilNumbersbyYearG'!AF5,"n/a") -> 0 | AB26: =IF($C26<>"n/a",'QRY - ExportPupilNumbersbyYearG'!AG5,"n/a") -> 0 | AC26: =IF($C26<>"n/a",'QRY - ExportPupilNumbersbyYearG'!AH5,"n/a") -> 0 | AD26: =IF($C26<>"n/a",'QRY - ExportPupilNumbersbyYearG'!AI5,"n/a") -> 0 | AE26: =IF($C26<>"n/a",'QRY - ExportPupilNumbersbyYearG'!AJ5,"n/a") -> 0 | AF26: =IF($C26<>"n/a",'QRY - ExportPupilNumbersbyYearG'!AK5,"n/a") -> 0 | AG26: 248 | AH26: 248 | AI26: 82 | AJ26: 166 | AK26: 0 | AL26: 0 | AM26: 0 | AN26: 0
C27: =IF('QRY - ExportPupilNumbersbyYearG'!K6 ="","n/a",'QRY - ExportPupilNumbersbyYearG'!K6) -> Bisham C of E Academy | D27: =IF($C27="n/a","",'QRY - ExportPupilNumbersbyYearG'!E6) -> Maidenhead | E27: =IF($C27="n/a","",'QRY - ExportPupilNumbersbyYearG'!F6) -> Bisham and Cookham | F27: =IF($C27="n/a","",'QRY - ExportPupilNumbersbyYearG'!G6) -> Bisham | G27: =IF($C27="n/a","",'QRY - ExportPupilNumbersbyYearG'!I6) -> Primary | H27: =IF($C27="n/a","",'QRY - ExportPupilNumbersbyYearG'!H6) -> Two Tier | I27: =IF($C27="n/a","",'QRY - ExportPupilNumbersbyYearG'!J6) -> JMI | J27: =IF($C27="n/a","",'QRY - ExportPupilNumbersbyYearG'!L6) -> Academy | K27: =IF('QRY - ExportPupilNumbersbyYearG'!Q6="","",'QRY - ExportPupilNumbersbyYearG'!Q6) -> 2017-09-01 | L27: =IF($C27="n/a","",'QRY - ExportPupilNumbersbyYearG'!M6) -> Church of England | M27: =IF($C27<>"n/a",'QRY - ExportPupilNumbersbyYearG'!R6,"n/a") -> 0 | N27: =IF($C27<>"n/a",'QRY - ExportPupilNumbersbyYearG'!S6,"n/a") -> 0 | O27: =IF($C27<>"n/a",'QRY - ExportPupilNumbersbyYearG'!T6,"n/a") -> 0 | P27: =IF($C27<>"n/a",'QRY - ExportPupilNumbersbyYearG'!U6,"n/a") -> 0 | Q27: =IF($C27<>"n/a",'QRY - ExportPupilNumbersbyYearG'!V6,"n/a") -> 7 | R27: =IF($C27<>"n/a",'QRY - ExportPupilNumbersbyYearG'!W6,"n/a") -> 10 | S27: =IF($C27<>"n/a",'QRY - ExportPupilNumbersbyYearG'!X6,"n/a") -> 10 | T27: =IF($C27<>"n/a",'QRY - ExportPupilNumbersbyYearG'!Y6,"n/a") -> 8 | U27: =IF($C27<>"n/a",'QRY - ExportPupilNumbersbyYearG'!Z6,"n/a") -> 14 | V27: =IF($C27<>"n/a",'QRY - ExportPupilNumbersbyYearG'!AA6,"n/a") -> 7 | W27: =IF($C27<>"n/a",'QRY - ExportPupilNumbersbyYearG'!AB6,"n/a") -> 9 | X27: =IF($C27<>"n/a",'QRY - ExportPupilNumbersbyYearG'!AC6,"n/a") -> 0 | Y27: =IF($C27<>"n/a",'QRY - ExportPupilNumbersbyYearG'!AD6,"n/a") -> 0 | Z27: =IF($C27<>"n/a",'QRY - ExportPupilNumbersbyYearG'!AE6,"n/a") -> 0 | AA27: =IF($C27<>"n/a",'QRY - ExportPupilNumbersbyYearG'!AF6,"n/a") -> 0 | AB27: =IF($C27<>"n/a",'QRY - ExportPupilNumbersbyYearG'!AG6,"n/a") -> 0 | AC27: =IF($C27<>"n/a",'QRY - ExportPupilNumbersbyYearG'!AH6,"n/a") -> 0 | AD27: =IF($C27<>"n/a",'QRY - ExportPupilNumbersbyYearG'!AI6,"n/a") -> 0 | AE27: =IF($C27<>"n/a",'QRY - ExportPupilNumbersbyYearG'!AJ6,"n/a") -> 0 | AF27: =IF($C27<>"n/a",'QRY - ExportPupilNumbersbyYearG'!AK6,"n/a") -> 0 | AG27: 65 | AH27: 65 | AI27: 7 | AJ27: 20 | AK27: 38 | AL27: 0 | AM27: 0 | AN27: 0
C28: =IF('QRY - ExportPupilNumbersbyYearG'!K7 ="","n/a",'QRY - ExportPupilNumbersbyYearG'!K7) -> Boyne Hill C of E Infant and Nursery School | D28: =IF($C28="n/a","",'QRY - ExportPupilNumbersbyYearG'!E7) -> Maidenhead | E28: =IF($C28="n/a","",'QRY - ExportPupilNumbersbyYearG'!F7) -> Central Maidenhead | F28: =IF($C28="n/a","",'QRY - ExportPupilNumbersbyYearG'!G7) -> Boyn Hill | G28: =IF($C28="n/a","",'QRY - ExportPupilNumbersbyYearG'!I7) -> Primary | H28: =IF($C28="n/a","",'QRY - ExportPupilNumbersbyYearG'!H7) -> Two Tier | I28: =IF($C28="n/a","",'QRY - ExportPupilNumbersbyYearG'!J7) -> Infants | J28: =IF($C28="n/a","",'QRY - ExportPupilNumbersbyYearG'!L7) -> Voluntary Controlled | K28: =IF('QRY - ExportPupilNumbersbyYearG'!Q7="","",'QRY - ExportPupilNumbersbyYearG'!Q7) ->  | L28: =IF($C28="n/a","",'QRY - ExportPupilNumbersbyYearG'!M7) -> Church of England | M28: =IF($C28<>"n/a",'QRY - ExportPupilNumbersbyYearG'!R7,"n/a") -> 0 | N28: =IF($C28<>"n/a",'QRY - ExportPupilNumbersbyYearG'!S7,"n/a") -> 0 | O28: =IF($C28<>"n/a",'QRY - ExportPupilNumbersbyYearG'!T7,"n/a") -> 13 | P28: =IF($C28<>"n/a",'QRY - ExportPupilNumbersbyYearG'!U7,"n/a") -> 44 | Q28: =IF($C28<>"n/a",'QRY - ExportPupilNumbersbyYearG'!V7,"n/a") -> 60 | R28: =IF($C28<>"n/a",'QRY - ExportPupilNumbersbyYearG'!W7,"n/a") -> 57 | S28: =IF($C28<>"n/a",'QRY - ExportPupilNumbersbyYearG'!X7,"n/a") -> 58 | T28: =IF($C28<>"n/a",'QRY - ExportPupilNumbersbyYearG'!Y7,"n/a") -> 0 | U28: =IF($C28<>"n/a",'QRY - ExportPupilNumbersbyYearG'!Z7,"n/a") -> 0 | V28: =IF($C28<>"n/a",'QRY - ExportPupilNumbersbyYearG'!AA7,"n/a") -> 0 | W28: =IF($C28<>"n/a",'QRY - ExportPupilNumbersbyYearG'!AB7,"n/a") -> 0 | X28: =IF($C28<>"n/a",'QRY - ExportPupilNumbersbyYearG'!AC7,"n/a") -> 0 | Y28: =IF($C28<>"n/a",'QRY - ExportPupilNumbersbyYearG'!AD7,"n/a") -> 0 | Z28: =IF($C28<>"n/a",'QRY - ExportPupilNumbersbyYearG'!AE7,"n/a") -> 0 | AA28: =IF($C28<>"n/a",'QRY - ExportPupilNumbersbyYearG'!AF7,"n/a") -> 0 | AB28: =IF($C28<>"n/a",'QRY - ExportPupilNumbersbyYearG'!AG7,"n/a") -> 0 | AC28: =IF($C28<>"n/a",'QRY - ExportPupilNumbersbyYearG'!AH7,"n/a") -> 0 | AD28: =IF($C28<>"n/a",'QRY - ExportPupilNumbersbyYearG'!AI7,"n/a") -> 0 | AE28: =IF($C28<>"n/a",'QRY - ExportPupilNumbersbyYearG'!AJ7,"n/a") -> 0 | AF28: =IF($C28<>"n/a",'QRY - ExportPupilNumbersbyYearG'!AK7,"n/a") -> 0 | AG28: 175 | AH28: 232 | AI28: 117 | AJ28: 115 | AK28: 0 | AL28: 0 | AM28: 0 | AN28: 0
C29: =IF('QRY - ExportPupilNumbersbyYearG'!K8 ="","n/a",'QRY - ExportPupilNumbersbyYearG'!K8) -> Braywick Court School | D29: =IF($C29="n/a","",'QRY - ExportPupilNumbersbyYearG'!E8) -> Maidenhead | E29: =IF($C29="n/a","",'QRY - ExportPupilNumbersbyYearG'!F8) -> South East Maidenhead | F29: =IF($C29="n/a","",'QRY - ExportPupilNumbersbyYearG'!G8) -> Bray | G29: =IF($C29="n/a","",'QRY - ExportPupilNumbersbyYearG'!I8) -> Primary | H29: =IF($C29="n/a","",'QRY - ExportPupilNumbersbyYearG'!H8) -> Two Tier | I29: =IF($C29="n/a","",'QRY - ExportPupilNumbersbyYearG'!J8) -> JMI | J29: =IF($C29="n/a","",'QRY - ExportPupilNumbersbyYearG'!L8) -> Free School | K29: =IF('QRY - ExportPupilNumbersbyYearG'!Q8="","",'QRY - ExportPupilNumbersbyYearG'!Q8) ->  | L29: =IF($C29="n/a","",'QRY - ExportPupilNumbersbyYearG'!M8) -> None | M29: =IF($C29<>"n/a",'QRY - ExportPupilNumbersbyYearG'!R8,"n/a") -> 0 | N29: =IF($C29<>"n/a",'QRY - ExportPupilNumbersbyYearG'!S8,"n/a") -> 0 | O29: =IF($C29<>"n/a",'QRY - ExportPupilNumbersbyYearG'!T8,"n/a") -> 0 | P29: =IF($C29<>"n/a",'QRY - ExportPupilNumbersbyYearG'!U8,"n/a") -> 35 | Q29: =IF($C29<>"n/a",'QRY - ExportPupilNumbersbyYearG'!V8,"n/a") -> 30 | R29: =IF($C29<>"n/a",'QRY - ExportPupilNumbersbyYearG'!W8,"n/a") -> 30 | S29: =IF($C29<>"n/a",'QRY - ExportPupilNumbersbyYearG'!X8,"n/a") -> 30 | T29: =IF($C29<>"n/a",'QRY - ExportPupilNumbersbyYearG'!Y8,"n/a") -> 30 | U29: =IF($C29<>"n/a",'QRY - ExportPupilNumbersbyYearG'!Z8,"n/a") -> 31 | V29: =IF($C29<>"n/a",'QRY - ExportPupilNumbersbyYearG'!AA8,"n/a") -> 30 | W29: =IF($C29<>"n/a",'QRY - ExportPupilNumbersbyYearG'!AB8,"n/a") -> 30 | X29: =IF($C29<>"n/a",'QRY - ExportPupilNumbersbyYearG'!AC8,"n/a") -> 0 | Y29: =IF($C29<>"n/a",'QRY - ExportPupilNumbersbyYearG'!AD8,"n/a") -> 0 | Z29: =IF($C29<>"n/a",'QRY - ExportPupilNumbersbyYearG'!AE8,"n/a") -> 0 | AA29: =IF($C29<>"n/a",'QRY - ExportPupilNumbersbyYearG'!AF8,"n/a") -> 0 | AB29: =IF($C29<>"n/a",'QRY - ExportPupilNumbersbyYearG'!AG8,"n/a") -> 0 | AC29: =IF($C29<>"n/a",'QRY - ExportPupilNumbersbyYearG'!AH8,"n/a") -> 0 | AD29: =IF($C29<>"n/a",'QRY - ExportPupilNumbersbyYearG'!AI8,"n/a") -> 0 | AE29: =IF($C29<>"n/a",'QRY - ExportPupilNumbersbyYearG'!AJ8,"n/a") -> 0 | AF29: =IF($C29<>"n/a",'QRY - ExportPupilNumbersbyYearG'!AK8,"n/a") -> 0 | AG29: 211 | AH29: 246 | AI29: 65 | AJ29: 60 | AK29: 121 | AL29: 0 | AM29: 0 | AN29: 0
C30: =IF('QRY - ExportPupilNumbersbyYearG'!K9 ="","n/a",'QRY - ExportPupilNumbersbyYearG'!K9) -> Braywood C of E First School | D30: =IF($C30="n/a","",'QRY - ExportPupilNumbersbyYearG'!E9) -> Windsor | E30: =IF($C30="n/a","",'QRY - ExportPupilNumbersbyYearG'!F9) -> Windsor Villages | F30: =IF($C30="n/a","",'QRY - ExportPupilNumbersbyYearG'!G9) -> Fifield | G30: =IF($C30="n/a","",'QRY - ExportPupilNumbersbyYearG'!I9) -> Primary | H30: =IF($C30="n/a","",'QRY - ExportPupilNumbersbyYearG'!H9) -> Three Tier | I30: =IF($C30="n/a","",'QRY - ExportPupilNumbersbyYearG'!J9) -> First | J30: =IF($C30="n/a","",'QRY - ExportPupilNumbersbyYearG'!L9) -> Voluntary Controlled | K30: =IF('QRY - ExportPupilNumbersbyYearG'!Q9="","",'QRY - ExportPupilNumbersbyYearG'!Q9) ->  | L30: =IF($C30="n/a","",'QRY - ExportPupilNumbersbyYearG'!M9) -> Church of England | M30: =IF($C30<>"n/a",'QRY - ExportPupilNumbersbyYearG'!R9,"n/a") -> 0 | N30: =IF($C30<>"n/a",'QRY - ExportPupilNumbersbyYearG'!S9,"n/a") -> 0 | O30: =IF($C30<>"n/a",'QRY - ExportPupilNumbersbyYearG'!T9,"n/a") -> 0 | P30: =IF($C30<>"n/a",'QRY - ExportPupilNumbersbyYearG'!U9,"n/a") -> 0 | Q30: =IF($C30<>"n/a",'QRY - ExportPupilNumbersbyYearG'!V9,"n/a") -> 29 | R30: =IF($C30<>"n/a",'QRY - ExportPupilNumbersbyYearG'!W9,"n/a") -> 30 | S30: =IF($C30<>"n/a",'QRY - ExportPupilNumbersbyYearG'!X9,"n/a") -> 26 | T30: =IF($C30<>"n/a",'QRY - ExportPupilNumbersbyYearG'!Y9,"n/a") -> 21 | U30: =IF($C30<>"n/a",'QRY - ExportPupilNumbersbyYearG'!Z9,"n/a") -> 22 | V30: =IF($C30<>"n/a",'QRY - ExportPupilNumbersbyYearG'!AA9,"n/a") -> 0 | W30: =IF($C30<>"n/a",'QRY - ExportPupilNumbersbyYearG'!AB9,"n/a") -> 0 | X30: =IF($C30<>"n/a",'QRY - ExportPupilNumbersbyYearG'!AC9,"n/a") -> 0 | Y30: =IF($C30<>"n/a",'QRY - ExportPupilNumbersbyYearG'!AD9,"n/a") -> 0 | Z30: =IF($C30<>"n/a",'QRY - ExportPupilNumbersbyYearG'!AE9,"n/a") -> 0 | AA30: =IF($C30<>"n/a",'QRY - ExportPupilNumbersbyYearG'!AF9,"n/a") -> 0 | AB30: =IF($C30<>"n/a",'QRY - ExportPupilNumbersbyYearG'!AG9,"n/a") -> 0 | AC30: =IF($C30<>"n/a",'QRY - ExportPupilNumbersbyYearG'!AH9,"n/a") -> 0 | AD30: =IF($C30<>"n/a",'QRY - ExportPupilNumbersbyYearG'!AI9,"n/a") -> 0 | AE30: =IF($C30<>"n/a",'QRY - ExportPupilNumbersbyYearG'!AJ9,"n/a") -> 0 | AF30: =IF($C30<>"n/a",'QRY - ExportPupilNumbersbyYearG'!AK9,"n/a") -> 0 | AG30: 128 | AH30: 128 | AI30: 29 | AJ30: 56 | AK30: 43 | AL30: 0 | AM30: 0 | AN30: 0
C31: =IF('QRY - ExportPupilNumbersbyYearG'!K10 ="","n/a",'QRY - ExportPupilNumbersbyYearG'!K10) -> Burchetts Green CE Infant School | D31: =IF($C31="n/a","",'QRY - ExportPupilNumbersbyYearG'!E10) -> Maidenhead | E31: =IF($C31="n/a","",'QRY - ExportPupilNumbersbyYearG'!F10) -> Maidenhead Villages | F31: =IF($C31="n/a","",'QRY - ExportPupilNumbersbyYearG'!G10) -> Burchett's Green | G31: =IF($C31="n/a","",'QRY - ExportPupilNumbersbyYearG'!I10) -> Primary | H31: =IF($C31="n/a","",'QRY - ExportPupilNumbersbyYearG'!H10) -> Two Tier | I31: =IF($C31="n/a","",'QRY - ExportPupilNumbersbyYearG'!J10) -> Infants | J31: =IF($C31="n/a","",'QRY - ExportPupilNumbersbyYearG'!L10) -> Academy | K31: =IF('QRY - ExportPupilNumbersbyYearG'!Q10="","",'QRY - ExportPupilNumbersbyYearG'!Q10) -> 2014-12-01 | L31: =IF($C31="n/a","",'QRY - ExportPupilNumbersbyYearG'!M10) -> Church of England | M31: =IF($C31<>"n/a",'QRY - ExportPupilNumbersbyYearG'!R10,"n/a") -> 0 | N31: =IF($C31<>"n/a",'QRY - ExportPupilNumbersbyYearG'!S10,"n/a") -> 0 | O31: =IF($C31<>"n/a",'QRY - ExportPupilNumbersbyYearG'!T10,"n/a") -> 0 | P31: =IF($C31<>"n/a",'QRY - ExportPupilNumbersbyYearG'!U10,"n/a") -> 0 | Q31: =IF($C31<>"n/a",'QRY - ExportPupilNumbersbyYearG'!V10,"n/a") -> 22 | R31: =IF($C31<>"n/a",'QRY - ExportPupilNumbersbyYearG'!W10,"n/a") -> 24 | S31: =IF($C31<>"n/a",'QRY - ExportPupilNumbersbyYearG'!X10,"n/a") -> 24 | T31: =IF($C31<>"n/a",'QRY - ExportPupilNumbersbyYearG'!Y10,"n/a") -> 0 | U31: =IF($C31<>"n/a",'QRY - ExportPupilNumbersbyYearG'!Z10,"n/a") -> 0 | V31: =IF($C31<>"n/a",'QRY - ExportPupilNumbersbyYearG'!AA10,"n/a") -> 0 | W31: =IF($C31<>"n/a",'QRY - ExportPupilNumbersbyYearG'!AB10,"n/a") -> 0 | X31: =IF($C31<>"n/a",'QRY - ExportPupilNumbersbyYearG'!AC10,"n/a") -> 0 | Y31: =IF($C31<>"n/a",'QRY - ExportPupilNumbersbyYearG'!AD10,"n/a") -> 0 | Z31: =IF($C31<>"n/a",'QRY - ExportPupilNumbersbyYearG'!AE10,"n/a") -> 0 | AA31: =IF($C31<>"n/a",'QRY - ExportPupilNumbersbyYearG'!AF10,"n/a") -> 0 | AB31: =IF($C31<>"n/a",'QRY - ExportPupilNumbersbyYearG'!AG10,"n/a") -> 0 | AC31: =IF($C31<>"n/a",'QRY - ExportPupilNumbersbyYearG'!AH10,"n/a") -> 0 | AD31: =IF($C31<>"n/a",'QRY - ExportPupilNumbersbyYearG'!AI10,"n/a") -> 0 | AE31: =IF($C31<>"n/a",'QRY - ExportPupilNumbersbyYearG'!AJ10,"n/a") -> 0 | AF31: =IF($C31<>"n/a",'QRY - ExportPupilNumbersbyYearG'!AK10,"n/a") -> 0 | AG31: 70 | AH31: 70 | AI31: 22 | AJ31: 48 | AK31: 0 | AL31: 0 | AM31: 0 | AN31: 0
C32: =IF('QRY - ExportPupilNumbersbyYearG'!K11 ="","n/a",'QRY - ExportPupilNumbersbyYearG'!K11) -> Charters School | D32: =IF($C32="n/a","",'QRY - ExportPupilNumbersbyYearG'!E11) -> Ascot | E32: =IF($C32="n/a","",'QRY - ExportPupilNumbersbyYearG'!F11) -> Ascot | F32: =IF($C32="n/a","",'QRY - ExportPupilNumbersbyYearG'!G11) -> South Sunningdale | G32: =IF($C32="n/a","",'QRY - ExportPupilNumbersbyYearG'!I11) -> Secondary | H32: =IF($C32="n/a","",'QRY - ExportPupilNumbersbyYearG'!H11) -> Two Tier | I32: =IF($C32="n/a","",'QRY - ExportPupilNumbersbyYearG'!J11) -> Secondary | J32: =IF($C32="n/a","",'QRY - ExportPupilNumbersbyYearG'!L11) -> Academy | K32: =IF('QRY - ExportPupilNumbersbyYearG'!Q11="","",'QRY - ExportPupilNumbersbyYearG'!Q11) -> 2012-10-01 | L32: =IF($C32="n/a","",'QRY - ExportPupilNumbersbyYearG'!M11) -> None | M32: =IF($C32<>"n/a",'QRY - ExportPupilNumbersbyYearG'!R11,"n/a") -> 0 | N32: =IF($C32<>"n/a",'QRY - ExportPupilNumbersbyYearG'!S11,"n/a") -> 0 | O32: =IF($C32<>"n/a",'QRY - ExportPupilNumbersbyYearG'!T11,"n/a") -> 0 | P32: =IF($C32<>"n/a",'QRY - ExportPupilNumbersbyYearG'!U11,"n/a") -> 0 | Q32: =IF($C32<>"n/a",'QRY - ExportPupilNumbersbyYearG'!V11,"n/a") -> 0 | R32: =IF($C32<>"n/a",'QRY - ExportPupilNumbersbyYearG'!W11,"n/a") -> 0 | S32: =IF($C32<>"n/a",'QRY - ExportPupilNumbersbyYearG'!X11,"n/a") -> 0 | T32: =IF($C32<>"n/a",'QRY - ExportPupilNumbersbyYearG'!Y11,"n/a") -> 0 | U32: =IF($C32<>"n/a",'QRY - ExportPupilNumbersbyYearG'!Z11,"n/a") -> 0 | V32: =IF($C32<>"n/a",'QRY - ExportPupilNumbersbyYearG'!AA11,"n/a") -> 0 | W32: =IF($C32<>"n/a",'QRY - ExportPupilNumbersbyYearG'!AB11,"n/a") -> 0 | X32: =IF($C32<>"n/a",'QRY - ExportPupilNumbersbyYearG'!AC11,"n/a") -> 270 | Y32: =IF($C32<>"n/a",'QRY - ExportPupilNumbersbyYearG'!AD11,"n/a") -> 304 | Z32: =IF($C32<>"n/a",'QRY - ExportPupilNumbersbyYearG'!AE11,"n/a") -> 270 | AA32: =IF($C32<>"n/a",'QRY - ExportPupilNumbersbyYearG'!AF11,"n/a") -> 274 | AB32: =IF($C32<>"n/a",'QRY - ExportPupilNumbersbyYearG'!AG11,"n/a") -> 240 | AC32: =IF($C32<>"n/a",'QRY - ExportPupilNumbersbyYearG'!AH11,"n/a") -> 197 | AD32: =IF($C32<>"n/a",'QRY - ExportPupilNumbersbyYearG'!AI11,"n/a") -> 181 | AE32: =IF($C32<>"n/a",'QRY - ExportPupilNumbersbyYearG'!AJ11,"n/a") -> 0 | AF32: =IF($C32<>"n/a",'QRY - ExportPupilNumbersbyYearG'!AK11,"n/a") -> 0 | AG32: 1736 | AH32: 1736 | AI32: 0 | AJ32: 0 | AK32: 0 | AL32: 844 | AM32: 514 | AN32: 378
C33: =IF('QRY - ExportPupilNumbersbyYearG'!K12 ="","n/a",'QRY - ExportPupilNumbersbyYearG'!K12) -> Cheapside CE Primary School | D33: =IF($C33="n/a","",'QRY - ExportPupilNumbersbyYearG'!E12) -> Ascot | E33: =IF($C33="n/a","",'QRY - ExportPupilNumbersbyYearG'!F12) -> Ascot | F33: =IF($C33="n/a","",'QRY - ExportPupilNumbersbyYearG'!G12) -> Cheapside | G33: =IF($C33="n/a","",'QRY - ExportPupilNumbersbyYearG'!I12) -> Primary | H33: =IF($C33="n/a","",'QRY - ExportPupilNumbersbyYearG'!H12) -> Two Tier | I33: =IF($C33="n/a","",'QRY - ExportPupilNumbersbyYearG'!J12) -> JMI | J33: =IF($C33="n/a","",'QRY - ExportPupilNumbersbyYearG'!L12) -> Voluntary Aided | K33: =IF('QRY - ExportPupilNumbersbyYearG'!Q12="","",'QRY - ExportPupilNumbersbyYearG'!Q12) ->  | L33: =IF($C33="n/a","",'QRY - ExportPupilNumbersbyYearG'!M12) -> Church of England | M33: =IF($C33<>"n/a",'QRY - ExportPupilNumbersbyYearG'!R12,"n/a") -> 0 | N33: =IF($C33<>"n/a",'QRY - ExportPupilNumbersbyYearG'!S12,"n/a") -> 0 | O33: =IF($C33<>"n/a",'QRY - ExportPupilNumbersbyYearG'!T12,"n/a") -> 0 | P33: =IF($C33<>"n/a",'QRY - ExportPupilNumbersbyYearG'!U12,"n/a") -> 0 | Q33: =IF($C33<>"n/a",'QRY - ExportPupilNumbersbyYearG'!V12,"n/a") -> 29 | R33: =IF($C33<>"n/a",'QRY - ExportPupilNumbersbyYearG'!W12,"n/a") -> 30 | S33: =IF($C33<>"n/a",'QRY - ExportPupilNumbersbyYearG'!X12,"n/a") -> 29 | T33: =IF($C33<>"n/a",'QRY - ExportPupilNumbersbyYearG'!Y12,"n/a") -> 28 | U33: =IF($C33<>"n/a",'QRY - ExportPupilNumbersbyYearG'!Z12,"n/a") -> 29 | V33: =IF($C33<>"n/a",'QRY - ExportPupilNumbersbyYearG'!AA12,"n/a") -> 30 | W33: =IF($C33<>"n/a",'QRY - ExportPupilNumbersbyYearG'!AB12,"n/a") -> 30 | X33: =IF($C33<>"n/a",'QRY - ExportPupilNumbersbyYearG'!AC12,"n/a") -> 0 | Y33: =IF($C33<>"n/a",'QRY - ExportPupilNumbersbyYearG'!AD12,"n/a") -> 0 | Z33: =IF($C33<>"n/a",'QRY - ExportPupilNumbersbyYearG'!AE12,"n/a") -> 0 | AA33: =IF($C33<>"n/a",'QRY - ExportPupilNumbersbyYearG'!AF12,"n/a") -> 0 | AB33: =IF($C33<>"n/a",'QRY - ExportPupilNumbersbyYearG'!AG12,"n/a") -> 0 | AC33: =IF($C33<>"n/a",'QRY - ExportPupilNumbersbyYearG'!AH12,"n/a") -> 0 | AD33: =IF($C33<>"n/a",'QRY - ExportPupilNumbersbyYearG'!AI12,"n/a") -> 0 | AE33: =IF($C33<>"n/a",'QRY - ExportPupilNumbersbyYearG'!AJ12,"n/a") -> 0 | AF33: =IF($C33<>"n/a",'QRY - ExportPupilNumbersbyYearG'!AK12,"n/a") -> 0 | AG33: 205 | AH33: 205 | AI33: 29 | AJ33: 59 | AK33: 117 | AL33: 0 | AM33: 0 | AN33: 0
C34: =IF('QRY - ExportPupilNumbersbyYearG'!K13 ="","n/a",'QRY - ExportPupilNumbersbyYearG'!K13) -> Churchmead Church of England School | D34: =IF($C34="n/a","",'QRY - ExportPupilNumbersbyYearG'!E13) -> Datchet & Wraysbury | E34: =IF($C34="n/a","",'QRY - ExportPupilNumbersbyYearG'!F13) -> Datchet and Wraysbury | F34: =IF($C34="n/a","",'QRY - ExportPupilNumbersbyYearG'!G13) -> Datchet East | G34: =IF($C34="n/a","",'QRY - ExportPupilNumbersbyYearG'!I13) -> Secondary | H34: =IF($C34="n/a","",'QRY - ExportPupilNumbersbyYearG'!H13) -> Two Tier | I34: =IF($C34="n/a","",'QRY - ExportPupilNumbersbyYearG'!J13) -> Secondary | J34: =IF($C34="n/a","",'QRY - ExportPupilNumbersbyYearG'!L13) -> Voluntary Aided | K34: =IF('QRY - ExportPupilNumbersbyYearG'!Q13="","",'QRY - ExportPupilNumbersbyYearG'!Q13) ->  | L34: =IF($C34="n/a","",'QRY - ExportPupilNumbersbyYearG'!M13) -> Church of England | M34: =IF($C34<>"n/a",'QRY - ExportPupilNumbersbyYearG'!R13,"n/a") -> 0 | N34: =IF($C34<>"n/a",'QRY - ExportPupilNumbersbyYearG'!S13,"n/a") -> 0 | O34: =IF($C34<>"n/a",'QRY - ExportPupilNumbersbyYearG'!T13,"n/a") -> 0 | P34: =IF($C34<>"n/a",'QRY - ExportPupilNumbersbyYearG'!U13,"n/a") -> 0 | Q34: =IF($C34<>"n/a",'QRY - ExportPupilNumbersbyYearG'!V13,"n/a") -> 0 | R34: =IF($C34<>"n/a",'QRY - ExportPupilNumbersbyYearG'!W13,"n/a") -> 0 | S34: =IF($C34<>"n/a",'QRY - ExportPupilNumbersbyYearG'!X13,"n/a") -> 0 | T34: =IF($C34<>"n/a",'QRY - ExportPupilNumbersbyYearG'!Y13,"n/a") -> 0 | U34: =IF($C34<>"n/a",'QRY - ExportPupilNumbersbyYearG'!Z13,"n/a") -> 0 | V34: =IF($C34<>"n/a",'QRY - ExportPupilNumbersbyYearG'!AA13,"n/a") -> 0 | W34: =IF($C34<>"n/a",'QRY - ExportPupilNumbersbyYearG'!AB13,"n/a") -> 0 | X34: =IF($C34<>"n/a",'QRY - ExportPupilNumbersbyYearG'!AC13,"n/a") -> 119 | Y34: =IF($C34<>"n/a",'QRY - ExportPupilNumbersbyYearG'!AD13,"n/a") -> 90 | Z34: =IF($C34<>"n/a",'QRY - ExportPupilNumbersbyYearG'!AE13,"n/a") -> 97 | AA34: =IF($C34<>"n/a",'QRY - ExportPupilNumbersbyYearG'!AF13,"n/a") -> 57 | AB34: =IF($C34<>"n/a",'QRY - ExportPupilNumbersbyYearG'!AG13,"n/a") -> 53 | AC34: =IF($C34<>"n/a",'QRY - ExportPupilNumbersbyYearG'!AH13,"n/a") -> 0 | AD34: =IF($C34<>"n/a",'QRY - ExportPupilNumbersbyYearG'!AI13,"n/a") -> 0 | AE34: =IF($C34<>"n/a",'QRY - ExportPupilNumbersbyYearG'!AJ13,"n/a") -> 0 | AF34: =IF($C34<>"n/a",'QRY - ExportPupilNumbersbyYearG'!AK13,"n/a") -> 0 | AG34: 416 | AH34: 416 | AI34: 0 | AJ34: 0 | AK34: 0 | AL34: 306 | AM34: 110 | AN34: 0
C35: =IF('QRY - ExportPupilNumbersbyYearG'!K14 ="","n/a",'QRY - ExportPupilNumbersbyYearG'!K14) -> Clewer Green CE School | D35: =IF($C35="n/a","",'QRY - ExportPupilNumbersbyYearG'!E14) -> Windsor | E35: =IF($C35="n/a","",'QRY - ExportPupilNumbersbyYearG'!F14) -> Windsor South | F35: =IF($C35="n/a","",'QRY - ExportPupilNumbersbyYearG'!G14) -> New Town | G35: =IF($C35="n/a","",'QRY - ExportPupilNumbersbyYearG'!I14) -> Primary | H35: =IF($C35="n/a","",'QRY - ExportPupilNumbersbyYearG'!H14) -> Three Tier | I35: =IF($C35="n/a","",'QRY - ExportPupilNumbersbyYearG'!J14) -> First | J35: =IF($C35="n/a","",'QRY - ExportPupilNumbersbyYearG'!L14) -> Academy | K35: =IF('QRY - ExportPupilNumbersbyYearG'!Q14="","",'QRY - ExportPupilNumbersbyYearG'!Q14) -> 2020-04-01 | L35: =IF($C35="n/a","",'QRY - ExportPupilNumbersbyYearG'!M14) -> Church of England | M35: =IF($C35<>"n/a",'QRY - ExportPupilNumbersbyYearG'!R14,"n/a") -> 0 | N35: =IF($C35<>"n/a",'QRY - ExportPupilNumbersbyYearG'!S14,"n/a") -> 0 | O35: =IF($C35<>"n/a",'QRY - ExportPupilNumbersbyYearG'!T14,"n/a") -> 0 | P35: =IF($C35<>"n/a",'QRY - ExportPupilNumbersbyYearG'!U14,"n/a") -> 0 | Q35: =IF($C35<>"n/a",'QRY - ExportPupilNumbersbyYearG'!V14,"n/a") -> 59 | R35: =IF($C35<>"n/a",'QRY - ExportPupilNumbersbyYearG'!W14,"n/a") -> 53 | S35: =IF($C35<>"n/a",'QRY - ExportPupilNumbersbyYearG'!X14,"n/a") -> 47 | T35: =IF($C35<>"n/a",'QRY - ExportPupilNumbersbyYearG'!Y14,"n/a") -> 60 | U35: =IF($C35<>"n/a",'QRY - ExportPupilNumbersbyYearG'!Z14,"n/a") -> 55 | V35: =IF($C35<>"n/a",'QRY - ExportPupilNumbersbyYearG'!AA14,"n/a") -> 0 | W35: =IF($C35<>"n/a",'QRY - ExportPupilNumbersbyYearG'!AB14,"n/a") -> 0 | X35: =IF($C35<>"n/a",'QRY - ExportPupilNumbersbyYearG'!AC14,"n/a") -> 0 | Y35: =IF($C35<>"n/a",'QRY - ExportPupilNumbersbyYearG'!AD14,"n/a") -> 0 | Z35: =IF($C35<>"n/a",'QRY - ExportPupilNumbersbyYearG'!AE14,"n/a") -> 0 | AA35: =IF($C35<>"n/a",'QRY - ExportPupilNumbersbyYearG'!AF14,"n/a") -> 0 | AB35: =IF($C35<>"n/a",'QRY - ExportPupilNumbersbyYearG'!AG14,"n/a") -> 0 | AC35: =IF($C35<>"n/a",'QRY - ExportPupilNumbersbyYearG'!AH14,"n/a") -> 0 | AD35: =IF($C35<>"n/a",'QRY - ExportPupilNumbersbyYearG'!AI14,"n/a") -> 0 | AE35: =IF($C35<>"n/a",'QRY - ExportPupilNumbersbyYearG'!AJ14,"n/a") -> 0 | AF35: =IF($C35<>"n/a",'QRY - ExportPupilNumbersbyYearG'!AK14,"n/a") -> 0 | AG35: 274 | AH35: 274 | AI35: 59 | AJ35: 100 | AK35: 115 | AL35: 0 | AM35: 0 | AN35: 0
C36: =IF('QRY - ExportPupilNumbersbyYearG'!K15 ="","n/a",'QRY - ExportPupilNumbersbyYearG'!K15) -> Cookham Dean CE Primary School | D36: =IF($C36="n/a","",'QRY - ExportPupilNumbersbyYearG'!E15) -> Maidenhead | E36: =IF($C36="n/a","",'QRY - ExportPupilNumbersbyYearG'!F15) -> Bisham and Cookham | F36: =IF($C36="n/a","",'QRY - ExportPupilNumbersbyYearG'!G15) -> Cookham Dean South | G36: =IF($C36="n/a","",'QRY - ExportPupilNumbersbyYearG'!I15) -> Primary | H36: =IF($C36="n/a","",'QRY - ExportPupilNumbersbyYearG'!H15) -> Two Tier | I36: =IF($C36="n/a","",'QRY - ExportPupilNumbersbyYearG'!J15) -> JMI | J36: =IF($C36="n/a","",'QRY - ExportPupilNumbersbyYearG'!L15) -> Voluntary Aided | K36: =IF('QRY - ExportPupilNumbersbyYearG'!Q15="","",'QRY - ExportPupilNumbersbyYearG'!Q15) ->  | L36: =IF($C36="n/a","",'QRY - ExportPupilNumbersbyYearG'!M15) -> Church of England | M36: =IF($C36<>"n/a",'QRY - ExportPupilNumbersbyYearG'!R15,"n/a") -> 0 | N36: =IF($C36<>"n/a",'QRY - ExportPupilNumbersbyYearG'!S15,"n/a") -> 0 | O36: =IF($C36<>"n/a",'QRY - ExportPupilNumbersbyYearG'!T15,"n/a") -> 0 | P36: =IF($C36<>"n/a",'QRY - ExportPupilNumbersbyYearG'!U15,"n/a") -> 0 | Q36: =IF($C36<>"n/a",'QRY - ExportPupilNumbersbyYearG'!V15,"n/a") -> 27 | R36: =IF($C36<>"n/a",'QRY - ExportPupilNumbersbyYearG'!W15,"n/a") -> 27 | S36: =IF($C36<>"n/a",'QRY - ExportPupilNumbersbyYearG'!X15,"n/a") -> 28 | T36: =IF($C36<>"n/a",'QRY - ExportPupilNumbersbyYearG'!Y15,"n/a") -> 27 | U36: =IF($C36<>"n/a",'QRY - ExportPupilNumbersbyYearG'!Z15,"n/a") -> 25 | V36: =IF($C36<>"n/a",'QRY - ExportPupilNumbersbyYearG'!AA15,"n/a") -> 28 | W36: =IF($C36<>"n/a",'QRY - ExportPupilNumbersbyYearG'!AB15,"n/a") -> 27 | X36: =IF($C36<>"n/a",'QRY - ExportPupilNumbersbyYearG'!AC15,"n/a") -> 0 | Y36: =IF($C36<>"n/a",'QRY - ExportPupilNumbersbyYearG'!AD15,"n/a") -> 0 | Z36: =IF($C36<>"n/a",'QRY - ExportPupilNumbersbyYearG'!AE15,"n/a") -> 0 | AA36: =IF($C36<>"n/a",'QRY - ExportPupilNumbersbyYearG'!AF15,"n/a") -> 0 | AB36: =IF($C36<>"n/a",'QRY - ExportPupilNumbersbyYearG'!AG15,"n/a") -> 0 | AC36: =IF($C36<>"n/a",'QRY - ExportPupilNumbersbyYearG'!AH15,"n/a") -> 0 | AD36: =IF($C36<>"n/a",'QRY - ExportPupilNumbersbyYearG'!AI15,"n/a") -> 0 | AE36: =IF($C36<>"n/a",'QRY - ExportPupilNumbersbyYearG'!AJ15,"n/a") -> 0 | AF36: =IF($C36<>"n/a",'QRY - ExportPupilNumbersbyYearG'!AK15,"n/a") -> 0 | AG36: 189 | AH36: 189 | AI36: 27 | AJ36: 55 | AK36: 107 | AL36: 0 | AM36: 0 | AN36: 0
C37: =IF('QRY - ExportPupilNumbersbyYearG'!K16 ="","n/a",'QRY - ExportPupilNumbersbyYearG'!K16) -> Cookham Nursery School | D37: =IF($C37="n/a","",'QRY - ExportPupilNumbersbyYearG'!E16) -> Maidenhead | E37: =IF($C37="n/a","",'QRY - ExportPupilNumbersbyYearG'!F16) -> Bisham and Cookham | F37: =IF($C37="n/a","",'QRY - ExportPupilNumbersbyYearG'!G16) -> Cookham | G37: =IF($C37="n/a","",'QRY - ExportPupilNumbersbyYearG'!I16) -> Early Years | H37: =IF($C37="n/a","",'QRY - ExportPupilNumbersbyYearG'!H16) -> NA | I37: =IF($C37="n/a","",'QRY - ExportPupilNumbersbyYearG'!J16) -> Nursery School | J37: =IF($C37="n/a","",'QRY - ExportPupilNumbersbyYearG'!L16) -> Community | K37: =IF('QRY - ExportPupilNumbersbyYearG'!Q16="","",'QRY - ExportPupilNumbersbyYearG'!Q16) ->  | L37: =IF($C37="n/a","",'QRY - ExportPupilNumbersbyYearG'!M16) -> None | M37: =IF($C37<>"n/a",'QRY - ExportPupilNumbersbyYearG'!R16,"n/a") -> 0 | N37: =IF($C37<>"n/a",'QRY - ExportPupilNumbersbyYearG'!S16,"n/a") -> 0 | O37: =IF($C37<>"n/a",'QRY - ExportPupilNumbersbyYearG'!T16,"n/a") -> 14 | P37: =IF($C37<>"n/a",'QRY - ExportPupilNumbersbyYearG'!U16,"n/a") -> 58 | Q37: =IF($C37<>"n/a",'QRY - ExportPupilNumbersbyYearG'!V16,"n/a") -> 0 | R37: =IF($C37<>"n/a",'QRY - ExportPupilNumbersbyYearG'!W16,"n/a") -> 0 | S37: =IF($C37<>"n/a",'QRY - ExportPupilNumbersbyYearG'!X16,"n/a") -> 0 | T37: =IF($C37<>"n/a",'QRY - ExportPupilNumbersbyYearG'!Y16,"n/a") -> 0 | U37: =IF($C37<>"n/a",'QRY - ExportPupilNumbersbyYearG'!Z16,"n/a") -> 0 | V37: =IF($C37<>"n/a",'QRY - ExportPupilNumbersbyYearG'!AA16,"n/a") -> 0 | W37: =IF($C37<>"n/a",'QRY - ExportPupilNumbersbyYearG'!AB16,"n/a") -> 0 | X37: =IF($C37<>"n/a",'QRY - ExportPupilNumbersbyYearG'!AC16,"n/a") -> 0 | Y37: =IF($C37<>"n/a",'QRY - ExportPupilNumbersbyYearG'!AD16,"n/a") -> 0 | Z37: =IF($C37<>"n/a",'QRY - ExportPupilNumbersbyYearG'!AE16,"n/a") -> 0 | AA37: =IF($C37<>"n/a",'QRY - ExportPupilNumbersbyYearG'!AF16,"n/a") -> 0 | AB37: =IF($C37<>"n/a",'QRY - ExportPupilNumbersbyYearG'!AG16,"n/a") -> 0 | AC37: =IF($C37<>"n/a",'QRY - ExportPupilNumbersbyYearG'!AH16,"n/a") -> 0 | AD37: =IF($C37<>"n/a",'QRY - ExportPupilNumbersbyYearG'!AI16,"n/a") -> 0 | AE37: =IF($C37<>"n/a",'QRY - ExportPupilNumbersbyYearG'!AJ16,"n/a") -> 0 | AF37: =IF($C37<>"n/a",'QRY - ExportPupilNumbersbyYearG'!AK16,"n/a") -> 0 | AG37: 0 | AH37: 72 | AI37: 72 | AJ37: 0 | AK37: 0 | AL37: 0 | AM37: 0 | AN37: 0
C38: =IF('QRY - ExportPupilNumbersbyYearG'!K17 ="","n/a",'QRY - ExportPupilNumbersbyYearG'!K17) -> Cookham Rise Primary School | D38: =IF($C38="n/a","",'QRY - ExportPupilNumbersbyYearG'!E17) -> Maidenhead | E38: =IF($C38="n/a","",'QRY - ExportPupilNumbersbyYearG'!F17) -> Bisham and Cookham | F38: =IF($C38="n/a","",'QRY - ExportPupilNumbersbyYearG'!G17) -> Cookham Rise | G38: =IF($C38="n/a","",'QRY - ExportPupilNumbersbyYearG'!I17) -> Primary | H38: =IF($C38="n/a","",'QRY - ExportPupilNumbersbyYearG'!H17) -> Two Tier | I38: =IF($C38="n/a","",'QRY - ExportPupilNumbersbyYearG'!J17) -> JMI | J38: =IF($C38="n/a","",'QRY - ExportPupilNumbersbyYearG'!L17) -> Community | K38: =IF('QRY - ExportPupilNumbersbyYearG'!Q17="","",'QRY - ExportPupilNumbersbyYearG'!Q17) ->  | L38: =IF($C38="n/a","",'QRY - ExportPupilNumbersbyYearG'!M17) -> None | M38: =IF($C38<>"n/a",'QRY - ExportPupilNumbersbyYearG'!R17,"n/a") -> 0 | N38: =IF($C38<>"n/a",'QRY - ExportPupilNumbersbyYearG'!S17,"n/a") -> 0 | O38: =IF($C38<>"n/a",'QRY - ExportPupilNumbersbyYearG'!T17,"n/a") -> 0 | P38: =IF($C38<>"n/a",'QRY - ExportPupilNumbersbyYearG'!U17,"n/a") -> 0 | Q38: =IF($C38<>"n/a",'QRY - ExportPupilNumbersbyYearG'!V17,"n/a") -> 30 | R38: =IF($C38<>"n/a",'QRY - ExportPupilNumbersbyYearG'!W17,"n/a") -> 30 | S38: =IF($C38<>"n/a",'QRY - ExportPupilNumbersbyYearG'!X17,"n/a") -> 29 | T38: =IF($C38<>"n/a",'QRY - ExportPupilNumbersbyYearG'!Y17,"n/a") -> 30 | U38: =IF($C38<>"n/a",'QRY - ExportPupilNumbersbyYearG'!Z17,"n/a") -> 31 | V38: =IF($C38<>"n/a",'QRY - ExportPupilNumbersbyYearG'!AA17,"n/a") -> 30 | W38: =IF($C38<>"n/a",'QRY - ExportPupilNumbersbyYearG'!AB17,"n/a") -> 29 | X38: =IF($C38<>"n/a",'QRY - ExportPupilNumbersbyYearG'!AC17,"n/a") -> 0 | Y38: =IF($C38<>"n/a",'QRY - ExportPupilNumbersbyYearG'!AD17,"n/a") -> 0 | Z38: =IF($C38<>"n/a",'QRY - ExportPupilNumbersbyYearG'!AE17,"n/a") -> 0 | AA38: =IF($C38<>"n/a",'QRY - ExportPupilNumbersbyYearG'!AF17,"n/a") -> 0 | AB38: =IF($C38<>"n/a",'QRY - ExportPupilNumbersbyYearG'!AG17,"n/a") -> 0 | AC38: =IF($C38<>"n/a",'QRY - ExportPupilNumbersbyYearG'!AH17,"n/a") -> 0 | AD38: =IF($C38<>"n/a",'QRY - ExportPupilNumbersbyYearG'!AI17,"n/a") -> 0 | AE38: =IF($C38<>"n/a",'QRY - ExportPupilNumbersbyYearG'!AJ17,"n/a") -> 0 | AF38: =IF($C38<>"n/a",'QRY - ExportPupilNumbersbyYearG'!AK17,"n/a") -> 0 | AG38: 209 | AH38: 209 | AI38: 30 | AJ38: 59 | AK38: 120 | AL38: 0 | AM38: 0 | AN38: 0
C39: =IF('QRY - ExportPupilNumbersbyYearG'!K18 ="","n/a",'QRY - ExportPupilNumbersbyYearG'!K18) -> Courthouse Junior School | D39: =IF($C39="n/a","",'QRY - ExportPupilNumbersbyYearG'!E18) -> Maidenhead | E39: =IF($C39="n/a","",'QRY - ExportPupilNumbersbyYearG'!F18) -> North West Maidenhead | F39: =IF($C39="n/a","",'QRY - ExportPupilNumbersbyYearG'!G18) -> St Mark's | G39: =IF($C39="n/a","",'QRY - ExportPupilNumbersbyYearG'!I18) -> Primary | H39: =IF($C39="n/a","",'QRY - ExportPupilNumbersbyYearG'!H18) -> Two Tier | I39: =IF($C39="n/a","",'QRY - ExportPupilNumbersbyYearG'!J18) -> Junior | J39: =IF($C39="n/a","",'QRY - ExportPupilNumbersbyYearG'!L18) -> Community | K39: =IF('QRY - ExportPupilNumbersbyYearG'!Q18="","",'QRY - ExportPupilNumbersbyYearG'!Q18) ->  | L39: =IF($C39="n/a","",'QRY - ExportPupilNumbersbyYearG'!M18) -> None | M39: =IF($C39<>"n/a",'QRY - ExportPupilNumbersbyYearG'!R18,"n/a") -> 0 | N39: =IF($C39<>"n/a",'QRY - ExportPupilNumbersbyYearG'!S18,"n/a") -> 0 | O39: =IF($C39<>"n/a",'QRY - ExportPupilNumbersbyYearG'!T18,"n/a") -> 0 | P39: =IF($C39<>"n/a",'QRY - ExportPupilNumbersbyYearG'!U18,"n/a") -> 0 | Q39: =IF($C39<>"n/a",'QRY - ExportPupilNumbersbyYearG'!V18,"n/a") -> 0 | R39: =IF($C39<>"n/a",'QRY - ExportPupilNumbersbyYearG'!W18,"n/a") -> 0 | S39: =IF($C39<>"n/a",'QRY - ExportPupilNumbersbyYearG'!X18,"n/a") -> 0 | T39: =IF($C39<>"n/a",'QRY - ExportPupilNumbersbyYearG'!Y18,"n/a") -> 85 | U39: =IF($C39<>"n/a",'QRY - ExportPupilNumbersbyYearG'!Z18,"n/a") -> 103 | V39: =IF($C39<>"n/a",'QRY - ExportPupilNumbersbyYearG'!AA18,"n/a") -> 78 | W39: =IF($C39<>"n/a",'QRY - ExportPupilNumbersbyYearG'!AB18,"n/a") -> 97 | X39: =IF($C39<>"n/a",'QRY - ExportPupilNumbersbyYearG'!AC18,"n/a") -> 0 | Y39: =IF($C39<>"n/a",'QRY - ExportPupilNumbersbyYearG'!AD18,"n/a") -> 0 | Z39: =IF($C39<>"n/a",'QRY - ExportPupilNumbersbyYearG'!AE18,"n/a") -> 0 | AA39: =IF($C39<>"n/a",'QRY - ExportPupilNumbersbyYearG'!AF18,"n/a") -> 0 | AB39: =IF($C39<>"n/a",'QRY - ExportPupilNumbersbyYearG'!AG18,"n/a") -> 0 | AC39: =IF($C39<>"n/a",'QRY - ExportPupilNumbersbyYearG'!AH18,"n/a") -> 0 | AD39: =IF($C39<>"n/a",'QRY - ExportPupilNumbersbyYearG'!AI18,"n/a") -> 0 | AE39: =IF($C39<>"n/a",'QRY - ExportPupilNumbersbyYearG'!AJ18,"n/a") -> 0 | AF39: =IF($C39<>"n/a",'QRY - ExportPupilNumbersbyYearG'!AK18,"n/a") -> 0 | AG39: 363 | AH39: 363 | AI39: 0 | AJ39: 0 | AK39: 363 | AL39: 0 | AM39: 0 | AN39: 0
C40: =IF('QRY - ExportPupilNumbersbyYearG'!K19 ="","n/a",'QRY - ExportPupilNumbersbyYearG'!K19) -> Cox Green School | D40: =IF($C40="n/a","",'QRY - ExportPupilNumbersbyYearG'!E19) -> Maidenhead | E40: =IF($C40="n/a","",'QRY - ExportPupilNumbersbyYearG'!F19) -> South West Maidenhead | F40: =IF($C40="n/a","",'QRY - ExportPupilNumbersbyYearG'!G19) -> Lowbrook | G40: =IF($C40="n/a","",'QRY - ExportPupilNumbersbyYearG'!I19) -> Secondary | H40: =IF($C40="n/a","",'QRY - ExportPupilNumbersbyYearG'!H19) -> Two Tier | I40: =IF($C40="n/a","",'QRY - ExportPupilNumbersbyYearG'!J19) -> Secondary | J40: =IF($C40="n/a","",'QRY - ExportPupilNumbersbyYearG'!L19) -> Academy | K40: =IF('QRY - ExportPupilNumbersbyYearG'!Q19="","",'QRY - ExportPupilNumbersbyYearG'!Q19) -> 2011-12-01 | L40: =IF($C40="n/a","",'QRY - ExportPupilNumbersbyYearG'!M19) -> None | M40: =IF($C40<>"n/a",'QRY - ExportPupilNumbersbyYearG'!R19,"n/a") -> 0 | N40: =IF($C40<>"n/a",'QRY - ExportPupilNumbersbyYearG'!S19,"n/a") -> 0 | O40: =IF($C40<>"n/a",'QRY - ExportPupilNumbersbyYearG'!T19,"n/a") -> 0 | P40: =IF($C40<>"n/a",'QRY - ExportPupilNumbersbyYearG'!U19,"n/a") -> 0 | Q40: =IF($C40<>"n/a",'QRY - ExportPupilNumbersbyYearG'!V19,"n/a") -> 0 | R40: =IF($C40<>"n/a",'QRY - ExportPupilNumbersbyYearG'!W19,"n/a") -> 0 | S40: =IF($C40<>"n/a",'QRY - ExportPupilNumbersbyYearG'!X19,"n/a") -> 0 | T40: =IF($C40<>"n/a",'QRY - ExportPupilNumbersbyYearG'!Y19,"n/a") -> 0 | U40: =IF($C40<>"n/a",'QRY - ExportPupilNumbersbyYearG'!Z19,"n/a") -> 0 | V40: =IF($C40<>"n/a",'QRY - ExportPupilNumbersbyYearG'!AA19,"n/a") -> 0 | W40: =IF($C40<>"n/a",'QRY - ExportPupilNumbersbyYearG'!AB19,"n/a") -> 0 | X40: =IF($C40<>"n/a",'QRY - ExportPupilNumbersbyYearG'!AC19,"n/a") -> 208 | Y40: =IF($C40<>"n/a",'QRY - ExportPupilNumbersbyYearG'!AD19,"n/a") -> 195 | Z40: =IF($C40<>"n/a",'QRY - ExportPupilNumbersbyYearG'!AE19,"n/a") -> 204 | AA40: =IF($C40<>"n/a",'QRY - ExportPupilNumbersbyYearG'!AF19,"n/a") -> 191 | AB40: =IF($C40<>"n/a",'QRY - ExportPupilNumbersbyYearG'!AG19,"n/a") -> 183 | AC40: =IF($C40<>"n/a",'QRY - ExportPupilNumbersbyYearG'!AH19,"n/a") -> 72 | AD40: =IF($C40<>"n/a",'QRY - ExportPupilNumbersbyYearG'!AI19,"n/a") -> 80 | AE40: =IF($C40<>"n/a",'QRY - ExportPupilNumbersbyYearG'!AJ19,"n/a") -> 0 | AF40: =IF($C40<>"n/a",'QRY - ExportPupilNumbersbyYearG'!AK19,"n/a") -> 0 | AG40: 1133 | AH40: 1133 | AI40: 0 | AJ40: 0 | AK40: 0 | AL40: 607 | AM40: 374 | AN40: 152
C41: =IF('QRY - ExportPupilNumbersbyYearG'!K20 ="","n/a",'QRY - ExportPupilNumbersbyYearG'!K20) -> Datchet St Mary's C of E Primary Academy | D41: =IF($C41="n/a","",'QRY - ExportPupilNumbersbyYearG'!E20) -> Datchet & Wraysbury | E41: =IF($C41="n/a","",'QRY - ExportPupilNumbersbyYearG'!F20) -> Datchet and Wraysbury | F41: =IF($C41="n/a","",'QRY - ExportPupilNumbersbyYearG'!G20) -> Datchet East | G41: =IF($C41="n/a","",'QRY - ExportPupilNumbersbyYearG'!I20) -> Primary | H41: =IF($C41="n/a","",'QRY - ExportPupilNumbersbyYearG'!H20) -> Two Tier | I41: =IF($C41="n/a","",'QRY - ExportPupilNumbersbyYearG'!J20) -> JMI | J41: =IF($C41="n/a","",'QRY - ExportPupilNumbersbyYearG'!L20) -> Academy | K41: =IF('QRY - ExportPupilNumbersbyYearG'!Q20="","",'QRY - ExportPupilNumbersbyYearG'!Q20) -> 2012-01-01 | L41: =IF($C41="n/a","",'QRY - ExportPupilNumbersbyYearG'!M20) -> Church of England | M41: =IF($C41<>"n/a",'QRY - ExportPupilNumbersbyYearG'!R20,"n/a") -> 0 | N41: =IF($C41<>"n/a",'QRY - ExportPupilNumbersbyYearG'!S20,"n/a") -> 0 | O41: =IF($C41<>"n/a",'QRY - ExportPupilNumbersbyYearG'!T20,"n/a") -> 4 | P41: =IF($C41<>"n/a",'QRY - ExportPupilNumbersbyYearG'!U20,"n/a") -> 22 | Q41: =IF($C41<>"n/a",'QRY - ExportPupilNumbersbyYearG'!V20,"n/a") -> 28 | R41: =IF($C41<>"n/a",'QRY - ExportPupilNumbersbyYearG'!W20,"n/a") -> 31 | S41: =IF($C41<>"n/a",'QRY - ExportPupilNumbersbyYearG'!X20,"n/a") -> 30 | T41: =IF($C41<>"n/a",'QRY - ExportPupilNumbersbyYearG'!Y20,"n/a") -> 31 | U41: =IF($C41<>"n/a",'QRY - ExportPupilNumbersbyYearG'!Z20,"n/a") -> 28 | V41: =IF($C41<>"n/a",'QRY - ExportPupilNumbersbyYearG'!AA20,"n/a") -> 30 | W41: =IF($C41<>"n/a",'QRY - ExportPupilNumbersbyYearG'!AB20,"n/a") -> 44 | X41: =IF($C41<>"n/a",'QRY - ExportPupilNumbersbyYearG'!AC20,"n/a") -> 0 | Y41: =IF($C41<>"n/a",'QRY - ExportPupilNumbersbyYearG'!AD20,"n/a") -> 0 | Z41: =IF($C41<>"n/a",'QRY - ExportPupilNumbersbyYearG'!AE20,"n/a") -> 0 | AA41: =IF($C41<>"n/a",'QRY - ExportPupilNumbersbyYearG'!AF20,"n/a") -> 0 | AB41: =IF($C41<>"n/a",'QRY - ExportPupilNumbersbyYearG'!AG20,"n/a") -> 0 | AC41: =IF($C41<>"n/a",'QRY - ExportPupilNumbersbyYearG'!AH20,"n/a") -> 0 | AD41: =IF($C41<>"n/a",'QRY - ExportPupilNumbersbyYearG'!AI20,"n/a") -> 0 | AE41: =IF($C41<>"n/a",'QRY - ExportPupilNumbersbyYearG'!AJ20,"n/a") -> 0 | AF41: =IF($C41<>"n/a",'QRY - ExportPupilNumbersbyYearG'!AK20,"n/a") -> 0 | AG41: 222 | AH41: 248 | AI41: 54 | AJ41: 61 | AK41: 133 | AL41: 0 | AM41: 0 | AN41: 0
C42: =IF('QRY - ExportPupilNumbersbyYearG'!K21 ="","n/a",'QRY - ExportPupilNumbersbyYearG'!K21) -> Dedworth Green First School | D42: =IF($C42="n/a","",'QRY - ExportPupilNumbersbyYearG'!E21) -> Windsor | E42: =IF($C42="n/a","",'QRY - ExportPupilNumbersbyYearG'!F21) -> Windsor North | F42: =IF($C42="n/a","",'QRY - ExportPupilNumbersbyYearG'!G21) -> Dedworth | G42: =IF($C42="n/a","",'QRY - ExportPupilNumbersbyYearG'!I21) -> Primary | H42: =IF($C42="n/a","",'QRY - ExportPupilNumbersbyYearG'!H21) -> Three Tier | I42: =IF($C42="n/a","",'QRY - ExportPupilNumbersbyYearG'!J21) -> First | J42: =IF($C42="n/a","",'QRY - ExportPupilNumbersbyYearG'!L21) -> Academy | K42: =IF('QRY - ExportPupilNumbersbyYearG'!Q21="","",'QRY - ExportPupilNumbersbyYearG'!Q21) -> 2016-05-01 | L42: =IF($C42="n/a","",'QRY - ExportPupilNumbersbyYearG'!M21) -> None | M42: =IF($C42<>"n/a",'QRY - ExportPupilNumbersbyYearG'!R21,"n/a") -> 0 | N42: =IF($C42<>"n/a",'QRY - ExportPupilNumbersbyYearG'!S21,"n/a") -> 0 | O42: =IF($C42<>"n/a",'QRY - ExportPupilNumbersbyYearG'!T21,"n/a") -> 11 | P42: =IF($C42<>"n/a",'QRY - ExportPupilNumbersbyYearG'!U21,"n/a") -> 6 | Q42: =IF($C42<>"n/a",'QRY - ExportPupilNumbersbyYearG'!V21,"n/a") -> 25 | R42: =IF($C42<>"n/a",'QRY - ExportPupilNumbersbyYearG'!W21,"n/a") -> 26 | S42: =IF($C42<>"n/a",'QRY - ExportPupilNumbersbyYearG'!X21,"n/a") -> 29 | T42: =IF($C42<>"n/a",'QRY - ExportPupilNumbersbyYearG'!Y21,"n/a") -> 30 | U42: =IF($C42<>"n/a",'QRY - ExportPupilNumbersbyYearG'!Z21,"n/a") -> 29 | V42: =IF($C42<>"n/a",'QRY - ExportPupilNumbersbyYearG'!AA21,"n/a") -> 0 | W42: =IF($C42<>"n/a",'QRY - ExportPupilNumbersbyYearG'!AB21,"n/a") -> 0 | X42: =IF($C42<>"n/a",'QRY - ExportPupilNumbersbyYearG'!AC21,"n/a") -> 0 | Y42: =IF($C42<>"n/a",'QRY - ExportPupilNumbersbyYearG'!AD21,"n/a") -> 0 | Z42: =IF($C42<>"n/a",'QRY - ExportPupilNumbersbyYearG'!AE21,"n/a") -> 0 | AA42: =IF($C42<>"n/a",'QRY - ExportPupilNumbersbyYearG'!AF21,"n/a") -> 0 | AB42: =IF($C42<>"n/a",'QRY - ExportPupilNumbersbyYearG'!AG21,"n/a") -> 0 | AC42: =IF($C42<>"n/a",'QRY - ExportPupilNumbersbyYearG'!AH21,"n/a") -> 0 | AD42: =IF($C42<>"n/a",'QRY - ExportPupilNumbersbyYearG'!AI21,"n/a") -> 0 | AE42: =IF($C42<>"n/a",'QRY - ExportPupilNumbersbyYearG'!AJ21,"n/a") -> 0 | AF42: =IF($C42<>"n/a",'QRY - ExportPupilNumbersbyYearG'!AK21,"n/a") -> 0 | AG42: 139 | AH42: 156 | AI42: 42 | AJ42: 55 | AK42: 59 | AL42: 0 | AM42: 0 | AN42: 0
C43: =IF('QRY - ExportPupilNumbersbyYearG'!K22 ="","n/a",'QRY - ExportPupilNumbersbyYearG'!K22) -> Dedworth Middle School | D43: =IF($C43="n/a","",'QRY - ExportPupilNumbersbyYearG'!E22) -> Windsor | E43: =IF($C43="n/a","",'QRY - ExportPupilNumbersbyYearG'!F22) -> Windsor North | F43: =IF($C43="n/a","",'QRY - ExportPupilNumbersbyYearG'!G22) -> Dedworth | G43: =IF($C43="n/a","",'QRY - ExportPupilNumbersbyYearG'!I22) -> Secondary | H43: =IF($C43="n/a","",'QRY - ExportPupilNumbersbyYearG'!H22) -> Three Tier | I43: =IF($C43="n/a","",'QRY - ExportPupilNumbersbyYearG'!J22) -> Middle | J43: =IF($C43="n/a","",'QRY - ExportPupilNumbersbyYearG'!L22) -> Academy | K43: =IF('QRY - ExportPupilNumbersbyYearG'!Q22="","",'QRY - ExportPupilNumbersbyYearG'!Q22) -> 2016-05-01 | L43: =IF($C43="n/a","",'QRY - ExportPupilNumbersbyYearG'!M22) -> None | M43: =IF($C43<>"n/a",'QRY - ExportPupilNumbersbyYearG'!R22,"n/a") -> 0 | N43: =IF($C43<>"n/a",'QRY - ExportPupilNumbersbyYearG'!S22,"n/a") -> 0 | O43: =IF($C43<>"n/a",'QRY - ExportPupilNumbersbyYearG'!T22,"n/a") -> 0 | P43: =IF($C43<>"n/a",'QRY - ExportPupilNumbersbyYearG'!U22,"n/a") -> 0 | Q43: =IF($C43<>"n/a",'QRY - ExportPupilNumbersbyYearG'!V22,"n/a") -> 0 | R43: =IF($C43<>"n/a",'QRY - ExportPupilNumbersbyYearG'!W22,"n/a") -> 0 | S43: =IF($C43<>"n/a",'QRY - ExportPupilNumbersbyYearG'!X22,"n/a") -> 0 | T43: =IF($C43<>"n/a",'QRY - ExportPupilNumbersbyYearG'!Y22,"n/a") -> 0 | U43: =IF($C43<>"n/a",'QRY - ExportPupilNumbersbyYearG'!Z22,"n/a") -> 0 | V43: =IF($C43<>"n/a",'QRY - ExportPupilNumbersbyYearG'!AA22,"n/a") -> 122 | W43: =IF($C43<>"n/a",'QRY - ExportPupilNumbersbyYearG'!AB22,"n/a") -> 135 | X43: =IF($C43<>"n/a",'QRY - ExportPupilNumbersbyYearG'!AC22,"n/a") -> 112 | Y43: =IF($C43<>"n/a",'QRY - ExportPupilNumbersbyYearG'!AD22,"n/a") -> 125 | Z43: =IF($C43<>"n/a",'QRY - ExportPupilNumbersbyYearG'!AE22,"n/a") -> 0 | AA43: =IF($C43<>"n/a",'QRY - ExportPupilNumbersbyYearG'!AF22,"n/a") -> 0 | AB43: =IF($C43<>"n/a",'QRY - ExportPupilNumbersbyYearG'!AG22,"n/a") -> 0 | AC43: =IF($C43<>"n/a",'QRY - ExportPupilNumbersbyYearG'!AH22,"n/a") -> 0 | AD43: =IF($C43<>"n/a",'QRY - ExportPupilNumbersbyYearG'!AI22,"n/a") -> 0 | AE43: =IF($C43<>"n/a",'QRY - ExportPupilNumbersbyYearG'!AJ22,"n/a") -> 0 | AF43: =IF($C43<>"n/a",'QRY - ExportPupilNumbersbyYearG'!AK22,"n/a") -> 0 | AG43: 494 | AH43: 494 | AI43: 0 | AJ43: 0 | AK43: 257 | AL43: 237 | AM43: 0 | AN43: 0
C44: =IF('QRY - ExportPupilNumbersbyYearG'!K23 ="","n/a",'QRY - ExportPupilNumbersbyYearG'!K23) -> Desborough College | D44: =IF($C44="n/a","",'QRY - ExportPupilNumbersbyYearG'!E23) -> Maidenhead | E44: =IF($C44="n/a","",'QRY - ExportPupilNumbersbyYearG'!F23) -> Central Maidenhead | F44: =IF($C44="n/a","",'QRY - ExportPupilNumbersbyYearG'!G23) -> Larchfield East | G44: =IF($C44="n/a","",'QRY - ExportPupilNumbersbyYearG'!I23) -> Secondary | H44: =IF($C44="n/a","",'QRY - ExportPupilNumbersbyYearG'!H23) -> Two Tier | I44: =IF($C44="n/a","",'QRY - ExportPupilNumbersbyYearG'!J23) -> Secondary | J44: =IF($C44="n/a","",'QRY - ExportPupilNumbersbyYearG'!L23) -> Academy | K44: =IF('QRY - ExportPupilNumbersbyYearG'!Q23="","",'QRY - ExportPupilNumbersbyYearG'!Q23) -> 2012-10-01 | L44: =IF($C44="n/a","",'QRY - ExportPupilNumbersbyYearG'!M23) -> None | M44: =IF($C44<>"n/a",'QRY - ExportPupilNumbersbyYearG'!R23,"n/a") -> 0 | N44: =IF($C44<>"n/a",'QRY - ExportPupilNumbersbyYearG'!S23,"n/a") -> 0 | O44: =IF($C44<>"n/a",'QRY - ExportPupilNumbersbyYearG'!T23,"n/a") -> 0 | P44: =IF($C44<>"n/a",'QRY - ExportPupilNumbersbyYearG'!U23,"n/a") -> 0 | Q44: =IF($C44<>"n/a",'QRY - ExportPupilNumbersbyYearG'!V23,"n/a") -> 0 | R44: =IF($C44<>"n/a",'QRY - ExportPupilNumbersbyYearG'!W23,"n/a") -> 0 | S44: =IF($C44<>"n/a",'QRY - ExportPupilNumbersbyYearG'!X23,"n/a") -> 0 | T44: =IF($C44<>"n/a",'QRY - ExportPupilNumbersbyYearG'!Y23,"n/a") -> 0 | U44: =IF($C44<>"n/a",'QRY - ExportPupilNumbersbyYearG'!Z23,"n/a") -> 0 | V44: =IF($C44<>"n/a",'QRY - ExportPupilNumbersbyYearG'!AA23,"n/a") -> 0 | W44: =IF($C44<>"n/a",'QRY - ExportPupilNumbersbyYearG'!AB23,"n/a") -> 0 | X44: =IF($C44<>"n/a",'QRY - ExportPupilNumbersbyYearG'!AC23,"n/a") -> 140 | Y44: =IF($C44<>"n/a",'QRY - ExportPupilNumbersbyYearG'!AD23,"n/a") -> 179 | Z44: =IF($C44<>"n/a",'QRY - ExportPupilNumbersbyYearG'!AE23,"n/a") -> 179 | AA44: =IF($C44<>"n/a",'QRY - ExportPupilNumbersbyYearG'!AF23,"n/a") -> 182 | AB44: =IF($C44<>"n/a",'QRY - ExportPupilNumbersbyYearG'!AG23,"n/a") -> 153 | AC44: =IF($C44<>"n/a",'QRY - ExportPupilNumbersbyYearG'!AH23,"n/a") -> 59 | AD44: =IF($C44<>"n/a",'QRY - ExportPupilNumbersbyYearG'!AI23,"n/a") -> 36 | AE44: =IF($C44<>"n/a",'QRY - ExportPupilNumbersbyYearG'!AJ23,"n/a") -> 0 | AF44: =IF($C44<>"n/a",'QRY - ExportPupilNumbersbyYearG'!AK23,"n/a") -> 0 | AG44: 928 | AH44: 928 | AI44: 0 | AJ44: 0 | AK44: 0 | AL44: 498 | AM44: 335 | AN44: 95
C45: =IF('QRY - ExportPupilNumbersbyYearG'!K24 ="","n/a",'QRY - ExportPupilNumbersbyYearG'!K24) -> Eton Porny C of E First School | D45: =IF($C45="n/a","",'QRY - ExportPupilNumbersbyYearG'!E24) -> Windsor | E45: =IF($C45="n/a","",'QRY - ExportPupilNumbersbyYearG'!F24) -> Eton | F45: =IF($C45="n/a","",'QRY - ExportPupilNumbersbyYearG'!G24) -> Eton | G45: =IF($C45="n/a","",'QRY - ExportPupilNumbersbyYearG'!I24) -> Primary | H45: =IF($C45="n/a","",'QRY - ExportPupilNumbersbyYearG'!H24) -> Three Tier | I45: =IF($C45="n/a","",'QRY - ExportPupilNumbersbyYearG'!J24) -> First | J45: =IF($C45="n/a","",'QRY - ExportPupilNumbersbyYearG'!L24) -> Academy | K45: =IF('QRY - ExportPupilNumbersbyYearG'!Q24="","",'QRY - ExportPupilNumbersbyYearG'!Q24) -> 2016-02-01 | L45: =IF($C45="n/a","",'QRY - ExportPupilNumbersbyYearG'!M24) -> Church of England | M45: =IF($C45<>"n/a",'QRY - ExportPupilNumbersbyYearG'!R24,"n/a") -> 0 | N45: =IF($C45<>"n/a",'QRY - ExportPupilNumbersbyYearG'!S24,"n/a") -> 0 | O45: =IF($C45<>"n/a",'QRY - ExportPupilNumbersbyYearG'!T24,"n/a") -> 0 | P45: =IF($C45<>"n/a",'QRY - ExportPupilNumbersbyYearG'!U24,"n/a") -> 0 | Q45: =IF($C45<>"n/a",'QRY - ExportPupilNumbersbyYearG'!V24,"n/a") -> 30 | R45: =IF($C45<>"n/a",'QRY - ExportPupilNumbersbyYearG'!W24,"n/a") -> 30 | S45: =IF($C45<>"n/a",'QRY - ExportPupilNumbersbyYearG'!X24,"n/a") -> 30 | T45: =IF($C45<>"n/a",'QRY - ExportPupilNumbersbyYearG'!Y24,"n/a") -> 24 | U45: =IF($C45<>"n/a",'QRY - ExportPupilNumbersbyYearG'!Z24,"n/a") -> 22 | V45: =IF($C45<>"n/a",'QRY - ExportPupilNumbersbyYearG'!AA24,"n/a") -> 0 | W45: =IF($C45<>"n/a",'QRY - ExportPupilNumbersbyYearG'!AB24,"n/a") -> 0 | X45: =IF($C45<>"n/a",'QRY - ExportPupilNumbersbyYearG'!AC24,"n/a") -> 0 | Y45: =IF($C45<>"n/a",'QRY - ExportPupilNumbersbyYearG'!AD24,"n/a") -> 0 | Z45: =IF($C45<>"n/a",'QRY - ExportPupilNumbersbyYearG'!AE24,"n/a") -> 0 | AA45: =IF($C45<>"n/a",'QRY - ExportPupilNumbersbyYearG'!AF24,"n/a") -> 0 | AB45: =IF($C45<>"n/a",'QRY - ExportPupilNumbersbyYearG'!AG24,"n/a") -> 0 | AC45: =IF($C45<>"n/a",'QRY - ExportPupilNumbersbyYearG'!AH24,"n/a") -> 0 | AD45: =IF($C45<>"n/a",'QRY - ExportPupilNumbersbyYearG'!AI24,"n/a") -> 0 | AE45: =IF($C45<>"n/a",'QRY - ExportPupilNumbersbyYearG'!AJ24,"n/a") -> 0 | AF45: =IF($C45<>"n/a",'QRY - ExportPupilNumbersbyYearG'!AK24,"n/a") -> 0 | AG45: 136 | AH45: 136 | AI45: 30 | AJ45: 60 | AK45: 46 | AL45: 0 | AM45: 0 | AN45: 0
C46: =IF('QRY - ExportPupilNumbersbyYearG'!K25 ="","n/a",'QRY - ExportPupilNumbersbyYearG'!K25) -> Eton Wick C of E First School | D46: =IF($C46="n/a","",'QRY - ExportPupilNumbersbyYearG'!E25) -> Windsor | E46: =IF($C46="n/a","",'QRY - ExportPupilNumbersbyYearG'!F25) -> Eton | F46: =IF($C46="n/a","",'QRY - ExportPupilNumbersbyYearG'!G25) -> Eton Wick | G46: =IF($C46="n/a","",'QRY - ExportPupilNumbersbyYearG'!I25) -> Primary | H46: =IF($C46="n/a","",'QRY - ExportPupilNumbersbyYearG'!H25) -> Three Tier | I46: =IF($C46="n/a","",'QRY - ExportPupilNumbersbyYearG'!J25) -> First | J46: =IF($C46="n/a","",'QRY - ExportPupilNumbersbyYearG'!L25) -> Voluntary Controlled | K46: =IF('QRY - ExportPupilNumbersbyYearG'!Q25="","",'QRY - ExportPupilNumbersbyYearG'!Q25) ->  | L46: =IF($C46="n/a","",'QRY - ExportPupilNumbersbyYearG'!M25) -> Church of England | M46: =IF($C46<>"n/a",'QRY - ExportPupilNumbersbyYearG'!R25,"n/a") -> 0 | N46: =IF($C46<>"n/a",'QRY - ExportPupilNumbersbyYearG'!S25,"n/a") -> 0 | O46: =IF($C46<>"n/a",'QRY - ExportPupilNumbersbyYearG'!T25,"n/a") -> 9 | P46: =IF($C46<>"n/a",'QRY - ExportPupilNumbersbyYearG'!U25,"n/a") -> 7 | Q46: =IF($C46<>"n/a",'QRY - ExportPupilNumbersbyYearG'!V25,"n/a") -> 15 | R46: =IF($C46<>"n/a",'QRY - ExportPupilNumbersbyYearG'!W25,"n/a") -> 12 | S46: =IF($C46<>"n/a",'QRY - ExportPupilNumbersbyYearG'!X25,"n/a") -> 15 | T46: =IF($C46<>"n/a",'QRY - ExportPupilNumbersbyYearG'!Y25,"n/a") -> 25 | U46: =IF($C46<>"n/a",'QRY - ExportPupilNumbersbyYearG'!Z25,"n/a") -> 23 | V46: =IF($C46<>"n/a",'QRY - ExportPupilNumbersbyYearG'!AA25,"n/a") -> 0 | W46: =IF($C46<>"n/a",'QRY - ExportPupilNumbersbyYearG'!AB25,"n/a") -> 0 | X46: =IF($C46<>"n/a",'QRY - ExportPupilNumbersbyYearG'!AC25,"n/a") -> 0 | Y46: =IF($C46<>"n/a",'QRY - ExportPupilNumbersbyYearG'!AD25,"n/a") -> 0 | Z46: =IF($C46<>"n/a",'QRY - ExportPupilNumbersbyYearG'!AE25,"n/a") -> 0 | AA46: =IF($C46<>"n/a",'QRY - ExportPupilNumbersbyYearG'!AF25,"n/a") -> 0 | AB46: =IF($C46<>"n/a",'QRY - ExportPupilNumbersbyYearG'!AG25,"n/a") -> 0 | AC46: =IF($C46<>"n/a",'QRY - ExportPupilNumbersbyYearG'!AH25,"n/a") -> 0 | AD46: =IF($C46<>"n/a",'QRY - ExportPupilNumbersbyYearG'!AI25,"n/a") -> 0 | AE46: =IF($C46<>"n/a",'QRY - ExportPupilNumbersbyYearG'!AJ25,"n/a") -> 0 | AF46: =IF($C46<>"n/a",'QRY - ExportPupilNumbersbyYearG'!AK25,"n/a") -> 0 | AG46: 90 | AH46: 106 | AI46: 31 | AJ46: 27 | AK46: 48 | AL46: 0 | AM46: 0 | AN46: 0
C47: =IF('QRY - ExportPupilNumbersbyYearG'!K26 ="","n/a",'QRY - ExportPupilNumbersbyYearG'!K26) -> Forest Bridge School | D47: =IF($C47="n/a","",'QRY - ExportPupilNumbersbyYearG'!E26) -> Maidenhead | E47: =IF($C47="n/a","",'QRY - ExportPupilNumbersbyYearG'!F26) -> South East Maidenhead | F47: =IF($C47="n/a","",'QRY - ExportPupilNumbersbyYearG'!G26) -> Central | G47: =IF($C47="n/a","",'QRY - ExportPupilNumbersbyYearG'!I26) -> All-through | H47: =IF($C47="n/a","",'QRY - ExportPupilNumbersbyYearG'!H26) -> NA | I47: =IF($C47="n/a","",'QRY - ExportPupilNumbersbyYearG'!J26) -> All Years | J47: =IF($C47="n/a","",'QRY - ExportPupilNumbersbyYearG'!L26) -> Free School | K47: =IF('QRY - ExportPupilNumbersbyYearG'!Q26="","",'QRY - ExportPupilNumbersbyYearG'!Q26) ->  | L47: =IF($C47="n/a","",'QRY - ExportPupilNumbersbyYearG'!M26) -> None | M47: =IF($C47<>"n/a",'QRY - ExportPupilNumbersbyYearG'!R26,"n/a") -> 0 | N47: =IF($C47<>"n/a",'QRY - ExportPupilNumbersbyYearG'!S26,"n/a") -> 0 | O47: =IF($C47<>"n/a",'QRY - ExportPupilNumbersbyYearG'!T26,"n/a") -> 0 | P47: =IF($C47<>"n/a",'QRY - ExportPupilNumbersbyYearG'!U26,"n/a") -> 0 | Q47: =IF($C47<>"n/a",'QRY - ExportPupilNumbersbyYearG'!V26,"n/a") -> 0 | R47: =IF($C47<>"n/a",'QRY - ExportPupilNumbersbyYearG'!W26,"n/a") -> 4 | S47: =IF($C47<>"n/a",'QRY - ExportPupilNumbersbyYearG'!X26,"n/a") -> 10 | T47: =IF($C47<>"n/a",'QRY - ExportPupilNumbersbyYearG'!Y26,"n/a") -> 6 | U47: =IF($C47<>"n/a",'QRY - ExportPupilNumbersbyYearG'!Z26,"n/a") -> 6 | V47: =IF($C47<>"n/a",'QRY - ExportPupilNumbersbyYearG'!AA26,"n/a") -> 7 | W47: =IF($C47<>"n/a",'QRY - ExportPupilNumbersbyYearG'!AB26,"n/a") -> 9 | X47: =IF($C47<>"n/a",'QRY - ExportPupilNumbersbyYearG'!AC26,"n/a") -> 14 | Y47: =IF($C47<>"n/a",'QRY - ExportPupilNumbersbyYearG'!AD26,"n/a") -> 17 | Z47: =IF($C47<>"n/a",'QRY - ExportPupilNumbersbyYearG'!AE26,"n/a") -> 4 | AA47: =IF($C47<>"n/a",'QRY - ExportPupilNumbersbyYearG'!AF26,"n/a") -> 4 | AB47: =IF($C47<>"n/a",'QRY - ExportPupilNumbersbyYearG'!AG26,"n/a") -> 2 | AC47: =IF($C47<>"n/a",'QRY - ExportPupilNumbersbyYearG'!AH26,"n/a") -> 1 | AD47: =IF($C47<>"n/a",'QRY - ExportPupilNumbersbyYearG'!AI26,"n/a") -> 0 | AE47: =IF($C47<>"n/a",'QRY - ExportPupilNumbersbyYearG'!AJ26,"n/a") -> 0 | AF47: =IF($C47<>"n/a",'QRY - ExportPupilNumbersbyYearG'!AK26,"n/a") -> 0 | AG47: 84 | AH47: 84 | AI47: 0 | AJ47: 14 | AK47: 28 | AL47: 35 | AM47: 6 | AN47: 1
C48: =IF('QRY - ExportPupilNumbersbyYearG'!K27 ="","n/a",'QRY - ExportPupilNumbersbyYearG'!K27) -> Furze Platt Infant School | D48: =IF($C48="n/a","",'QRY - ExportPupilNumbersbyYearG'!E27) -> Maidenhead | E48: =IF($C48="n/a","",'QRY - ExportPupilNumbersbyYearG'!F27) -> North West Maidenhead | F48: =IF($C48="n/a","",'QRY - ExportPupilNumbersbyYearG'!G27) -> Furze Platt | G48: =IF($C48="n/a","",'QRY - ExportPupilNumbersbyYearG'!I27) -> Primary | H48: =IF($C48="n/a","",'QRY - ExportPupilNumbersbyYearG'!H27) -> Two Tier | I48: =IF($C48="n/a","",'QRY - ExportPupilNumbersbyYearG'!J27) -> Infants | J48: =IF($C48="n/a","",'QRY - ExportPupilNumbersbyYearG'!L27) -> Community | K48: =IF('QRY - ExportPupilNumbersbyYearG'!Q27="","",'QRY - ExportPupilNumbersbyYearG'!Q27) ->  | L48: =IF($C48="n/a","",'QRY - ExportPupilNumbersbyYearG'!M27) -> None | M48: =IF($C48<>"n/a",'QRY - ExportPupilNumbersbyYearG'!R27,"n/a") -> 0 | N48: =IF($C48<>"n/a",'QRY - ExportPupilNumbersbyYearG'!S27,"n/a") -> 0 | O48: =IF($C48<>"n/a",'QRY - ExportPupilNumbersbyYearG'!T27,"n/a") -> 0 | P48: =IF($C48<>"n/a",'QRY - ExportPupilNumbersbyYearG'!U27,"n/a") -> 0 | Q48: =IF($C48<>"n/a",'QRY - ExportPupilNumbersbyYearG'!V27,"n/a") -> 88 | R48: =IF($C48<>"n/a",'QRY - ExportPupilNumbersbyYearG'!W27,"n/a") -> 90 | S48: =IF($C48<>"n/a",'QRY - ExportPupilNumbersbyYearG'!X27,"n/a") -> 89 | T48: =IF($C48<>"n/a",'QRY - ExportPupilNumbersbyYearG'!Y27,"n/a") -> 0 | U48: =IF($C48<>"n/a",'QRY - ExportPupilNumbersbyYearG'!Z27,"n/a") -> 0 | V48: =IF($C48<>"n/a",'QRY - ExportPupilNumbersbyYearG'!AA27,"n/a") -> 0 | W48: =IF($C48<>"n/a",'QRY - ExportPupilNumbersbyYearG'!AB27,"n/a") -> 0 | X48: =IF($C48<>"n/a",'QRY - ExportPupilNumbersbyYearG'!AC27,"n/a") -> 0 | Y48: =IF($C48<>"n/a",'QRY - ExportPupilNumbersbyYearG'!AD27,"n/a") -> 0 | Z48: =IF($C48<>"n/a",'QRY - ExportPupilNumbersbyYearG'!AE27,"n/a") -> 0 | AA48: =IF($C48<>"n/a",'QRY - ExportPupilNumbersbyYearG'!AF27,"n/a") -> 0 | AB48: =IF($C48<>"n/a",'QRY - ExportPupilNumbersbyYearG'!AG27,"n/a") -> 0 | AC48: =IF($C48<>"n/a",'QRY - ExportPupilNumbersbyYearG'!AH27,"n/a") -> 0 | AD48: =IF($C48<>"n/a",'QRY - ExportPupilNumbersbyYearG'!AI27,"n/a") -> 0 | AE48: =IF($C48<>"n/a",'QRY - ExportPupilNumbersbyYearG'!AJ27,"n/a") -> 0 | AF48: =IF($C48<>"n/a",'QRY - ExportPupilNumbersbyYearG'!AK27,"n/a") -> 0 | AG48: 267 | AH48: 267 | AI48: 88 | AJ48: 179 | AK48: 0 | AL48: 0 | AM48: 0 | AN48: 0
C49: =IF('QRY - ExportPupilNumbersbyYearG'!K28 ="","n/a",'QRY - ExportPupilNumbersbyYearG'!K28) -> Furze Platt Junior School | D49: =IF($C49="n/a","",'QRY - ExportPupilNumbersbyYearG'!E28) -> Maidenhead | E49: =IF($C49="n/a","",'QRY - ExportPupilNumbersbyYearG'!F28) -> North West Maidenhead | F49: =IF($C49="n/a","",'QRY - ExportPupilNumbersbyYearG'!G28) -> Furze Platt | G49: =IF($C49="n/a","",'QRY - ExportPupilNumbersbyYearG'!I28) -> Primary | H49: =IF($C49="n/a","",'QRY - ExportPupilNumbersbyYearG'!H28) -> Two Tier | I49: =IF($C49="n/a","",'QRY - ExportPupilNumbersbyYearG'!J28) -> Junior | J49: =IF($C49="n/a","",'QRY - ExportPupilNumbersbyYearG'!L28) -> Community | K49: =IF('QRY - ExportPupilNumbersbyYearG'!Q28="","",'QRY - ExportPupilNumbersbyYearG'!Q28) ->  | L49: =IF($C49="n/a","",'QRY - ExportPupilNumbersbyYearG'!M28) -> None | M49: =IF($C49<>"n/a",'QRY - ExportPupilNumbersbyYearG'!R28,"n/a") -> 0 | N49: =IF($C49<>"n/a",'QRY - ExportPupilNumbersbyYearG'!S28,"n/a") -> 0 | O49: =IF($C49<>"n/a",'QRY - ExportPupilNumbersbyYearG'!T28,"n/a") -> 0 | P49: =IF($C49<>"n/a",'QRY - ExportPupilNumbersbyYearG'!U28,"n/a") -> 0 | Q49: =IF($C49<>"n/a",'QRY - ExportPupilNumbersbyYearG'!V28,"n/a") -> 0 | R49: =IF($C49<>"n/a",'QRY - ExportPupilNumbersbyYearG'!W28,"n/a") -> 0 | S49: =IF($C49<>"n/a",'QRY - ExportPupilNumbersbyYearG'!X28,"n/a") -> 0 | T49: =IF($C49<>"n/a",'QRY - ExportPupilNumbersbyYearG'!Y28,"n/a") -> 89 | U49: =IF($C49<>"n/a",'QRY - ExportPupilNumbersbyYearG'!Z28,"n/a") -> 91 | V49: =IF($C49<>"n/a",'QRY - ExportPupilNumbersbyYearG'!AA28,"n/a") -> 90 | W49: =IF($C49<>"n/a",'QRY - ExportPupilNumbersbyYearG'!AB28,"n/a") -> 90 | X49: =IF($C49<>"n/a",'QRY - ExportPupilNumbersbyYearG'!AC28,"n/a") -> 0 | Y49: =IF($C49<>"n/a",'QRY - ExportPupilNumbersbyYearG'!AD28,"n/a") -> 0 | Z49: =IF($C49<>"n/a",'QRY - ExportPupilNumbersbyYearG'!AE28,"n/a") -> 0 | AA49: =IF($C49<>"n/a",'QRY - ExportPupilNumbersbyYearG'!AF28,"n/a") -> 0 | AB49: =IF($C49<>"n/a",'QRY - ExportPupilNumbersbyYearG'!AG28,"n/a") -> 0 | AC49: =IF($C49<>"n/a",'QRY - ExportPupilNumbersbyYearG'!AH28,"n/a") -> 0 | AD49: =IF($C49<>"n/a",'QRY - ExportPupilNumbersbyYearG'!AI28,"n/a") -> 0 | AE49: =IF($C49<>"n/a",'QRY - ExportPupilNumbersbyYearG'!AJ28,"n/a") -> 0 | AF49: =IF($C49<>"n/a",'QRY - ExportPupilNumbersbyYearG'!AK28,"n/a") -> 0 | AG49: 360 | AH49: 360 | AI49: 0 | AJ49: 0 | AK49: 360 | AL49: 0 | AM49: 0 | AN49: 0
C50: =IF('QRY - ExportPupilNumbersbyYearG'!K29 ="","n/a",'QRY - ExportPupilNumbersbyYearG'!K29) -> Furze Platt Senior School | D50: =IF($C50="n/a","",'QRY - ExportPupilNumbersbyYearG'!E29) -> Maidenhead | E50: =IF($C50="n/a","",'QRY - ExportPupilNumbersbyYearG'!F29) -> North West Maidenhead | F50: =IF($C50="n/a","",'QRY - ExportPupilNumbersbyYearG'!G29) -> Furze Platt | G50: =IF($C50="n/a","",'QRY - ExportPupilNumbersbyYearG'!I29) -> Secondary | H50: =IF($C50="n/a","",'QRY - ExportPupilNumbersbyYearG'!H29) -> Two Tier | I50: =IF($C50="n/a","",'QRY - ExportPupilNumbersbyYearG'!J29) -> Secondary | J50: =IF($C50="n/a","",'QRY - ExportPupilNumbersbyYearG'!L29) -> Academy | K50: =IF('QRY - ExportPupilNumbersbyYearG'!Q29="","",'QRY - ExportPupilNumbersbyYearG'!Q29) -> 2011-12-01 | L50: =IF($C50="n/a","",'QRY - ExportPupilNumbersbyYearG'!M29) -> None | M50: =IF($C50<>"n/a",'QRY - ExportPupilNumbersbyYearG'!R29,"n/a") -> 0 | N50: =IF($C50<>"n/a",'QRY - ExportPupilNumbersbyYearG'!S29,"n/a") -> 0 | O50: =IF($C50<>"n/a",'QRY - ExportPupilNumbersbyYearG'!T29,"n/a") -> 0 | P50: =IF($C50<>"n/a",'QRY - ExportPupilNumbersbyYearG'!U29,"n/a") -> 0 | Q50: =IF($C50<>"n/a",'QRY - ExportPupilNumbersbyYearG'!V29,"n/a") -> 0 | R50: =IF($C50<>"n/a",'QRY - ExportPupilNumbersbyYearG'!W29,"n/a") -> 0 | S50: =IF($C50<>"n/a",'QRY - ExportPupilNumbersbyYearG'!X29,"n/a") -> 0 | T50: =IF($C50<>"n/a",'QRY - ExportPupilNumbersbyYearG'!Y29,"n/a") -> 0 | U50: =IF($C50<>"n/a",'QRY - ExportPupilNumbersbyYearG'!Z29,"n/a") -> 0 | V50: =IF($C50<>"n/a",'QRY - ExportPupilNumbersbyYearG'!AA29,"n/a") -> 0 | W50: =IF($C50<>"n/a",'QRY - ExportPupilNumbersbyYearG'!AB29,"n/a") -> 0 | X50: =IF($C50<>"n/a",'QRY - ExportPupilNumbersbyYearG'!AC29,"n/a") -> 257 | Y50: =IF($C50<>"n/a",'QRY - ExportPupilNumbersbyYearG'!AD29,"n/a") -> 233 | Z50: =IF($C50<>"n/a",'QRY - ExportPupilNumbersbyYearG'!AE29,"n/a") -> 220 | AA50: =IF($C50<>"n/a",'QRY - ExportPupilNumbersbyYearG'!AF29,"n/a") -> 202 | AB50: =IF($C50<>"n/a",'QRY - ExportPupilNumbersbyYearG'!AG29,"n/a") -> 202 | AC50: =IF($C50<>"n/a",'QRY - ExportPupilNumbersbyYearG'!AH29,"n/a") -> 144 | AD50: =IF($C50<>"n/a",'QRY - ExportPupilNumbersbyYearG'!AI29,"n/a") -> 149 | AE50: =IF($C50<>"n/a",'QRY - ExportPupilNumbersbyYearG'!AJ29,"n/a") -> 0 | AF50: =IF($C50<>"n/a",'QRY - ExportPupilNumbersbyYearG'!AK29,"n/a") -> 0 | AG50: 1407 | AH50: 1407 | AI50: 0 | AJ50: 0 | AK50: 0 | AL50: 710 | AM50: 404 | AN50: 293
C51: =IF('QRY - ExportPupilNumbersbyYearG'!K30 ="","n/a",'QRY - ExportPupilNumbersbyYearG'!K30) -> Hilltop First School | D51: =IF($C51="n/a","",'QRY - ExportPupilNumbersbyYearG'!E30) -> Windsor | E51: =IF($C51="n/a","",'QRY - ExportPupilNumbersbyYearG'!F30) -> Windsor South | F51: =IF($C51="n/a","",'QRY - ExportPupilNumbersbyYearG'!G30) -> Hilltop | G51: =IF($C51="n/a","",'QRY - ExportPupilNumbersbyYearG'!I30) -> Primary | H51: =IF($C51="n/a","",'QRY - ExportPupilNumbersbyYearG'!H30) -> Three Tier | I51: =IF($C51="n/a","",'QRY - ExportPupilNumbersbyYearG'!J30) -> First | J51: =IF($C51="n/a","",'QRY - ExportPupilNumbersbyYearG'!L30) -> Community | K51: =IF('QRY - ExportPupilNumbersbyYearG'!Q30="","",'QRY - ExportPupilNumbersbyYearG'!Q30) ->  | L51: =IF($C51="n/a","",'QRY - ExportPupilNumbersbyYearG'!M30) -> None | M51: =IF($C51<>"n/a",'QRY - ExportPupilNumbersbyYearG'!R30,"n/a") -> 0 | N51: =IF($C51<>"n/a",'QRY - ExportPupilNumbersbyYearG'!S30,"n/a") -> 0 | O51: =IF($C51<>"n/a",'QRY - ExportPupilNumbersbyYearG'!T30,"n/a") -> 4 | P51: =IF($C51<>"n/a",'QRY - ExportPupilNumbersbyYearG'!U30,"n/a") -> 24 | Q51: =IF($C51<>"n/a",'QRY - ExportPupilNumbersbyYearG'!V30,"n/a") -> 43 | R51: =IF($C51<>"n/a",'QRY - ExportPupilNumbersbyYearG'!W30,"n/a") -> 44 | S51: =IF($C51<>"n/a",'QRY - ExportPupilNumbersbyYearG'!X30,"n/a") -> 43 | T51: =IF($C51<>"n/a",'QRY - ExportPupilNumbersbyYearG'!Y30,"n/a") -> 42 | U51: =IF($C51<>"n/a",'QRY - ExportPupilNumbersbyYearG'!Z30,"n/a") -> 44 | V51: =IF($C51<>"n/a",'QRY - ExportPupilNumbersbyYearG'!AA30,"n/a") -> 0 | W51: =IF($C51<>"n/a",'QRY - ExportPupilNumbersbyYearG'!AB30,"n/a") -> 0 | X51: =IF($C51<>"n/a",'QRY - ExportPupilNumbersbyYearG'!AC30,"n/a") -> 0 | Y51: =IF($C51<>"n/a",'QRY - ExportPupilNumbersbyYearG'!AD30,"n/a") -> 0 | Z51: =IF($C51<>"n/a",'QRY - ExportPupilNumbersbyYearG'!AE30,"n/a") -> 0 | AA51: =IF($C51<>"n/a",'QRY - ExportPupilNumbersbyYearG'!AF30,"n/a") -> 0 | AB51: =IF($C51<>"n/a",'QRY - ExportPupilNumbersbyYearG'!AG30,"n/a") -> 0 | AC51: =IF($C51<>"n/a",'QRY - ExportPupilNumbersbyYearG'!AH30,"n/a") -> 0 | AD51: =IF($C51<>"n/a",'QRY - ExportPupilNumbersbyYearG'!AI30,"n/a") -> 0 | AE51: =IF($C51<>"n/a",'QRY - ExportPupilNumbersbyYearG'!AJ30,"n/a") -> 0 | AF51: =IF($C51<>"n/a",'QRY - ExportPupilNumbersbyYearG'!AK30,"n/a") -> 0 | AG51: 216 | AH51: 244 | AI51: 71 | AJ51: 87 | AK51: 86 | AL51: 0 | AM51: 0 | AN51: 0
C52: =IF('QRY - ExportPupilNumbersbyYearG'!K31 ="","n/a",'QRY - ExportPupilNumbersbyYearG'!K31) -> Holy Trinity C of E Primary School, Cookham | D52: =IF($C52="n/a","",'QRY - ExportPupilNumbersbyYearG'!E31) -> Maidenhead | E52: =IF($C52="n/a","",'QRY - ExportPupilNumbersbyYearG'!F31) -> Bisham and Cookham | F52: =IF($C52="n/a","",'QRY - ExportPupilNumbersbyYearG'!G31) -> Cookham | G52: =IF($C52="n/a","",'QRY - ExportPupilNumbersbyYearG'!I31) -> Primary | H52: =IF($C52="n/a","",'QRY - ExportPupilNumbersbyYearG'!H31) -> Two Tier | I52: =IF($C52="n/a","",'QRY - ExportPupilNumbersbyYearG'!J31) -> JMI | J52: =IF($C52="n/a","",'QRY - ExportPupilNumbersbyYearG'!L31) -> Voluntary Controlled | K52: =IF('QRY - ExportPupilNumbersbyYearG'!Q31="","",'QRY - ExportPupilNumbersbyYearG'!Q31) ->  | L52: =IF($C52="n/a","",'QRY - ExportPupilNumbersbyYearG'!M31) -> Church of England | M52: =IF($C52<>"n/a",'QRY - ExportPupilNumbersbyYearG'!R31,"n/a") -> 0 | N52: =IF($C52<>"n/a",'QRY - ExportPupilNumbersbyYearG'!S31,"n/a") -> 0 | O52: =IF($C52<>"n/a",'QRY - ExportPupilNumbersbyYearG'!T31,"n/a") -> 0 | P52: =IF($C52<>"n/a",'QRY - ExportPupilNumbersbyYearG'!U31,"n/a") -> 0 | Q52: =IF($C52<>"n/a",'QRY - ExportPupilNumbersbyYearG'!V31,"n/a") -> 30 | R52: =IF($C52<>"n/a",'QRY - ExportPupilNumbersbyYearG'!W31,"n/a") -> 30 | S52: =IF($C52<>"n/a",'QRY - ExportPupilNumbersbyYearG'!X31,"n/a") -> 29 | T52: =IF($C52<>"n/a",'QRY - ExportPupilNumbersbyYearG'!Y31,"n/a") -> 30 | U52: =IF($C52<>"n/a",'QRY - ExportPupilNumbersbyYearG'!Z31,"n/a") -> 30 | V52: =IF($C52<>"n/a",'QRY - ExportPupilNumbersbyYearG'!AA31,"n/a") -> 26 | W52: =IF($C52<>"n/a",'QRY - ExportPupilNumbersbyYearG'!AB31,"n/a") -> 30 | X52: =IF($C52<>"n/a",'QRY - ExportPupilNumbersbyYearG'!AC31,"n/a") -> 0 | Y52: =IF($C52<>"n/a",'QRY - ExportPupilNumbersbyYearG'!AD31,"n/a") -> 0 | Z52: =IF($C52<>"n/a",'QRY - ExportPupilNumbersbyYearG'!AE31,"n/a") -> 0 | AA52: =IF($C52<>"n/a",'QRY - ExportPupilNumbersbyYearG'!AF31,"n/a") -> 0 | AB52: =IF($C52<>"n/a",'QRY - ExportPupilNumbersbyYearG'!AG31,"n/a") -> 0 | AC52: =IF($C52<>"n/a",'QRY - ExportPupilNumbersbyYearG'!AH31,"n/a") -> 0 | AD52: =IF($C52<>"n/a",'QRY - ExportPupilNumbersbyYearG'!AI31,"n/a") -> 0 | AE52: =IF($C52<>"n/a",'QRY - ExportPupilNumbersbyYearG'!AJ31,"n/a") -> 0 | AF52: =IF($C52<>"n/a",'QRY - ExportPupilNumbersbyYearG'!AK31,"n/a") -> 0 | AG52: 205 | AH52: 205 | AI52: 30 | AJ52: 59 | AK52: 116 | AL52: 0 | AM52: 0 | AN52: 0
C53: =IF('QRY - ExportPupilNumbersbyYearG'!K32 ="","n/a",'QRY - ExportPupilNumbersbyYearG'!K32) -> Holy Trinity CE Primary School, Sunningdale | D53: =IF($C53="n/a","",'QRY - ExportPupilNumbersbyYearG'!E32) -> Ascot | E53: =IF($C53="n/a","",'QRY - ExportPupilNumbersbyYearG'!F32) -> Ascot | F53: =IF($C53="n/a","",'QRY - ExportPupilNumbersbyYearG'!G32) -> North Sunningdale | G53: =IF($C53="n/a","",'QRY - ExportPupilNumbersbyYearG'!I32) -> Primary | H53: =IF($C53="n/a","",'QRY - ExportPupilNumbersbyYearG'!H32) -> Two Tier | I53: =IF($C53="n/a","",'QRY - ExportPupilNumbersbyYearG'!J32) -> JMI | J53: =IF($C53="n/a","",'QRY - ExportPupilNumbersbyYearG'!L32) -> Voluntary Aided | K53: =IF('QRY - ExportPupilNumbersbyYearG'!Q32="","",'QRY - ExportPupilNumbersbyYearG'!Q32) ->  | L53: =IF($C53="n/a","",'QRY - ExportPupilNumbersbyYearG'!M32) -> Church of England | M53: =IF($C53<>"n/a",'QRY - ExportPupilNumbersbyYearG'!R32,"n/a") -> 0 | N53: =IF($C53<>"n/a",'QRY - ExportPupilNumbersbyYearG'!S32,"n/a") -> 0 | O53: =IF($C53<>"n/a",'QRY - ExportPupilNumbersbyYearG'!T32,"n/a") -> 0 | P53: =IF($C53<>"n/a",'QRY - ExportPupilNumbersbyYearG'!U32,"n/a") -> 0 | Q53: =IF($C53<>"n/a",'QRY - ExportPupilNumbersbyYearG'!V32,"n/a") -> 30 | R53: =IF($C53<>"n/a",'QRY - ExportPupilNumbersbyYearG'!W32,"n/a") -> 30 | S53: =IF($C53<>"n/a",'QRY - ExportPupilNumbersbyYearG'!X32,"n/a") -> 30 | T53: =IF($C53<>"n/a",'QRY - ExportPupilNumbersbyYearG'!Y32,"n/a") -> 30 | U53: =IF($C53<>"n/a",'QRY - ExportPupilNumbersbyYearG'!Z32,"n/a") -> 31 | V53: =IF($C53<>"n/a",'QRY - ExportPupilNumbersbyYearG'!AA32,"n/a") -> 57 | W53: =IF($C53<>"n/a",'QRY - ExportPupilNumbersbyYearG'!AB32,"n/a") -> 30 | X53: =IF($C53<>"n/a",'QRY - ExportPupilNumbersbyYearG'!AC32,"n/a") -> 0 | Y53: =IF($C53<>"n/a",'QRY - ExportPupilNumbersbyYearG'!AD32,"n/a") -> 0 | Z53: =IF($C53<>"n/a",'QRY - ExportPupilNumbersbyYearG'!AE32,"n/a") -> 0 | AA53: =IF($C53<>"n/a",'QRY - ExportPupilNumbersbyYearG'!AF32,"n/a") -> 0 | AB53: =IF($C53<>"n/a",'QRY - ExportPupilNumbersbyYearG'!AG32,"n/a") -> 0 | AC53: =IF($C53<>"n/a",'QRY - ExportPupilNumbersbyYearG'!AH32,"n/a") -> 0 | AD53: =IF($C53<>"n/a",'QRY - ExportPupilNumbersbyYearG'!AI32,"n/a") -> 0 | AE53: =IF($C53<>"n/a",'QRY - ExportPupilNumbersbyYearG'!AJ32,"n/a") -> 0 | AF53: =IF($C53<>"n/a",'QRY - ExportPupilNumbersbyYearG'!AK32,"n/a") -> 0 | AG53: 238 | AH53: 238 | AI53: 30 | AJ53: 60 | AK53: 148 | AL53: 0 | AM53: 0 | AN53: 0
C54: =IF('QRY - ExportPupilNumbersbyYearG'!K33 ="","n/a",'QRY - ExportPupilNumbersbyYearG'!K33) -> Holyport C of E Primary School & Foundation Unit | D54: =IF($C54="n/a","",'QRY - ExportPupilNumbersbyYearG'!E33) -> Maidenhead | E54: =IF($C54="n/a","",'QRY - ExportPupilNumbersbyYearG'!F33) -> South East Maidenhead | F54: =IF($C54="n/a","",'QRY - ExportPupilNumbersbyYearG'!G33) -> Holyport Rural | G54: =IF($C54="n/a","",'QRY - ExportPupilNumbersbyYearG'!I33) -> Primary | H54: =IF($C54="n/a","",'QRY - ExportPupilNumbersbyYearG'!H33) -> Two Tier | I54: =IF($C54="n/a","",'QRY - ExportPupilNumbersbyYearG'!J33) -> JMI | J54: =IF($C54="n/a","",'QRY - ExportPupilNumbersbyYearG'!L33) -> Academy | K54: =IF('QRY - ExportPupilNumbersbyYearG'!Q33="","",'QRY - ExportPupilNumbersbyYearG'!Q33) -> 2016-06-01 | L54: =IF($C54="n/a","",'QRY - ExportPupilNumbersbyYearG'!M33) -> Church of England | M54: =IF($C54<>"n/a",'QRY - ExportPupilNumbersbyYearG'!R33,"n/a") -> 0 | N54: =IF($C54<>"n/a",'QRY - ExportPupilNumbersbyYearG'!S33,"n/a") -> 0 | O54: =IF($C54<>"n/a",'QRY - ExportPupilNumbersbyYearG'!T33,"n/a") -> 0 | P54: =IF($C54<>"n/a",'QRY - ExportPupilNumbersbyYearG'!U33,"n/a") -> 8 | Q54: =IF($C54<>"n/a",'QRY - ExportPupilNumbersbyYearG'!V33,"n/a") -> 30 | R54: =IF($C54<>"n/a",'QRY - ExportPupilNumbersbyYearG'!W33,"n/a") -> 30 | S54: =IF($C54<>"n/a",'QRY - ExportPupilNumbersbyYearG'!X33,"n/a") -> 24 | T54: =IF($C54<>"n/a",'QRY - ExportPupilNumbersbyYearG'!Y33,"n/a") -> 36 | U54: =IF($C54<>"n/a",'QRY - ExportPupilNumbersbyYearG'!Z33,"n/a") -> 43 | V54: =IF($C54<>"n/a",'QRY - ExportPupilNumbersbyYearG'!AA33,"n/a") -> 47 | W54: =IF($C54<>"n/a",'QRY - ExportPupilNumbersbyYearG'!AB33,"n/a") -> 44 | X54: =IF($C54<>"n/a",'QRY - ExportPupilNumbersbyYearG'!AC33,"n/a") -> 0 | Y54: =IF($C54<>"n/a",'QRY - ExportPupilNumbersbyYearG'!AD33,"n/a") -> 0 | Z54: =IF($C54<>"n/a",'QRY - ExportPupilNumbersbyYearG'!AE33,"n/a") -> 0 | AA54: =IF($C54<>"n/a",'QRY - ExportPupilNumbersbyYearG'!AF33,"n/a") -> 0 | AB54: =IF($C54<>"n/a",'QRY - ExportPupilNumbersbyYearG'!AG33,"n/a") -> 0 | AC54: =IF($C54<>"n/a",'QRY - ExportPupilNumbersbyYearG'!AH33,"n/a") -> 0 | AD54: =IF($C54<>"n/a",'QRY - ExportPupilNumbersbyYearG'!AI33,"n/a") -> 0 | AE54: =IF($C54<>"n/a",'QRY - ExportPupilNumbersbyYearG'!AJ33,"n/a") -> 0 | AF54: =IF($C54<>"n/a",'QRY - ExportPupilNumbersbyYearG'!AK33,"n/a") -> 0 | AG54: 254 | AH54: 262 | AI54: 38 | AJ54: 54 | AK54: 170 | AL54: 0 | AM54: 0 | AN54: 0
C55: =IF('QRY - ExportPupilNumbersbyYearG'!K34 ="","n/a",'QRY - ExportPupilNumbersbyYearG'!K34) -> Holyport College | D55: =IF($C55="n/a","",'QRY - ExportPupilNumbersbyYearG'!E34) -> Maidenhead | E55: =IF($C55="n/a","",'QRY - ExportPupilNumbersbyYearG'!F34) -> South East Maidenhead | F55: =IF($C55="n/a","",'QRY - ExportPupilNumbersbyYearG'!G34) -> Holyport Rural | G55: =IF($C55="n/a","",'QRY - ExportPupilNumbersbyYearG'!I34) -> Secondary | H55: =IF($C55="n/a","",'QRY - ExportPupilNumbersbyYearG'!H34) -> Two Tier | I55: =IF($C55="n/a","",'QRY - ExportPupilNumbersbyYearG'!J34) -> Secondary | J55: =IF($C55="n/a","",'QRY - ExportPupilNumbersbyYearG'!L34) -> Free School | K55: =IF('QRY - ExportPupilNumbersbyYearG'!Q34="","",'QRY - ExportPupilNumbersbyYearG'!Q34) ->  | L55: =IF($C55="n/a","",'QRY - ExportPupilNumbersbyYearG'!M34) -> None | M55: =IF($C55<>"n/a",'QRY - ExportPupilNumbersbyYearG'!R34,"n/a") -> 0 | N55: =IF($C55<>"n/a",'QRY - ExportPupilNumbersbyYearG'!S34,"n/a") -> 0 | O55: =IF($C55<>"n/a",'QRY - ExportPupilNumbersbyYearG'!T34,"n/a") -> 0 | P55: =IF($C55<>"n/a",'QRY - ExportPupilNumbersbyYearG'!U34,"n/a") -> 0 | Q55: =IF($C55<>"n/a",'QRY - ExportPupilNumbersbyYearG'!V34,"n/a") -> 0 | R55: =IF($C55<>"n/a",'QRY - ExportPupilNumbersbyYearG'!W34,"n/a") -> 0 | S55: =IF($C55<>"n/a",'QRY - ExportPupilNumbersbyYearG'!X34,"n/a") -> 0 | T55: =IF($C55<>"n/a",'QRY - ExportPupilNumbersbyYearG'!Y34,"n/a") -> 0 | U55: =IF($C55<>"n/a",'QRY - ExportPupilNumbersbyYearG'!Z34,"n/a") -> 0 | V55: =IF($C55<>"n/a",'QRY - ExportPupilNumbersbyYearG'!AA34,"n/a") -> 0 | W55: =IF($C55<>"n/a",'QRY - ExportPupilNumbersbyYearG'!AB34,"n/a") -> 0 | X55: =IF($C55<>"n/a",'QRY - ExportPupilNumbersbyYearG'!AC34,"n/a") -> 69 | Y55: =IF($C55<>"n/a",'QRY - ExportPupilNumbersbyYearG'!AD34,"n/a") -> 47 | Z55: =IF($C55<>"n/a",'QRY - ExportPupilNumbersbyYearG'!AE34,"n/a") -> 83 | AA55: =IF($C55<>"n/a",'QRY - ExportPupilNumbersbyYearG'!AF34,"n/a") -> 87 | AB55: =IF($C55<>"n/a",'QRY - ExportPupilNumbersbyYearG'!AG34,"n/a") -> 87 | AC55: =IF($C55<>"n/a",'QRY - ExportPupilNumbersbyYearG'!AH34,"n/a") -> 109 | AD55: =IF($C55<>"n/a",'QRY - ExportPupilNumbersbyYearG'!AI34,"n/a") -> 98 | AE55: =IF($C55<>"n/a",'QRY - ExportPupilNumbersbyYearG'!AJ34,"n/a") -> 0 | AF55: =IF($C55<>"n/a",'QRY - ExportPupilNumbersbyYearG'!AK34,"n/a") -> 0 | AG55: 580 | AH55: 580 | AI55: 0 | AJ55: 0 | AK55: 0 | AL55: 199 | AM55: 174 | AN55: 207
C56: =IF('QRY - ExportPupilNumbersbyYearG'!K35 ="","n/a",'QRY - ExportPupilNumbersbyYearG'!K35) -> Homer First School and Nursery | D56: =IF($C56="n/a","",'QRY - ExportPupilNumbersbyYearG'!E35) -> Windsor | E56: =IF($C56="n/a","",'QRY - ExportPupilNumbersbyYearG'!F35) -> Windsor North | F56: =IF($C56="n/a","",'QRY - ExportPupilNumbersbyYearG'!G35) -> Homer | G56: =IF($C56="n/a","",'QRY - ExportPupilNumbersbyYearG'!I35) -> Primary | H56: =IF($C56="n/a","",'QRY - ExportPupilNumbersbyYearG'!H35) -> Three Tier | I56: =IF($C56="n/a","",'QRY - ExportPupilNumbersbyYearG'!J35) -> First | J56: =IF($C56="n/a","",'QRY - ExportPupilNumbersbyYearG'!L35) -> Community | K56: =IF('QRY - ExportPupilNumbersbyYearG'!Q35="","",'QRY - ExportPupilNumbersbyYearG'!Q35) ->  | L56: =IF($C56="n/a","",'QRY - ExportPupilNumbersbyYearG'!M35) -> None | M56: =IF($C56<>"n/a",'QRY - ExportPupilNumbersbyYearG'!R35,"n/a") -> 0 | N56: =IF($C56<>"n/a",'QRY - ExportPupilNumbersbyYearG'!S35,"n/a") -> 0 | O56: =IF($C56<>"n/a",'QRY - ExportPupilNumbersbyYearG'!T35,"n/a") -> 7 | P56: =IF($C56<>"n/a",'QRY - ExportPupilNumbersbyYearG'!U35,"n/a") -> 17 | Q56: =IF($C56<>"n/a",'QRY - ExportPupilNumbersbyYearG'!V35,"n/a") -> 40 | R56: =IF($C56<>"n/a",'QRY - ExportPupilNumbersbyYearG'!W35,"n/a") -> 42 | S56: =IF($C56<>"n/a",'QRY - ExportPupilNumbersbyYearG'!X35,"n/a") -> 37 | T56: =IF($C56<>"n/a",'QRY - ExportPupilNumbersbyYearG'!Y35,"n/a") -> 45 | U56: =IF($C56<>"n/a",'QRY - ExportPupilNumbersbyYearG'!Z35,"n/a") -> 58 | V56: =IF($C56<>"n/a",'QRY - ExportPupilNumbersbyYearG'!AA35,"n/a") -> 0 | W56: =IF($C56<>"n/a",'QRY - ExportPupilNumbersbyYearG'!AB35,"n/a") -> 0 | X56: =IF($C56<>"n/a",'QRY - ExportPupilNumbersbyYearG'!AC35,"n/a") -> 0 | Y56: =IF($C56<>"n/a",'QRY - ExportPupilNumbersbyYearG'!AD35,"n/a") -> 0 | Z56: =IF($C56<>"n/a",'QRY - ExportPupilNumbersbyYearG'!AE35,"n/a") -> 0 | AA56: =IF($C56<>"n/a",'QRY - ExportPupilNumbersbyYearG'!AF35,"n/a") -> 0 | AB56: =IF($C56<>"n/a",'QRY - ExportPupilNumbersbyYearG'!AG35,"n/a") -> 0 | AC56: =IF($C56<>"n/a",'QRY - ExportPupilNumbersbyYearG'!AH35,"n/a") -> 0 | AD56: =IF($C56<>"n/a",'QRY - ExportPupilNumbersbyYearG'!AI35,"n/a") -> 0 | AE56: =IF($C56<>"n/a",'QRY - ExportPupilNumbersbyYearG'!AJ35,"n/a") -> 0 | AF56: =IF($C56<>"n/a",'QRY - ExportPupilNumbersbyYearG'!AK35,"n/a") -> 0 | AG56: 222 | AH56: 246 | AI56: 64 | AJ56: 79 | AK56: 103 | AL56: 0 | AM56: 0 | AN56: 0
C57: =IF('QRY - ExportPupilNumbersbyYearG'!K36 ="","n/a",'QRY - ExportPupilNumbersbyYearG'!K36) -> Kings Court First School | D57: =IF($C57="n/a","",'QRY - ExportPupilNumbersbyYearG'!E36) -> Windsor | E57: =IF($C57="n/a","",'QRY - ExportPupilNumbersbyYearG'!F36) -> Windsor Villages | F57: =IF($C57="n/a","",'QRY - ExportPupilNumbersbyYearG'!G36) -> Old Windsor | G57: =IF($C57="n/a","",'QRY - ExportPupilNumbersbyYearG'!I36) -> Primary | H57: =IF($C57="n/a","",'QRY - ExportPupilNumbersbyYearG'!H36) -> Three Tier | I57: =IF($C57="n/a","",'QRY - ExportPupilNumbersbyYearG'!J36) -> First | J57: =IF($C57="n/a","",'QRY - ExportPupilNumbersbyYearG'!L36) -> Community | K57: =IF('QRY - ExportPupilNumbersbyYearG'!Q36="","",'QRY - ExportPupilNumbersbyYearG'!Q36) ->  | L57: =IF($C57="n/a","",'QRY - ExportPupilNumbersbyYearG'!M36) -> None | M57: =IF($C57<>"n/a",'QRY - ExportPupilNumbersbyYearG'!R36,"n/a") -> 0 | N57: =IF($C57<>"n/a",'QRY - ExportPupilNumbersbyYearG'!S36,"n/a") -> 0 | O57: =IF($C57<>"n/a",'QRY - ExportPupilNumbersbyYearG'!T36,"n/a") -> 0 | P57: =IF($C57<>"n/a",'QRY - ExportPupilNumbersbyYearG'!U36,"n/a") -> 0 | Q57: =IF($C57<>"n/a",'QRY - ExportPupilNumbersbyYearG'!V36,"n/a") -> 26 | R57: =IF($C57<>"n/a",'QRY - ExportPupilNumbersbyYearG'!W36,"n/a") -> 37 | S57: =IF($C57<>"n/a",'QRY - ExportPupilNumbersbyYearG'!X36,"n/a") -> 41 | T57: =IF($C57<>"n/a",'QRY - ExportPupilNumbersbyYearG'!Y36,"n/a") -> 36 | U57: =IF($C57<>"n/a",'QRY - ExportPupilNumbersbyYearG'!Z36,"n/a") -> 39 | V57: =IF($C57<>"n/a",'QRY - ExportPupilNumbersbyYearG'!AA36,"n/a") -> 0 | W57: =IF($C57<>"n/a",'QRY - ExportPupilNumbersbyYearG'!AB36,"n/a") -> 0 | X57: =IF($C57<>"n/a",'QRY - ExportPupilNumbersbyYearG'!AC36,"n/a") -> 0 | Y57: =IF($C57<>"n/a",'QRY - ExportPupilNumbersbyYearG'!AD36,"n/a") -> 0 | Z57: =IF($C57<>"n/a",'QRY - ExportPupilNumbersbyYearG'!AE36,"n/a") -> 0 | AA57: =IF($C57<>"n/a",'QRY - ExportPupilNumbersbyYearG'!AF36,"n/a") -> 0 | AB57: =IF($C57<>"n/a",'QRY - ExportPupilNumbersbyYearG'!AG36,"n/a") -> 0 | AC57: =IF($C57<>"n/a",'QRY - ExportPupilNumbersbyYearG'!AH36,"n/a") -> 0 | AD57: =IF($C57<>"n/a",'QRY - ExportPupilNumbersbyYearG'!AI36,"n/a") -> 0 | AE57: =IF($C57<>"n/a",'QRY - ExportPupilNumbersbyYearG'!AJ36,"n/a") -> 0 | AF57: =IF($C57<>"n/a",'QRY - ExportPupilNumbersbyYearG'!AK36,"n/a") -> 0 | AG57: 179 | AH57: 179 | AI57: 26 | AJ57: 78 | AK57: 75 | AL57: 0 | AM57: 0 | AN57: 0
C58: =IF('QRY - ExportPupilNumbersbyYearG'!K37 ="","n/a",'QRY - ExportPupilNumbersbyYearG'!K37) -> Knowl Hill C of E Academy | D58: =IF($C58="n/a","",'QRY - ExportPupilNumbersbyYearG'!E37) -> Maidenhead | E58: =IF($C58="n/a","",'QRY - ExportPupilNumbersbyYearG'!F37) -> Maidenhead Villages | F58: =IF($C58="n/a","",'QRY - ExportPupilNumbersbyYearG'!G37) -> Knowl Hill | G58: =IF($C58="n/a","",'QRY - ExportPupilNumbersbyYearG'!I37) -> Primary | H58: =IF($C58="n/a","",'QRY - ExportPupilNumbersbyYearG'!H37) -> Two Tier | I58: =IF($C58="n/a","",'QRY - ExportPupilNumbersbyYearG'!J37) -> JMI | J58: =IF($C58="n/a","",'QRY - ExportPupilNumbersbyYearG'!L37) -> Academy | K58: =IF('QRY - ExportPupilNumbersbyYearG'!Q37="","",'QRY - ExportPupilNumbersbyYearG'!Q37) -> 2014-09-01 | L58: =IF($C58="n/a","",'QRY - ExportPupilNumbersbyYearG'!M37) -> Church of England | M58: =IF($C58<>"n/a",'QRY - ExportPupilNumbersbyYearG'!R37,"n/a") -> 0 | N58: =IF($C58<>"n/a",'QRY - ExportPupilNumbersbyYearG'!S37,"n/a") -> 0 | O58: =IF($C58<>"n/a",'QRY - ExportPupilNumbersbyYearG'!T37,"n/a") -> 0 | P58: =IF($C58<>"n/a",'QRY - ExportPupilNumbersbyYearG'!U37,"n/a") -> 0 | Q58: =IF($C58<>"n/a",'QRY - ExportPupilNumbersbyYearG'!V37,"n/a") -> 18 | R58: =IF($C58<>"n/a",'QRY - ExportPupilNumbersbyYearG'!W37,"n/a") -> 25 | S58: =IF($C58<>"n/a",'QRY - ExportPupilNumbersbyYearG'!X37,"n/a") -> 24 | T58: =IF($C58<>"n/a",'QRY - ExportPupilNumbersbyYearG'!Y37,"n/a") -> 23 | U58: =IF($C58<>"n/a",'QRY - ExportPupilNumbersbyYearG'!Z37,"n/a") -> 26 | V58: =IF($C58<>"n/a",'QRY - ExportPupilNumbersbyYearG'!AA37,"n/a") -> 20 | W58: =IF($C58<>"n/a",'QRY - ExportPupilNumbersbyYearG'!AB37,"n/a") -> 16 | X58: =IF($C58<>"n/a",'QRY - ExportPupilNumbersbyYearG'!AC37,"n/a") -> 0 | Y58: =IF($C58<>"n/a",'QRY - ExportPupilNumbersbyYearG'!AD37,"n/a") -> 0 | Z58: =IF($C58<>"n/a",'QRY - ExportPupilNumbersbyYearG'!AE37,"n/a") -> 0 | AA58: =IF($C58<>"n/a",'QRY - ExportPupilNumbersbyYearG'!AF37,"n/a") -> 0 | AB58: =IF($C58<>"n/a",'QRY - ExportPupilNumbersbyYearG'!AG37,"n/a") -> 0 | AC58: =IF($C58<>"n/a",'QRY - ExportPupilNumbersbyYearG'!AH37,"n/a") -> 0 | AD58: =IF($C58<>"n/a",'QRY - ExportPupilNumbersbyYearG'!AI37,"n/a") -> 0 | AE58: =IF($C58<>"n/a",'QRY - ExportPupilNumbersbyYearG'!AJ37,"n/a") -> 0 | AF58: =IF($C58<>"n/a",'QRY - ExportPupilNumbersbyYearG'!AK37,"n/a") -> 0 | AG58: 152 | AH58: 152 | AI58: 18 | AJ58: 49 | AK58: 85 | AL58: 0 | AM58: 0 | AN58: 0
C59: =IF('QRY - ExportPupilNumbersbyYearG'!K38 ="","n/a",'QRY - ExportPupilNumbersbyYearG'!K38) -> Larchfield Primary and Nursery School | D59: =IF($C59="n/a","",'QRY - ExportPupilNumbersbyYearG'!E38) -> Maidenhead | E59: =IF($C59="n/a","",'QRY - ExportPupilNumbersbyYearG'!F38) -> Central Maidenhead | F59: =IF($C59="n/a","",'QRY - ExportPupilNumbersbyYearG'!G38) -> Larchfield West | G59: =IF($C59="n/a","",'QRY - ExportPupilNumbersbyYearG'!I38) -> Primary | H59: =IF($C59="n/a","",'QRY - ExportPupilNumbersbyYearG'!H38) -> Two Tier | I59: =IF($C59="n/a","",'QRY - ExportPupilNumbersbyYearG'!J38) -> JMI | J59: =IF($C59="n/a","",'QRY - ExportPupilNumbersbyYearG'!L38) -> Community | K59: =IF('QRY - ExportPupilNumbersbyYearG'!Q38="","",'QRY - ExportPupilNumbersbyYearG'!Q38) ->  | L59: =IF($C59="n/a","",'QRY - ExportPupilNumbersbyYearG'!M38) -> None | M59: =IF($C59<>"n/a",'QRY - ExportPupilNumbersbyYearG'!R38,"n/a") -> 0 | N59: =IF($C59<>"n/a",'QRY - ExportPupilNumbersbyYearG'!S38,"n/a") -> 0 | O59: =IF($C59<>"n/a",'QRY - ExportPupilNumbersbyYearG'!T38,"n/a") -> 8 | P59: =IF($C59<>"n/a",'QRY - ExportPupilNumbersbyYearG'!U38,"n/a") -> 21 | Q59: =IF($C59<>"n/a",'QRY - ExportPupilNumbersbyYearG'!V38,"n/a") -> 30 | R59: =IF($C59<>"n/a",'QRY - ExportPupilNumbersbyYearG'!W38,"n/a") -> 27 | S59: =IF($C59<>"n/a",'QRY - ExportPupilNumbersbyYearG'!X38,"n/a") -> 30 | T59: =IF($C59<>"n/a",'QRY - ExportPupilNumbersbyYearG'!Y38,"n/a") -> 27 | U59: =IF($C59<>"n/a",'QRY - ExportPupilNumbersbyYearG'!Z38,"n/a") -> 30 | V59: =IF($C59<>"n/a",'QRY - ExportPupilNumbersbyYearG'!AA38,"n/a") -> 28 | W59: =IF($C59<>"n/a",'QRY - ExportPupilNumbersbyYearG'!AB38,"n/a") -> 28 | X59: =IF($C59<>"n/a",'QRY - ExportPupilNumbersbyYearG'!AC38,"n/a") -> 0 | Y59: =IF($C59<>"n/a",'QRY - ExportPupilNumbersbyYearG'!AD38,"n/a") -> 0 | Z59: =IF($C59<>"n/a",'QRY - ExportPupilNumbersbyYearG'!AE38,"n/a") -> 0 | AA59: =IF($C59<>"n/a",'QRY - ExportPupilNumbersbyYearG'!AF38,"n/a") -> 0 | AB59: =IF($C59<>"n/a",'QRY - ExportPupilNumbersbyYearG'!AG38,"n/a") -> 0 | AC59: =IF($C59<>"n/a",'QRY - ExportPupilNumbersbyYearG'!AH38,"n/a") -> 0 | AD59: =IF($C59<>"n/a",'QRY - ExportPupilNumbersbyYearG'!AI38,"n/a") -> 0 | AE59: =IF($C59<>"n/a",'QRY - ExportPupilNumbersbyYearG'!AJ38,"n/a") -> 0 | AF59: =IF($C59<>"n/a",'QRY - ExportPupilNumbersbyYearG'!AK38,"n/a") -> 0 | AG59: 200 | AH59: 229 | AI59: 59 | AJ59: 57 | AK59: 113 | AL59: 0 | AM59: 0 | AN59: 0
C60: =IF('QRY - ExportPupilNumbersbyYearG'!K39 ="","n/a",'QRY - ExportPupilNumbersbyYearG'!K39) -> Lowbrook Academy | D60: =IF($C60="n/a","",'QRY - ExportPupilNumbersbyYearG'!E39) -> Maidenhead | E60: =IF($C60="n/a","",'QRY - ExportPupilNumbersbyYearG'!F39) -> South West Maidenhead | F60: =IF($C60="n/a","",'QRY - ExportPupilNumbersbyYearG'!G39) -> Lowbrook | G60: =IF($C60="n/a","",'QRY - ExportPupilNumbersbyYearG'!I39) -> Primary | H60: =IF($C60="n/a","",'QRY - ExportPupilNumbersbyYearG'!H39) -> Two Tier | I60: =IF($C60="n/a","",'QRY - ExportPupilNumbersbyYearG'!J39) -> JMI | J60: =IF($C60="n/a","",'QRY - ExportPupilNumbersbyYearG'!L39) -> Academy | K60: =IF('QRY - ExportPupilNumbersbyYearG'!Q39="","",'QRY - ExportPupilNumbersbyYearG'!Q39) -> 2011-04-01 | L60: =IF($C60="n/a","",'QRY - ExportPupilNumbersbyYearG'!M39) -> None | M60: =IF($C60<>"n/a",'QRY - ExportPupilNumbersbyYearG'!R39,"n/a") -> 0 | N60: =IF($C60<>"n/a",'QRY - ExportPupilNumbersbyYearG'!S39,"n/a") -> 0 | O60: =IF($C60<>"n/a",'QRY - ExportPupilNumbersbyYearG'!T39,"n/a") -> 0 | P60: =IF($C60<>"n/a",'QRY - ExportPupilNumbersbyYearG'!U39,"n/a") -> 0 | Q60: =IF($C60<>"n/a",'QRY - ExportPupilNumbersbyYearG'!V39,"n/a") -> 59 | R60: =IF($C60<>"n/a",'QRY - ExportPupilNumbersbyYearG'!W39,"n/a") -> 30 | S60: =IF($C60<>"n/a",'QRY - ExportPupilNumbersbyYearG'!X39,"n/a") -> 30 | T60: =IF($C60<>"n/a",'QRY - ExportPupilNumbersbyYearG'!Y39,"n/a") -> 30 | U60: =IF($C60<>"n/a",'QRY - ExportPupilNumbersbyYearG'!Z39,"n/a") -> 60 | V60: =IF($C60<>"n/a",'QRY - ExportPupilNumbersbyYearG'!AA39,"n/a") -> 60 | W60: =IF($C60<>"n/a",'QRY - ExportPupilNumbersbyYearG'!AB39,"n/a") -> 58 | X60: =IF($C60<>"n/a",'QRY - ExportPupilNumbersbyYearG'!AC39,"n/a") -> 0 | Y60: =IF($C60<>"n/a",'QRY - ExportPupilNumbersbyYearG'!AD39,"n/a") -> 0 | Z60: =IF($C60<>"n/a",'QRY - ExportPupilNumbersbyYearG'!AE39,"n/a") -> 0 | AA60: =IF($C60<>"n/a",'QRY - ExportPupilNumbersbyYearG'!AF39,"n/a") -> 0 | AB60: =IF($C60<>"n/a",'QRY - ExportPupilNumbersbyYearG'!AG39,"n/a") -> 0 | AC60: =IF($C60<>"n/a",'QRY - ExportPupilNumbersbyYearG'!AH39,"n/a") -> 0 | AD60: =IF($C60<>"n/a",'QRY - ExportPupilNumbersbyYearG'!AI39,"n/a") -> 0 | AE60: =IF($C60<>"n/a",'QRY - ExportPupilNumbersbyYearG'!AJ39,"n/a") -> 0 | AF60: =IF($C60<>"n/a",'QRY - ExportPupilNumbersbyYearG'!AK39,"n/a") -> 0 | AG60: 327 | AH60: 327 | AI60: 59 | AJ60: 60 | AK60: 208 | AL60: 0 | AM60: 0 | AN60: 0
C61: =IF('QRY - ExportPupilNumbersbyYearG'!K40 ="","n/a",'QRY - ExportPupilNumbersbyYearG'!K40) -> Maidenhead Nursery School | D61: =IF($C61="n/a","",'QRY - ExportPupilNumbersbyYearG'!E40) -> Maidenhead | E61: =IF($C61="n/a","",'QRY - ExportPupilNumbersbyYearG'!F40) -> North East Maidenhead | F61: =IF($C61="n/a","",'QRY - ExportPupilNumbersbyYearG'!G40) -> North Town | G61: =IF($C61="n/a","",'QRY - ExportPupilNumbersbyYearG'!I40) -> Early Years | H61: =IF($C61="n/a","",'QRY - ExportPupilNumbersbyYearG'!H40) -> NA | I61: =IF($C61="n/a","",'QRY - ExportPupilNumbersbyYearG'!J40) -> Nursery School | J61: =IF($C61="n/a","",'QRY - ExportPupilNumbersbyYearG'!L40) -> Community | K61: =IF('QRY - ExportPupilNumbersbyYearG'!Q40="","",'QRY - ExportPupilNumbersbyYearG'!Q40) ->  | L61: =IF($C61="n/a","",'QRY - ExportPupilNumbersbyYearG'!M40) -> None | M61: =IF($C61<>"n/a",'QRY - ExportPupilNumbersbyYearG'!R40,"n/a") -> 1 | N61: =IF($C61<>"n/a",'QRY - ExportPupilNumbersbyYearG'!S40,"n/a") -> 1 | O61: =IF($C61<>"n/a",'QRY - ExportPupilNumbersbyYearG'!T40,"n/a") -> 18 | P61: =IF($C61<>"n/a",'QRY - ExportPupilNumbersbyYearG'!U40,"n/a") -> 47 | Q61: =IF($C61<>"n/a",'QRY - ExportPupilNumbersbyYearG'!V40,"n/a") -> 0 | R61: =IF($C61<>"n/a",'QRY - ExportPupilNumbersbyYearG'!W40,"n/a") -> 0 | S61: =IF($C61<>"n/a",'QRY - ExportPupilNumbersbyYearG'!X40,"n/a") -> 0 | T61: =IF($C61<>"n/a",'QRY - ExportPupilNumbersbyYearG'!Y40,"n/a") -> 0 | U61: =IF($C61<>"n/a",'QRY - ExportPupilNumbersbyYearG'!Z40,"n/a") -> 0 | V61: =IF($C61<>"n/a",'QRY - ExportPupilNumbersbyYearG'!AA40,"n/a") -> 0 | W61: =IF($C61<>"n/a",'QRY - ExportPupilNumbersbyYearG'!AB40,"n/a") -> 0 | X61: =IF($C61<>"n/a",'QRY - ExportPupilNumbersbyYearG'!AC40,"n/a") -> 0 | Y61: =IF($C61<>"n/a",'QRY - ExportPupilNumbersbyYearG'!AD40,"n/a") -> 0 | Z61: =IF($C61<>"n/a",'QRY - ExportPupilNumbersbyYearG'!AE40,"n/a") -> 0 | AA61: =IF($C61<>"n/a",'QRY - ExportPupilNumbersbyYearG'!AF40,"n/a") -> 0 | AB61: =IF($C61<>"n/a",'QRY - ExportPupilNumbersbyYearG'!AG40,"n/a") -> 0 | AC61: =IF($C61<>"n/a",'QRY - ExportPupilNumbersbyYearG'!AH40,"n/a") -> 0 | AD61: =IF($C61<>"n/a",'QRY - ExportPupilNumbersbyYearG'!AI40,"n/a") -> 0 | AE61: =IF($C61<>"n/a",'QRY - ExportPupilNumbersbyYearG'!AJ40,"n/a") -> 0 | AF61: =IF($C61<>"n/a",'QRY - ExportPupilNumbersbyYearG'!AK40,"n/a") -> 0 | AG61: 0 | AH61: 67 | AI61: 67 | AJ61: 0 | AK61: 0 | AL61: 0 | AM61: 0 | AN61: 0
C62: =IF('QRY - ExportPupilNumbersbyYearG'!K41 ="","n/a",'QRY - ExportPupilNumbersbyYearG'!K41) -> Manor Green School | D62: =IF($C62="n/a","",'QRY - ExportPupilNumbersbyYearG'!E41) -> Maidenhead | E62: =IF($C62="n/a","",'QRY - ExportPupilNumbersbyYearG'!F41) -> South West Maidenhead | F62: =IF($C62="n/a","",'QRY - ExportPupilNumbersbyYearG'!G41) -> Lowbrook | G62: =IF($C62="n/a","",'QRY - ExportPupilNumbersbyYearG'!I41) -> All-through | H62: =IF($C62="n/a","",'QRY - ExportPupilNumbersbyYearG'!H41) -> NA | I62: =IF($C62="n/a","",'QRY - ExportPupilNumbersbyYearG'!J41) -> All Years | J62: =IF($C62="n/a","",'QRY - ExportPupilNumbersbyYearG'!L41) -> Community | K62: =IF('QRY - ExportPupilNumbersbyYearG'!Q41="","",'QRY - ExportPupilNumbersbyYearG'!Q41) ->  | L62: =IF($C62="n/a","",'QRY - ExportPupilNumbersbyYearG'!M41) -> None | M62: =IF($C62<>"n/a",'QRY - ExportPupilNumbersbyYearG'!R41,"n/a") -> 0 | N62: =IF($C62<>"n/a",'QRY - ExportPupilNumbersbyYearG'!S41,"n/a") -> 0 | O62: =IF($C62<>"n/a",'QRY - ExportPupilNumbersbyYearG'!T41,"n/a") -> 0 | P62: =IF($C62<>"n/a",'QRY - ExportPupilNumbersbyYearG'!U41,"n/a") -> 1 | Q62: =IF($C62<>"n/a",'QRY - ExportPupilNumbersbyYearG'!V41,"n/a") -> 8 | R62: =IF($C62<>"n/a",'QRY - ExportPupilNumbersbyYearG'!W41,"n/a") -> 13 | S62: =IF($C62<>"n/a",'QRY - ExportPupilNumbersbyYearG'!X41,"n/a") -> 12 | T62: =IF($C62<>"n/a",'QRY - ExportPupilNumbersbyYearG'!Y41,"n/a") -> 14 | U62: =IF($C62<>"n/a",'QRY - ExportPupilNumbersbyYearG'!Z41,"n/a") -> 19 | V62: =IF($C62<>"n/a",'QRY - ExportPupilNumbersbyYearG'!AA41,"n/a") -> 20 | W62: =IF($C62<>"n/a",'QRY - ExportPupilNumbersbyYearG'!AB41,"n/a") -> 30 | X62: =IF($C62<>"n/a",'QRY - ExportPupilNumbersbyYearG'!AC41,"n/a") -> 21 | Y62: =IF($C62<>"n/a",'QRY - ExportPupilNumbersbyYearG'!AD41,"n/a") -> 31 | Z62: =IF($C62<>"n/a",'QRY - ExportPupilNumbersbyYearG'!AE41,"n/a") -> 17 | AA62: =IF($C62<>"n/a",'QRY - ExportPupilNumbersbyYearG'!AF41,"n/a") -> 26 | AB62: =IF($C62<>"n/a",'QRY - ExportPupilNumbersbyYearG'!AG41,"n/a") -> 26 | AC62: =IF($C62<>"n/a",'QRY - ExportPupilNumbersbyYearG'!AH41,"n/a") -> 18 | AD62: =IF($C62<>"n/a",'QRY - ExportPupilNumbersbyYearG'!AI41,"n/a") -> 10 | AE62: =IF($C62<>"n/a",'QRY - ExportPupilNumbersbyYearG'!AJ41,"n/a") -> 8 | AF62: =IF($C62<>"n/a",'QRY - ExportPupilNumbersbyYearG'!AK41,"n/a") -> 0 | AG62: 273 | AH62: 274 | AI62: 9 | AJ62: 25 | AK62: 83 | AL62: 69 | AM62: 52 | AN62: 36
C63: =IF('QRY - ExportPupilNumbersbyYearG'!K42 ="","n/a",'QRY - ExportPupilNumbersbyYearG'!K42) -> Newlands Girls' School | D63: =IF($C63="n/a","",'QRY - ExportPupilNumbersbyYearG'!E42) -> Maidenhead | E63: =IF($C63="n/a","",'QRY - ExportPupilNumbersbyYearG'!F42) -> North West Maidenhead | F63: =IF($C63="n/a","",'QRY - ExportPupilNumbersbyYearG'!G42) -> Highway | G63: =IF($C63="n/a","",'QRY - ExportPupilNumbersbyYearG'!I42) -> Secondary | H63: =IF($C63="n/a","",'QRY - ExportPupilNumbersbyYearG'!H42) -> Two Tier | I63: =IF($C63="n/a","",'QRY - ExportPupilNumbersbyYearG'!J42) -> Secondary | J63: =IF($C63="n/a","",'QRY - ExportPupilNumbersbyYearG'!L42) -> Academy | K63: =IF('QRY - ExportPupilNumbersbyYearG'!Q42="","",'QRY - ExportPupilNumbersbyYearG'!Q42) -> 2015-10-01 | L63: =IF($C63="n/a","",'QRY - ExportPupilNumbersbyYearG'!M42) -> None | M63: =IF($C63<>"n/a",'QRY - ExportPupilNumbersbyYearG'!R42,"n/a") -> 0 | N63: =IF($C63<>"n/a",'QRY - ExportPupilNumbersbyYearG'!S42,"n/a") -> 0 | O63: =IF($C63<>"n/a",'QRY - ExportPupilNumbersbyYearG'!T42,"n/a") -> 0 | P63: =IF($C63<>"n/a",'QRY - ExportPupilNumbersbyYearG'!U42,"n/a") -> 0 | Q63: =IF($C63<>"n/a",'QRY - ExportPupilNumbersbyYearG'!V42,"n/a") -> 0 | R63: =IF($C63<>"n/a",'QRY - ExportPupilNumbersbyYearG'!W42,"n/a") -> 0 | S63: =IF($C63<>"n/a",'QRY - ExportPupilNumbersbyYearG'!X42,"n/a") -> 0 | T63: =IF($C63<>"n/a",'QRY - ExportPupilNumbersbyYearG'!Y42,"n/a") -> 0 | U63: =IF($C63<>"n/a",'QRY - ExportPupilNumbersbyYearG'!Z42,"n/a") -> 0 | V63: =IF($C63<>"n/a",'QRY - ExportPupilNumbersbyYearG'!AA42,"n/a") -> 0 | W63: =IF($C63<>"n/a",'QRY - ExportPupilNumbersbyYearG'!AB42,"n/a") -> 0 | X63: =IF($C63<>"n/a",'QRY - ExportPupilNumbersbyYearG'!AC42,"n/a") -> 189 | Y63: =IF($C63<>"n/a",'QRY - ExportPupilNumbersbyYearG'!AD42,"n/a") -> 192 | Z63: =IF($C63<>"n/a",'QRY - ExportPupilNumbersbyYearG'!AE42,"n/a") -> 191 | AA63: =IF($C63<>"n/a",'QRY - ExportPupilNumbersbyYearG'!AF42,"n/a") -> 187 | AB63: =IF($C63<>"n/a",'QRY - ExportPupilNumbersbyYearG'!AG42,"n/a") -> 191 | AC63: =IF($C63<>"n/a",'QRY - ExportPupilNumbersbyYearG'!AH42,"n/a") -> 129 | AD63: =IF($C63<>"n/a",'QRY - ExportPupilNumbersbyYearG'!AI42,"n/a") -> 106 | AE63: =IF($C63<>"n/a",'QRY - ExportPupilNumbersbyYearG'!AJ42,"n/a") -> 0 | AF63: =IF($C63<>"n/a",'QRY - ExportPupilNumbersbyYearG'!AK42,"n/a") -> 0 | AG63: 1185 | AH63: 1185 | AI63: 0 | AJ63: 0 | AK63: 0 | AL63: 572 | AM63: 378 | AN63: 235
C64: =IF('QRY - ExportPupilNumbersbyYearG'!K43 ="","n/a",'QRY - ExportPupilNumbersbyYearG'!K43) -> Oakfield First School | D64: =IF($C64="n/a","",'QRY - ExportPupilNumbersbyYearG'!E43) -> Windsor | E64: =IF($C64="n/a","",'QRY - ExportPupilNumbersbyYearG'!F43) -> East Windsor | F64: =IF($C64="n/a","",'QRY - ExportPupilNumbersbyYearG'!G43) -> Oakfield | G64: =IF($C64="n/a","",'QRY - ExportPupilNumbersbyYearG'!I43) -> Primary | H64: =IF($C64="n/a","",'QRY - ExportPupilNumbersbyYearG'!H43) -> Three Tier | I64: =IF($C64="n/a","",'QRY - ExportPupilNumbersbyYearG'!J43) -> First | J64: =IF($C64="n/a","",'QRY - ExportPupilNumbersbyYearG'!L43) -> Community | K64: =IF('QRY - ExportPupilNumbersbyYearG'!Q43="","",'QRY - ExportPupilNumbersbyYearG'!Q43) ->  | L64: =IF($C64="n/a","",'QRY - ExportPupilNumbersbyYearG'!M43) -> None | M64: =IF($C64<>"n/a",'QRY - ExportPupilNumbersbyYearG'!R43,"n/a") -> 0 | N64: =IF($C64<>"n/a",'QRY - ExportPupilNumbersbyYearG'!S43,"n/a") -> 0 | O64: =IF($C64<>"n/a",'QRY - ExportPupilNumbersbyYearG'!T43,"n/a") -> 0 | P64: =IF($C64<>"n/a",'QRY - ExportPupilNumbersbyYearG'!U43,"n/a") -> 0 | Q64: =IF($C64<>"n/a",'QRY - ExportPupilNumbersbyYearG'!V43,"n/a") -> 59 | R64: =IF($C64<>"n/a",'QRY - ExportPupilNumbersbyYearG'!W43,"n/a") -> 56 | S64: =IF($C64<>"n/a",'QRY - ExportPupilNumbersbyYearG'!X43,"n/a") -> 60 | T64: =IF($C64<>"n/a",'QRY - ExportPupilNumbersbyYearG'!Y43,"n/a") -> 60 | U64: =IF($C64<>"n/a",'QRY - ExportPupilNumbersbyYearG'!Z43,"n/a") -> 54 | V64: =IF($C64<>"n/a",'QRY - ExportPupilNumbersbyYearG'!AA43,"n/a") -> 0 | W64: =IF($C64<>"n/a",'QRY - ExportPupilNumbersbyYearG'!AB43,"n/a") -> 0 | X64: =IF($C64<>"n/a",'QRY - ExportPupilNumbersbyYearG'!AC43,"n/a") -> 0 | Y64: =IF($C64<>"n/a",'QRY - ExportPupilNumbersbyYearG'!AD43,"n/a") -> 0 | Z64: =IF($C64<>"n/a",'QRY - ExportPupilNumbersbyYearG'!AE43,"n/a") -> 0 | AA64: =IF($C64<>"n/a",'QRY - ExportPupilNumbersbyYearG'!AF43,"n/a") -> 0 | AB64: =IF($C64<>"n/a",'QRY - ExportPupilNumbersbyYearG'!AG43,"n/a") -> 0 | AC64: =IF($C64<>"n/a",'QRY - ExportPupilNumbersbyYearG'!AH43,"n/a") -> 0 | AD64: =IF($C64<>"n/a",'QRY - ExportPupilNumbersbyYearG'!AI43,"n/a") -> 0 | AE64: =IF($C64<>"n/a",'QRY - ExportPupilNumbersbyYearG'!AJ43,"n/a") -> 0 | AF64: =IF($C64<>"n/a",'QRY - ExportPupilNumbersbyYearG'!AK43,"n/a") -> 0 | AG64: 289 | AH64: 289 | AI64: 59 | AJ64: 116 | AK64: 114 | AL64: 0 | AM64: 0 | AN64: 0
C65: =IF('QRY - ExportPupilNumbersbyYearG'!K44 ="","n/a",'QRY - ExportPupilNumbersbyYearG'!K44) -> Oldfield Primary School | D65: =IF($C65="n/a","",'QRY - ExportPupilNumbersbyYearG'!E44) -> Maidenhead | E65: =IF($C65="n/a","",'QRY - ExportPupilNumbersbyYearG'!F44) -> South East Maidenhead | F65: =IF($C65="n/a","",'QRY - ExportPupilNumbersbyYearG'!G44) -> Fishery | G65: =IF($C65="n/a","",'QRY - ExportPupilNumbersbyYearG'!I44) -> Primary | H65: =IF($C65="n/a","",'QRY - ExportPupilNumbersbyYearG'!H44) -> Two Tier | I65: =IF($C65="n/a","",'QRY - ExportPupilNumbersbyYearG'!J44) -> JMI | J65: =IF($C65="n/a","",'QRY - ExportPupilNumbersbyYearG'!L44) -> Community | K65: =IF('QRY - ExportPupilNumbersbyYearG'!Q44="","",'QRY - ExportPupilNumbersbyYearG'!Q44) ->  | L65: =IF($C65="n/a","",'QRY - ExportPupilNumbersbyYearG'!M44) -> None | M65: =IF($C65<>"n/a",'QRY - ExportPupilNumbersbyYearG'!R44,"n/a") -> 0 | N65: =IF($C65<>"n/a",'QRY - ExportPupilNumbersbyYearG'!S44,"n/a") -> 0 | O65: =IF($C65<>"n/a",'QRY - ExportPupilNumbersbyYearG'!T44,"n/a") -> 0 | P65: =IF($C65<>"n/a",'QRY - ExportPupilNumbersbyYearG'!U44,"n/a") -> 0 | Q65: =IF($C65<>"n/a",'QRY - ExportPupilNumbersbyYearG'!V44,"n/a") -> 60 | R65: =IF($C65<>"n/a",'QRY - ExportPupilNumbersbyYearG'!W44,"n/a") -> 60 | S65: =IF($C65<>"n/a",'QRY - ExportPupilNumbersbyYearG'!X44,"n/a") -> 60 | T65: =IF($C65<>"n/a",'QRY - ExportPupilNumbersbyYearG'!Y44,"n/a") -> 60 | U65: =IF($C65<>"n/a",'QRY - ExportPupilNumbersbyYearG'!Z44,"n/a") -> 60 | V65: =IF($C65<>"n/a",'QRY - ExportPupilNumbersbyYearG'!AA44,"n/a") -> 60 | W65: =IF($C65<>"n/a",'QRY - ExportPupilNumbersbyYearG'!AB44,"n/a") -> 62 | X65: =IF($C65<>"n/a",'QRY - ExportPupilNumbersbyYearG'!AC44,"n/a") -> 0 | Y65: =IF($C65<>"n/a",'QRY - ExportPupilNumbersbyYearG'!AD44,"n/a") -> 0 | Z65: =IF($C65<>"n/a",'QRY - ExportPupilNumbersbyYearG'!AE44,"n/a") -> 0 | AA65: =IF($C65<>"n/a",'QRY - ExportPupilNumbersbyYearG'!AF44,"n/a") -> 0 | AB65: =IF($C65<>"n/a",'QRY - ExportPupilNumbersbyYearG'!AG44,"n/a") -> 0 | AC65: =IF($C65<>"n/a",'QRY - ExportPupilNumbersbyYearG'!AH44,"n/a") -> 0 | AD65: =IF($C65<>"n/a",'QRY - ExportPupilNumbersbyYearG'!AI44,"n/a") -> 0 | AE65: =IF($C65<>"n/a",'QRY - ExportPupilNumbersbyYearG'!AJ44,"n/a") -> 0 | AF65: =IF($C65<>"n/a",'QRY - ExportPupilNumbersbyYearG'!AK44,"n/a") -> 0 | AG65: 422 | AH65: 422 | AI65: 60 | AJ65: 120 | AK65: 242 | AL65: 0 | AM65: 0 | AN65: 0
C66: =IF('QRY - ExportPupilNumbersbyYearG'!K45 ="","n/a",'QRY - ExportPupilNumbersbyYearG'!K45) -> RISE Alternative Learning Provision | D66: =IF($C66="n/a","",'QRY - ExportPupilNumbersbyYearG'!E45) -> Maidenhead | E66: =IF($C66="n/a","",'QRY - ExportPupilNumbersbyYearG'!F45) -> South East Maidenhead | F66: =IF($C66="n/a","",'QRY - ExportPupilNumbersbyYearG'!G45) -> Central | G66: =IF($C66="n/a","",'QRY - ExportPupilNumbersbyYearG'!I45) -> All-through | H66: =IF($C66="n/a","",'QRY - ExportPupilNumbersbyYearG'!H45) -> NA | I66: =IF($C66="n/a","",'QRY - ExportPupilNumbersbyYearG'!J45) -> All-through PRU | J66: =IF($C66="n/a","",'QRY - ExportPupilNumbersbyYearG'!L45) -> Community | K66: =IF('QRY - ExportPupilNumbersbyYearG'!Q45="","",'QRY - ExportPupilNumbersbyYearG'!Q45) ->  | L66: =IF($C66="n/a","",'QRY - ExportPupilNumbersbyYearG'!M45) -> None | M66: =IF($C66<>"n/a",'QRY - ExportPupilNumbersbyYearG'!R45,"n/a") -> 0 | N66: =IF($C66<>"n/a",'QRY - ExportPupilNumbersbyYearG'!S45,"n/a") -> 0 | O66: =IF($C66<>"n/a",'QRY - ExportPupilNumbersbyYearG'!T45,"n/a") -> 0 | P66: =IF($C66<>"n/a",'QRY - ExportPupilNumbersbyYearG'!U45,"n/a") -> 0 | Q66: =IF($C66<>"n/a",'QRY - ExportPupilNumbersbyYearG'!V45,"n/a") -> 0 | R66: =IF($C66<>"n/a",'QRY - ExportPupilNumbersbyYearG'!W45,"n/a") -> 0 | S66: =IF($C66<>"n/a",'QRY - ExportPupilNumbersbyYearG'!X45,"n/a") -> 1 | T66: =IF($C66<>"n/a",'QRY - ExportPupilNumbersbyYearG'!Y45,"n/a") -> 1 | U66: =IF($C66<>"n/a",'QRY - ExportPupilNumbersbyYearG'!Z45,"n/a") -> 0 | V66: =IF($C66<>"n/a",'QRY - ExportPupilNumbersbyYearG'!AA45,"n/a") -> 1 | W66: =IF($C66<>"n/a",'QRY - ExportPupilNumbersbyYearG'!AB45,"n/a") -> 0 | X66: =IF($C66<>"n/a",'QRY - ExportPupilNumbersbyYearG'!AC45,"n/a") -> 0 | Y66: =IF($C66<>"n/a",'QRY - ExportPupilNumbersbyYearG'!AD45,"n/a") -> 1 | Z66: =IF($C66<>"n/a",'QRY - ExportPupilNumbersbyYearG'!AE45,"n/a") -> 4 | AA66: =IF($C66<>"n/a",'QRY - ExportPupilNumbersbyYearG'!AF45,"n/a") -> 6 | AB66: =IF($C66<>"n/a",'QRY - ExportPupilNumbersbyYearG'!AG45,"n/a") -> 9 | AC66: =IF($C66<>"n/a",'QRY - ExportPupilNumbersbyYearG'!AH45,"n/a") -> 0 | AD66: =IF($C66<>"n/a",'QRY - ExportPupilNumbersbyYearG'!AI45,"n/a") -> 0 | AE66: =IF($C66<>"n/a",'QRY - ExportPupilNumbersbyYearG'!AJ45,"n/a") -> 0 | AF66: =IF($C66<>"n/a",'QRY - ExportPupilNumbersbyYearG'!AK45,"n/a") -> 0 | AG66: 23 | AH66: 23 | AI66: 0 | AJ66: 1 | AK66: 2 | AL66: 5 | AM66: 15 | AN66: 0
C67: =IF('QRY - ExportPupilNumbersbyYearG'!K46 ="","n/a",'QRY - ExportPupilNumbersbyYearG'!K46) -> Riverside Primary School and Nursery | D67: =IF($C67="n/a","",'QRY - ExportPupilNumbersbyYearG'!E46) -> Maidenhead | E67: =IF($C67="n/a","",'QRY - ExportPupilNumbersbyYearG'!F46) -> North East Maidenhead | F67: =IF($C67="n/a","",'QRY - ExportPupilNumbersbyYearG'!G46) -> North Town | G67: =IF($C67="n/a","",'QRY - ExportPupilNumbersbyYearG'!I46) -> Primary | H67: =IF($C67="n/a","",'QRY - ExportPupilNumbersbyYearG'!H46) -> Two Tier | I67: =IF($C67="n/a","",'QRY - ExportPupilNumbersbyYearG'!J46) -> JMI | J67: =IF($C67="n/a","",'QRY - ExportPupilNumbersbyYearG'!L46) -> Community | K67: =IF('QRY - ExportPupilNumbersbyYearG'!Q46="","",'QRY - ExportPupilNumbersbyYearG'!Q46) ->  | L67: =IF($C67="n/a","",'QRY - ExportPupilNumbersbyYearG'!M46) -> None | M67: =IF($C67<>"n/a",'QRY - ExportPupilNumbersbyYearG'!R46,"n/a") -> 0 | N67: =IF($C67<>"n/a",'QRY - ExportPupilNumbersbyYearG'!S46,"n/a") -> 0 | O67: =IF($C67<>"n/a",'QRY - ExportPupilNumbersbyYearG'!T46,"n/a") -> 21 | P67: =IF($C67<>"n/a",'QRY - ExportPupilNumbersbyYearG'!U46,"n/a") -> 28 | Q67: =IF($C67<>"n/a",'QRY - ExportPupilNumbersbyYearG'!V46,"n/a") -> 54 | R67: =IF($C67<>"n/a",'QRY - ExportPupilNumbersbyYearG'!W46,"n/a") -> 48 | S67: =IF($C67<>"n/a",'QRY - ExportPupilNumbersbyYearG'!X46,"n/a") -> 46 | T67: =IF($C67<>"n/a",'QRY - ExportPupilNumbersbyYearG'!Y46,"n/a") -> 57 | U67: =IF($C67<>"n/a",'QRY - ExportPupilNumbersbyYearG'!Z46,"n/a") -> 58 | V67: =IF($C67<>"n/a",'QRY - ExportPupilNumbersbyYearG'!AA46,"n/a") -> 47 | W67: =IF($C67<>"n/a",'QRY - ExportPupilNumbersbyYearG'!AB46,"n/a") -> 43 | X67: =IF($C67<>"n/a",'QRY - ExportPupilNumbersbyYearG'!AC46,"n/a") -> 0 | Y67: =IF($C67<>"n/a",'QRY - ExportPupilNumbersbyYearG'!AD46,"n/a") -> 0 | Z67: =IF($C67<>"n/a",'QRY - ExportPupilNumbersbyYearG'!AE46,"n/a") -> 0 | AA67: =IF($C67<>"n/a",'QRY - ExportPupilNumbersbyYearG'!AF46,"n/a") -> 0 | AB67: =IF($C67<>"n/a",'QRY - ExportPupilNumbersbyYearG'!AG46,"n/a") -> 0 | AC67: =IF($C67<>"n/a",'QRY - ExportPupilNumbersbyYearG'!AH46,"n/a") -> 0 | AD67: =IF($C67<>"n/a",'QRY - ExportPupilNumbersbyYearG'!AI46,"n/a") -> 0 | AE67: =IF($C67<>"n/a",'QRY - ExportPupilNumbersbyYearG'!AJ46,"n/a") -> 0 | AF67: =IF($C67<>"n/a",'QRY - ExportPupilNumbersbyYearG'!AK46,"n/a") -> 0 | AG67: 353 | AH67: 402 | AI67: 103 | AJ67: 94 | AK67: 205 | AL67: 0 | AM67: 0 | AN67: 0
C68: =IF('QRY - ExportPupilNumbersbyYearG'!K47 ="","n/a",'QRY - ExportPupilNumbersbyYearG'!K47) -> South Ascot Village Primary School | D68: =IF($C68="n/a","",'QRY - ExportPupilNumbersbyYearG'!E47) -> Ascot | E68: =IF($C68="n/a","",'QRY - ExportPupilNumbersbyYearG'!F47) -> Ascot | F68: =IF($C68="n/a","",'QRY - ExportPupilNumbersbyYearG'!G47) -> South Ascot | G68: =IF($C68="n/a","",'QRY - ExportPupilNumbersbyYearG'!I47) -> Primary | H68: =IF($C68="n/a","",'QRY - ExportPupilNumbersbyYearG'!H47) -> Two Tier | I68: =IF($C68="n/a","",'QRY - ExportPupilNumbersbyYearG'!J47) -> JMI | J68: =IF($C68="n/a","",'QRY - ExportPupilNumbersbyYearG'!L47) -> Community | K68: =IF('QRY - ExportPupilNumbersbyYearG'!Q47="","",'QRY - ExportPupilNumbersbyYearG'!Q47) ->  | L68: =IF($C68="n/a","",'QRY - ExportPupilNumbersbyYearG'!M47) -> None | M68: =IF($C68<>"n/a",'QRY - ExportPupilNumbersbyYearG'!R47,"n/a") -> 0 | N68: =IF($C68<>"n/a",'QRY - ExportPupilNumbersbyYearG'!S47,"n/a") -> 0 | O68: =IF($C68<>"n/a",'QRY - ExportPupilNumbersbyYearG'!T47,"n/a") -> 8 | P68: =IF($C68<>"n/a",'QRY - ExportPupilNumbersbyYearG'!U47,"n/a") -> 1 | Q68: =IF($C68<>"n/a",'QRY - ExportPupilNumbersbyYearG'!V47,"n/a") -> 19 | R68: =IF($C68<>"n/a",'QRY - ExportPupilNumbersbyYearG'!W47,"n/a") -> 19 | S68: =IF($C68<>"n/a",'QRY - ExportPupilNumbersbyYearG'!X47,"n/a") -> 27 | T68: =IF($C68<>"n/a",'QRY - ExportPupilNumbersbyYearG'!Y47,"n/a") -> 26 | U68: =IF($C68<>"n/a",'QRY - ExportPupilNumbersbyYearG'!Z47,"n/a") -> 29 | V68: =IF($C68<>"n/a",'QRY - ExportPupilNumbersbyYearG'!AA47,"n/a") -> 30 | W68: =IF($C68<>"n/a",'QRY - ExportPupilNumbersbyYearG'!AB47,"n/a") -> 30 | X68: =IF($C68<>"n/a",'QRY - ExportPupilNumbersbyYearG'!AC47,"n/a") -> 0 | Y68: =IF($C68<>"n/a",'QRY - ExportPupilNumbersbyYearG'!AD47,"n/a") -> 0 | Z68: =IF($C68<>"n/a",'QRY - ExportPupilNumbersbyYearG'!AE47,"n/a") -> 0 | AA68: =IF($C68<>"n/a",'QRY - ExportPupilNumbersbyYearG'!AF47,"n/a") -> 0 | AB68: =IF($C68<>"n/a",'QRY - ExportPupilNumbersbyYearG'!AG47,"n/a") -> 0 | AC68: =IF($C68<>"n/a",'QRY - ExportPupilNumbersbyYearG'!AH47,"n/a") -> 0 | AD68: =IF($C68<>"n/a",'QRY - ExportPupilNumbersbyYearG'!AI47,"n/a") -> 0 | AE68: =IF($C68<>"n/a",'QRY - ExportPupilNumbersbyYearG'!AJ47,"n/a") -> 0 | AF68: =IF($C68<>"n/a",'QRY - ExportPupilNumbersbyYearG'!AK47,"n/a") -> 0 | AG68: 180 | AH68: 189 | AI68: 28 | AJ68: 46 | AK68: 115 | AL68: 0 | AM68: 0 | AN68: 0
C69: =IF('QRY - ExportPupilNumbersbyYearG'!K48 ="","n/a",'QRY - ExportPupilNumbersbyYearG'!K48) -> St Edmund Campion Catholic Primary School | D69: =IF($C69="n/a","",'QRY - ExportPupilNumbersbyYearG'!E48) -> Maidenhead | E69: =IF($C69="n/a","",'QRY - ExportPupilNumbersbyYearG'!F48) -> Central Maidenhead | F69: =IF($C69="n/a","",'QRY - ExportPupilNumbersbyYearG'!G48) -> Tittle Row | G69: =IF($C69="n/a","",'QRY - ExportPupilNumbersbyYearG'!I48) -> Primary | H69: =IF($C69="n/a","",'QRY - ExportPupilNumbersbyYearG'!H48) -> Two Tier | I69: =IF($C69="n/a","",'QRY - ExportPupilNumbersbyYearG'!J48) -> JMI | J69: =IF($C69="n/a","",'QRY - ExportPupilNumbersbyYearG'!L48) -> Academy | K69: =IF('QRY - ExportPupilNumbersbyYearG'!Q48="","",'QRY - ExportPupilNumbersbyYearG'!Q48) -> 2017-07-01 | L69: =IF($C69="n/a","",'QRY - ExportPupilNumbersbyYearG'!M48) -> Roman Catholic | M69: =IF($C69<>"n/a",'QRY - ExportPupilNumbersbyYearG'!R48,"n/a") -> 0 | N69: =IF($C69<>"n/a",'QRY - ExportPupilNumbersbyYearG'!S48,"n/a") -> 0 | O69: =IF($C69<>"n/a",'QRY - ExportPupilNumbersbyYearG'!T48,"n/a") -> 0 | P69: =IF($C69<>"n/a",'QRY - ExportPupilNumbersbyYearG'!U48,"n/a") -> 0 | Q69: =IF($C69<>"n/a",'QRY - ExportPupilNumbersbyYearG'!V48,"n/a") -> 60 | R69: =IF($C69<>"n/a",'QRY - ExportPupilNumbersbyYearG'!W48,"n/a") -> 60 | S69: =IF($C69<>"n/a",'QRY - ExportPupilNumbersbyYearG'!X48,"n/a") -> 60 | T69: =IF($C69<>"n/a",'QRY - ExportPupilNumbersbyYearG'!Y48,"n/a") -> 60 | U69: =IF($C69<>"n/a",'QRY - ExportPupilNumbersbyYearG'!Z48,"n/a") -> 60 | V69: =IF($C69<>"n/a",'QRY - ExportPupilNumbersbyYearG'!AA48,"n/a") -> 60 | W69: =IF($C69<>"n/a",'QRY - ExportPupilNumbersbyYearG'!AB48,"n/a") -> 61 | X69: =IF($C69<>"n/a",'QRY - ExportPupilNumbersbyYearG'!AC48,"n/a") -> 0 | Y69: =IF($C69<>"n/a",'QRY - ExportPupilNumbersbyYearG'!AD48,"n/a") -> 0 | Z69: =IF($C69<>"n/a",'QRY - ExportPupilNumbersbyYearG'!AE48,"n/a") -> 0 | AA69: =IF($C69<>"n/a",'QRY - ExportPupilNumbersbyYearG'!AF48,"n/a") -> 0 | AB69: =IF($C69<>"n/a",'QRY - ExportPupilNumbersbyYearG'!AG48,"n/a") -> 0 | AC69: =IF($C69<>"n/a",'QRY - ExportPupilNumbersbyYearG'!AH48,"n/a") -> 0 | AD69: =IF($C69<>"n/a",'QRY - ExportPupilNumbersbyYearG'!AI48,"n/a") -> 0 | AE69: =IF($C69<>"n/a",'QRY - ExportPupilNumbersbyYearG'!AJ48,"n/a") -> 0 | AF69: =IF($C69<>"n/a",'QRY - ExportPupilNumbersbyYearG'!AK48,"n/a") -> 0 | AG69: 421 | AH69: 421 | AI69: 60 | AJ69: 120 | AK69: 241 | AL69: 0 | AM69: 0 | AN69: 0
C70: =IF('QRY - ExportPupilNumbersbyYearG'!K49 ="","n/a",'QRY - ExportPupilNumbersbyYearG'!K49) -> St Edward's Catholic First School | D70: =IF($C70="n/a","",'QRY - ExportPupilNumbersbyYearG'!E49) -> Windsor | E70: =IF($C70="n/a","",'QRY - ExportPupilNumbersbyYearG'!F49) -> Windsor North | F70: =IF($C70="n/a","",'QRY - ExportPupilNumbersbyYearG'!G49) -> Clewer Village | G70: =IF($C70="n/a","",'QRY - ExportPupilNumbersbyYearG'!I49) -> Primary | H70: =IF($C70="n/a","",'QRY - ExportPupilNumbersbyYearG'!H49) -> Three Tier | I70: =IF($C70="n/a","",'QRY - ExportPupilNumbersbyYearG'!J49) -> First | J70: =IF($C70="n/a","",'QRY - ExportPupilNumbersbyYearG'!L49) -> Voluntary Aided | K70: =IF('QRY - ExportPupilNumbersbyYearG'!Q49="","",'QRY - ExportPupilNumbersbyYearG'!Q49) ->  | L70: =IF($C70="n/a","",'QRY - ExportPupilNumbersbyYearG'!M49) -> Roman Catholic | M70: =IF($C70<>"n/a",'QRY - ExportPupilNumbersbyYearG'!R49,"n/a") -> 0 | N70: =IF($C70<>"n/a",'QRY - ExportPupilNumbersbyYearG'!S49,"n/a") -> 0 | O70: =IF($C70<>"n/a",'QRY - ExportPupilNumbersbyYearG'!T49,"n/a") -> 0 | P70: =IF($C70<>"n/a",'QRY - ExportPupilNumbersbyYearG'!U49,"n/a") -> 0 | Q70: =IF($C70<>"n/a",'QRY - ExportPupilNumbersbyYearG'!V49,"n/a") -> 60 | R70: =IF($C70<>"n/a",'QRY - ExportPupilNumbersbyYearG'!W49,"n/a") -> 56 | S70: =IF($C70<>"n/a",'QRY - ExportPupilNumbersbyYearG'!X49,"n/a") -> 61 | T70: =IF($C70<>"n/a",'QRY - ExportPupilNumbersbyYearG'!Y49,"n/a") -> 58 | U70: =IF($C70<>"n/a",'QRY - ExportPupilNumbersbyYearG'!Z49,"n/a") -> 60 | V70: =IF($C70<>"n/a",'QRY - ExportPupilNumbersbyYearG'!AA49,"n/a") -> 0 | W70: =IF($C70<>"n/a",'QRY - ExportPupilNumbersbyYearG'!AB49,"n/a") -> 0 | X70: =IF($C70<>"n/a",'QRY - ExportPupilNumbersbyYearG'!AC49,"n/a") -> 0 | Y70: =IF($C70<>"n/a",'QRY - ExportPupilNumbersbyYearG'!AD49,"n/a") -> 0 | Z70: =IF($C70<>"n/a",'QRY - ExportPupilNumbersbyYearG'!AE49,"n/a") -> 0 | AA70: =IF($C70<>"n/a",'QRY - ExportPupilNumbersbyYearG'!AF49,"n/a") -> 0 | AB70: =IF($C70<>"n/a",'QRY - ExportPupilNumbersbyYearG'!AG49,"n/a") -> 0 | AC70: =IF($C70<>"n/a",'QRY - ExportPupilNumbersbyYearG'!AH49,"n/a") -> 0 | AD70: =IF($C70<>"n/a",'QRY - ExportPupilNumbersbyYearG'!AI49,"n/a") -> 0 | AE70: =IF($C70<>"n/a",'QRY - ExportPupilNumbersbyYearG'!AJ49,"n/a") -> 0 | AF70: =IF($C70<>"n/a",'QRY - ExportPupilNumbersbyYearG'!AK49,"n/a") -> 0 | AG70: 295 | AH70: 295 | AI70: 60 | AJ70: 117 | AK70: 118 | AL70: 0 | AM70: 0 | AN70: 0
C71: =IF('QRY - ExportPupilNumbersbyYearG'!K50 ="","n/a",'QRY - ExportPupilNumbersbyYearG'!K50) -> St Edward's Royal Free Ecumenical Middle School | D71: =IF($C71="n/a","",'QRY - ExportPupilNumbersbyYearG'!E50) -> Windsor | E71: =IF($C71="n/a","",'QRY - ExportPupilNumbersbyYearG'!F50) -> Windsor North | F71: =IF($C71="n/a","",'QRY - ExportPupilNumbersbyYearG'!G50) -> Clewer Village | G71: =IF($C71="n/a","",'QRY - ExportPupilNumbersbyYearG'!I50) -> Secondary | H71: =IF($C71="n/a","",'QRY - ExportPupilNumbersbyYearG'!H50) -> Three Tier | I71: =IF($C71="n/a","",'QRY - ExportPupilNumbersbyYearG'!J50) -> Middle | J71: =IF($C71="n/a","",'QRY - ExportPupilNumbersbyYearG'!L50) -> Voluntary Aided | K71: =IF('QRY - ExportPupilNumbersbyYearG'!Q50="","",'QRY - ExportPupilNumbersbyYearG'!Q50) ->  | L71: =IF($C71="n/a","",'QRY - ExportPupilNumbersbyYearG'!M50) -> Ecumenical | M71: =IF($C71<>"n/a",'QRY - ExportPupilNumbersbyYearG'!R50,"n/a") -> 0 | N71: =IF($C71<>"n/a",'QRY - ExportPupilNumbersbyYearG'!S50,"n/a") -> 0 | O71: =IF($C71<>"n/a",'QRY - ExportPupilNumbersbyYearG'!T50,"n/a") -> 0 | P71: =IF($C71<>"n/a",'QRY - ExportPupilNumbersbyYearG'!U50,"n/a") -> 0 | Q71: =IF($C71<>"n/a",'QRY - ExportPupilNumbersbyYearG'!V50,"n/a") -> 0 | R71: =IF($C71<>"n/a",'QRY - ExportPupilNumbersbyYearG'!W50,"n/a") -> 0 | S71: =IF($C71<>"n/a",'QRY - ExportPupilNumbersbyYearG'!X50,"n/a") -> 0 | T71: =IF($C71<>"n/a",'QRY - ExportPupilNumbersbyYearG'!Y50,"n/a") -> 0 | U71: =IF($C71<>"n/a",'QRY - ExportPupilNumbersbyYearG'!Z50,"n/a") -> 0 | V71: =IF($C71<>"n/a",'QRY - ExportPupilNumbersbyYearG'!AA50,"n/a") -> 120 | W71: =IF($C71<>"n/a",'QRY - ExportPupilNumbersbyYearG'!AB50,"n/a") -> 120 | X71: =IF($C71<>"n/a",'QRY - ExportPupilNumbersbyYearG'!AC50,"n/a") -> 120 | Y71: =IF($C71<>"n/a",'QRY - ExportPupilNumbersbyYearG'!AD50,"n/a") -> 119 | Z71: =IF($C71<>"n/a",'QRY - ExportPupilNumbersbyYearG'!AE50,"n/a") -> 0 | AA71: =IF($C71<>"n/a",'QRY - ExportPupilNumbersbyYearG'!AF50,"n/a") -> 0 | AB71: =IF($C71<>"n/a",'QRY - ExportPupilNumbersbyYearG'!AG50,"n/a") -> 0 | AC71: =IF($C71<>"n/a",'QRY - ExportPupilNumbersbyYearG'!AH50,"n/a") -> 0 | AD71: =IF($C71<>"n/a",'QRY - ExportPupilNumbersbyYearG'!AI50,"n/a") -> 0 | AE71: =IF($C71<>"n/a",'QRY - ExportPupilNumbersbyYearG'!AJ50,"n/a") -> 0 | AF71: =IF($C71<>"n/a",'QRY - ExportPupilNumbersbyYearG'!AK50,"n/a") -> 0 | AG71: 479 | AH71: 479 | AI71: 0 | AJ71: 0 | AK71: 240 | AL71: 239 | AM71: 0 | AN71: 0
C72: =IF('QRY - ExportPupilNumbersbyYearG'!K51 ="","n/a",'QRY - ExportPupilNumbersbyYearG'!K51) -> St Francis Catholic Primary School | D72: =IF($C72="n/a","",'QRY - ExportPupilNumbersbyYearG'!E51) -> Ascot | E72: =IF($C72="n/a","",'QRY - ExportPupilNumbersbyYearG'!F51) -> Ascot | F72: =IF($C72="n/a","",'QRY - ExportPupilNumbersbyYearG'!G51) -> South Ascot | G72: =IF($C72="n/a","",'QRY - ExportPupilNumbersbyYearG'!I51) -> Primary | H72: =IF($C72="n/a","",'QRY - ExportPupilNumbersbyYearG'!H51) -> Two Tier | I72: =IF($C72="n/a","",'QRY - ExportPupilNumbersbyYearG'!J51) -> JMI | J72: =IF($C72="n/a","",'QRY - ExportPupilNumbersbyYearG'!L51) -> Academy | K72: =IF('QRY - ExportPupilNumbersbyYearG'!Q51="","",'QRY - ExportPupilNumbersbyYearG'!Q51) -> 2015-09-01 | L72: =IF($C72="n/a","",'QRY - ExportPupilNumbersbyYearG'!M51) -> Roman Catholic | M72: =IF($C72<>"n/a",'QRY - ExportPupilNumbersbyYearG'!R51,"n/a") -> 0 | N72: =IF($C72<>"n/a",'QRY - ExportPupilNumbersbyYearG'!S51,"n/a") -> 0 | O72: =IF($C72<>"n/a",'QRY - ExportPupilNumbersbyYearG'!T51,"n/a") -> 0 | P72: =IF($C72<>"n/a",'QRY - ExportPupilNumbersbyYearG'!U51,"n/a") -> 0 | Q72: =IF($C72<>"n/a",'QRY - ExportPupilNumbersbyYearG'!V51,"n/a") -> 30 | R72: =IF($C72<>"n/a",'QRY - ExportPupilNumbersbyYearG'!W51,"n/a") -> 30 | S72: =IF($C72<>"n/a",'QRY - ExportPupilNumbersbyYearG'!X51,"n/a") -> 30 | T72: =IF($C72<>"n/a",'QRY - ExportPupilNumbersbyYearG'!Y51,"n/a") -> 30 | U72: =IF($C72<>"n/a",'QRY - ExportPupilNumbersbyYearG'!Z51,"n/a") -> 30 | V72: =IF($C72<>"n/a",'QRY - ExportPupilNumbersbyYearG'!AA51,"n/a") -> 30 | W72: =IF($C72<>"n/a",'QRY - ExportPupilNumbersbyYearG'!AB51,"n/a") -> 29 | X72: =IF($C72<>"n/a",'QRY - ExportPupilNumbersbyYearG'!AC51,"n/a") -> 0 | Y72: =IF($C72<>"n/a",'QRY - ExportPupilNumbersbyYearG'!AD51,"n/a") -> 0 | Z72: =IF($C72<>"n/a",'QRY - ExportPupilNumbersbyYearG'!AE51,"n/a") -> 0 | AA72: =IF($C72<>"n/a",'QRY - ExportPupilNumbersbyYearG'!AF51,"n/a") -> 0 | AB72: =IF($C72<>"n/a",'QRY - ExportPupilNumbersbyYearG'!AG51,"n/a") -> 0 | AC72: =IF($C72<>"n/a",'QRY - ExportPupilNumbersbyYearG'!AH51,"n/a") -> 0 | AD72: =IF($C72<>"n/a",'QRY - ExportPupilNumbersbyYearG'!AI51,"n/a") -> 0 | AE72: =IF($C72<>"n/a",'QRY - ExportPupilNumbersbyYearG'!AJ51,"n/a") -> 0 | AF72: =IF($C72<>"n/a",'QRY - ExportPupilNumbersbyYearG'!AK51,"n/a") -> 0 | AG72: 209 | AH72: 209 | AI72: 30 | AJ72: 60 | AK72: 119 | AL72: 0 | AM72: 0 | AN72: 0
C73: =IF('QRY - ExportPupilNumbersbyYearG'!K52 ="","n/a",'QRY - ExportPupilNumbersbyYearG'!K52) -> St Luke's Church of England Primary School | D73: =IF($C73="n/a","",'QRY - ExportPupilNumbersbyYearG'!E52) -> Maidenhead | E73: =IF($C73="n/a","",'QRY - ExportPupilNumbersbyYearG'!F52) -> North East Maidenhead | F73: =IF($C73="n/a","",'QRY - ExportPupilNumbersbyYearG'!G52) -> St Luke's | G73: =IF($C73="n/a","",'QRY - ExportPupilNumbersbyYearG'!I52) -> Primary | H73: =IF($C73="n/a","",'QRY - ExportPupilNumbersbyYearG'!H52) -> Two Tier | I73: =IF($C73="n/a","",'QRY - ExportPupilNumbersbyYearG'!J52) -> JMI | J73: =IF($C73="n/a","",'QRY - ExportPupilNumbersbyYearG'!L52) -> Academy | K73: =IF('QRY - ExportPupilNumbersbyYearG'!Q52="","",'QRY - ExportPupilNumbersbyYearG'!Q52) -> 2014-12-01 | L73: =IF($C73="n/a","",'QRY - ExportPupilNumbersbyYearG'!M52) -> Church of England | M73: =IF($C73<>"n/a",'QRY - ExportPupilNumbersbyYearG'!R52,"n/a") -> 0 | N73: =IF($C73<>"n/a",'QRY - ExportPupilNumbersbyYearG'!S52,"n/a") -> 0 | O73: =IF($C73<>"n/a",'QRY - ExportPupilNumbersbyYearG'!T52,"n/a") -> 9 | P73: =IF($C73<>"n/a",'QRY - ExportPupilNumbersbyYearG'!U52,"n/a") -> 24 | Q73: =IF($C73<>"n/a",'QRY - ExportPupilNumbersbyYearG'!V52,"n/a") -> 44 | R73: =IF($C73<>"n/a",'QRY - ExportPupilNumbersbyYearG'!W52,"n/a") -> 45 | S73: =IF($C73<>"n/a",'QRY - ExportPupilNumbersbyYearG'!X52,"n/a") -> 45 | T73: =IF($C73<>"n/a",'QRY - ExportPupilNumbersbyYearG'!Y52,"n/a") -> 41 | U73: =IF($C73<>"n/a",'QRY - ExportPupilNumbersbyYearG'!Z52,"n/a") -> 37 | V73: =IF($C73<>"n/a",'QRY - ExportPupilNumbersbyYearG'!AA52,"n/a") -> 39 | W73: =IF($C73<>"n/a",'QRY - ExportPupilNumbersbyYearG'!AB52,"n/a") -> 37 | X73: =IF($C73<>"n/a",'QRY - ExportPupilNumbersbyYearG'!AC52,"n/a") -> 0 | Y73: =IF($C73<>"n/a",'QRY - ExportPupilNumbersbyYearG'!AD52,"n/a") -> 0 | Z73: =IF($C73<>"n/a",'QRY - ExportPupilNumbersbyYearG'!AE52,"n/a") -> 0 | AA73: =IF($C73<>"n/a",'QRY - ExportPupilNumbersbyYearG'!AF52,"n/a") -> 0 | AB73: =IF($C73<>"n/a",'QRY - ExportPupilNumbersbyYearG'!AG52,"n/a") -> 0 | AC73: =IF($C73<>"n/a",'QRY - ExportPupilNumbersbyYearG'!AH52,"n/a") -> 0 | AD73: =IF($C73<>"n/a",'QRY - ExportPupilNumbersbyYearG'!AI52,"n/a") -> 0 | AE73: =IF($C73<>"n/a",'QRY - ExportPupilNumbersbyYearG'!AJ52,"n/a") -> 0 | AF73: =IF($C73<>"n/a",'QRY - ExportPupilNumbersbyYearG'!AK52,"n/a") -> 0 | AG73: 288 | AH73: 321 | AI73: 77 | AJ73: 90 | AK73: 154 | AL73: 0 | AM73: 0 | AN73: 0
C74: =IF('QRY - ExportPupilNumbersbyYearG'!K53 ="","n/a",'QRY - ExportPupilNumbersbyYearG'!K53) -> St Mary's Catholic Primary School | D74: =IF($C74="n/a","",'QRY - ExportPupilNumbersbyYearG'!E53) -> Maidenhead | E74: =IF($C74="n/a","",'QRY - ExportPupilNumbersbyYearG'!F53) -> North East Maidenhead | F74: =IF($C74="n/a","",'QRY - ExportPupilNumbersbyYearG'!G53) -> St Luke's | G74: =IF($C74="n/a","",'QRY - ExportPupilNumbersbyYearG'!I53) -> Primary | H74: =IF($C74="n/a","",'QRY - ExportPupilNumbersbyYearG'!H53) -> Two Tier | I74: =IF($C74="n/a","",'QRY - ExportPupilNumbersbyYearG'!J53) -> JMI | J74: =IF($C74="n/a","",'QRY - ExportPupilNumbersbyYearG'!L53) -> Academy | K74: =IF('QRY - ExportPupilNumbersbyYearG'!Q53="","",'QRY - ExportPupilNumbersbyYearG'!Q53) -> 2013-07-01 | L74: =IF($C74="n/a","",'QRY - ExportPupilNumbersbyYearG'!M53) -> Roman Catholic | M74: =IF($C74<>"n/a",'QRY - ExportPupilNumbersbyYearG'!R53,"n/a") -> 0 | N74: =IF($C74<>"n/a",'QRY - ExportPupilNumbersbyYearG'!S53,"n/a") -> 0 | O74: =IF($C74<>"n/a",'QRY - ExportPupilNumbersbyYearG'!T53,"n/a") -> 0 | P74: =IF($C74<>"n/a",'QRY - ExportPupilNumbersbyYearG'!U53,"n/a") -> 0 | Q74: =IF($C74<>"n/a",'QRY - ExportPupilNumbersbyYearG'!V53,"n/a") -> 44 | R74: =IF($C74<>"n/a",'QRY - ExportPupilNumbersbyYearG'!W53,"n/a") -> 44 | S74: =IF($C74<>"n/a",'QRY - ExportPupilNumbersbyYearG'!X53,"n/a") -> 44 | T74: =IF($C74<>"n/a",'QRY - ExportPupilNumbersbyYearG'!Y53,"n/a") -> 44 | U74: =IF($C74<>"n/a",'QRY - ExportPupilNumbersbyYearG'!Z53,"n/a") -> 44 | V74: =IF($C74<>"n/a",'QRY - ExportPupilNumbersbyYearG'!AA53,"n/a") -> 38 | W74: =IF($C74<>"n/a",'QRY - ExportPupilNumbersbyYearG'!AB53,"n/a") -> 45 | X74: =IF($C74<>"n/a",'QRY - ExportPupilNumbersbyYearG'!AC53,"n/a") -> 0 | Y74: =IF($C74<>"n/a",'QRY - ExportPupilNumbersbyYearG'!AD53,"n/a") -> 0 | Z74: =IF($C74<>"n/a",'QRY - ExportPupilNumbersbyYearG'!AE53,"n/a") -> 0 | AA74: =IF($C74<>"n/a",'QRY - ExportPupilNumbersbyYearG'!AF53,"n/a") -> 0 | AB74: =IF($C74<>"n/a",'QRY - ExportPupilNumbersbyYearG'!AG53,"n/a") -> 0 | AC74: =IF($C74<>"n/a",'QRY - ExportPupilNumbersbyYearG'!AH53,"n/a") -> 0 | AD74: =IF($C74<>"n/a",'QRY - ExportPupilNumbersbyYearG'!AI53,"n/a") -> 0 | AE74: =IF($C74<>"n/a",'QRY - ExportPupilNumbersbyYearG'!AJ53,"n/a") -> 0 | AF74: =IF($C74<>"n/a",'QRY - ExportPupilNumbersbyYearG'!AK53,"n/a") -> 0 | AG74: 303 | AH74: 303 | AI74: 44 | AJ74: 88 | AK74: 171 | AL74: 0 | AM74: 0 | AN74: 0
C75: =IF('QRY - ExportPupilNumbersbyYearG'!K54 ="","n/a",'QRY - ExportPupilNumbersbyYearG'!K54) -> St Michael's C of E Primary School, Sunninghill | D75: =IF($C75="n/a","",'QRY - ExportPupilNumbersbyYearG'!E54) -> Ascot | E75: =IF($C75="n/a","",'QRY - ExportPupilNumbersbyYearG'!F54) -> Ascot | F75: =IF($C75="n/a","",'QRY - ExportPupilNumbersbyYearG'!G54) -> Sunninghill | G75: =IF($C75="n/a","",'QRY - ExportPupilNumbersbyYearG'!I54) -> Primary | H75: =IF($C75="n/a","",'QRY - ExportPupilNumbersbyYearG'!H54) -> Two Tier | I75: =IF($C75="n/a","",'QRY - ExportPupilNumbersbyYearG'!J54) -> JMI | J75: =IF($C75="n/a","",'QRY - ExportPupilNumbersbyYearG'!L54) -> Voluntary Controlled | K75: =IF('QRY - ExportPupilNumbersbyYearG'!Q54="","",'QRY - ExportPupilNumbersbyYearG'!Q54) ->  | L75: =IF($C75="n/a","",'QRY - ExportPupilNumbersbyYearG'!M54) -> Church of England | M75: =IF($C75<>"n/a",'QRY - ExportPupilNumbersbyYearG'!R54,"n/a") -> 0 | N75: =IF($C75<>"n/a",'QRY - ExportPupilNumbersbyYearG'!S54,"n/a") -> 0 | O75: =IF($C75<>"n/a",'QRY - ExportPupilNumbersbyYearG'!T54,"n/a") -> 0 | P75: =IF($C75<>"n/a",'QRY - ExportPupilNumbersbyYearG'!U54,"n/a") -> 0 | Q75: =IF($C75<>"n/a",'QRY - ExportPupilNumbersbyYearG'!V54,"n/a") -> 30 | R75: =IF($C75<>"n/a",'QRY - ExportPupilNumbersbyYearG'!W54,"n/a") -> 21 | S75: =IF($C75<>"n/a",'QRY - ExportPupilNumbersbyYearG'!X54,"n/a") -> 30 | T75: =IF($C75<>"n/a",'QRY - ExportPupilNumbersbyYearG'!Y54,"n/a") -> 30 | U75: =IF($C75<>"n/a",'QRY - ExportPupilNumbersbyYearG'!Z54,"n/a") -> 30 | V75: =IF($C75<>"n/a",'QRY - ExportPupilNumbersbyYearG'!AA54,"n/a") -> 30 | W75: =IF($C75<>"n/a",'QRY - ExportPupilNumbersbyYearG'!AB54,"n/a") -> 32 | X75: =IF($C75<>"n/a",'QRY - ExportPupilNumbersbyYearG'!AC54,"n/a") -> 0 | Y75: =IF($C75<>"n/a",'QRY - ExportPupilNumbersbyYearG'!AD54,"n/a") -> 0 | Z75: =IF($C75<>"n/a",'QRY - ExportPupilNumbersbyYearG'!AE54,"n/a") -> 0 | AA75: =IF($C75<>"n/a",'QRY - ExportPupilNumbersbyYearG'!AF54,"n/a") -> 0 | AB75: =IF($C75<>"n/a",'QRY - ExportPupilNumbersbyYearG'!AG54,"n/a") -> 0 | AC75: =IF($C75<>"n/a",'QRY - ExportPupilNumbersbyYearG'!AH54,"n/a") -> 0 | AD75: =IF($C75<>"n/a",'QRY - ExportPupilNumbersbyYearG'!AI54,"n/a") -> 0 | AE75: =IF($C75<>"n/a",'QRY - ExportPupilNumbersbyYearG'!AJ54,"n/a") -> 0 | AF75: =IF($C75<>"n/a",'QRY - ExportPupilNumbersbyYearG'!AK54,"n/a") -> 0 | AG75: 203 | AH75: 203 | AI75: 30 | AJ75: 51 | AK75: 122 | AL75: 0 | AM75: 0 | AN75: 0
C76: =IF('QRY - ExportPupilNumbersbyYearG'!K55 ="","n/a",'QRY - ExportPupilNumbersbyYearG'!K55) -> St Peter's Church of England Middle School | D76: =IF($C76="n/a","",'QRY - ExportPupilNumbersbyYearG'!E55) -> Windsor | E76: =IF($C76="n/a","",'QRY - ExportPupilNumbersbyYearG'!F55) -> Windsor Villages | F76: =IF($C76="n/a","",'QRY - ExportPupilNumbersbyYearG'!G55) -> Old Windsor | G76: =IF($C76="n/a","",'QRY - ExportPupilNumbersbyYearG'!I55) -> Secondary | H76: =IF($C76="n/a","",'QRY - ExportPupilNumbersbyYearG'!H55) -> Three Tier | I76: =IF($C76="n/a","",'QRY - ExportPupilNumbersbyYearG'!J55) -> Middle | J76: =IF($C76="n/a","",'QRY - ExportPupilNumbersbyYearG'!L55) -> Academy | K76: =IF('QRY - ExportPupilNumbersbyYearG'!Q55="","",'QRY - ExportPupilNumbersbyYearG'!Q55) -> 2014-11-01 | L76: =IF($C76="n/a","",'QRY - ExportPupilNumbersbyYearG'!M55) -> Church of England | M76: =IF($C76<>"n/a",'QRY - ExportPupilNumbersbyYearG'!R55,"n/a") -> 0 | N76: =IF($C76<>"n/a",'QRY - ExportPupilNumbersbyYearG'!S55,"n/a") -> 0 | O76: =IF($C76<>"n/a",'QRY - ExportPupilNumbersbyYearG'!T55,"n/a") -> 0 | P76: =IF($C76<>"n/a",'QRY - ExportPupilNumbersbyYearG'!U55,"n/a") -> 0 | Q76: =IF($C76<>"n/a",'QRY - ExportPupilNumbersbyYearG'!V55,"n/a") -> 0 | R76: =IF($C76<>"n/a",'QRY - ExportPupilNumbersbyYearG'!W55,"n/a") -> 0 | S76: =IF($C76<>"n/a",'QRY - ExportPupilNumbersbyYearG'!X55,"n/a") -> 0 | T76: =IF($C76<>"n/a",'QRY - ExportPupilNumbersbyYearG'!Y55,"n/a") -> 0 | U76: =IF($C76<>"n/a",'QRY - ExportPupilNumbersbyYearG'!Z55,"n/a") -> 0 | V76: =IF($C76<>"n/a",'QRY - ExportPupilNumbersbyYearG'!AA55,"n/a") -> 77 | W76: =IF($C76<>"n/a",'QRY - ExportPupilNumbersbyYearG'!AB55,"n/a") -> 74 | X76: =IF($C76<>"n/a",'QRY - ExportPupilNumbersbyYearG'!AC55,"n/a") -> 61 | Y76: =IF($C76<>"n/a",'QRY - ExportPupilNumbersbyYearG'!AD55,"n/a") -> 57 | Z76: =IF($C76<>"n/a",'QRY - ExportPupilNumbersbyYearG'!AE55,"n/a") -> 0 | AA76: =IF($C76<>"n/a",'QRY - ExportPupilNumbersbyYearG'!AF55,"n/a") -> 0 | AB76: =IF($C76<>"n/a",'QRY - ExportPupilNumbersbyYearG'!AG55,"n/a") -> 0 | AC76: =IF($C76<>"n/a",'QRY - ExportPupilNumbersbyYearG'!AH55,"n/a") -> 0 | AD76: =IF($C76<>"n/a",'QRY - ExportPupilNumbersbyYearG'!AI55,"n/a") -> 0 | AE76: =IF($C76<>"n/a",'QRY - ExportPupilNumbersbyYearG'!AJ55,"n/a") -> 0 | AF76: =IF($C76<>"n/a",'QRY - ExportPupilNumbersbyYearG'!AK55,"n/a") -> 0 | AG76: 269 | AH76: 269 | AI76: 0 | AJ76: 0 | AK76: 151 | AL76: 118 | AM76: 0 | AN76: 0
C77: =IF('QRY - ExportPupilNumbersbyYearG'!K56 ="","n/a",'QRY - ExportPupilNumbersbyYearG'!K56) -> The Lawns Nursery | D77: =IF($C77="n/a","",'QRY - ExportPupilNumbersbyYearG'!E56) -> Windsor | E77: =IF($C77="n/a","",'QRY - ExportPupilNumbersbyYearG'!F56) -> East Windsor | F77: =IF($C77="n/a","",'QRY - ExportPupilNumbersbyYearG'!G56) -> Oakfield | G77: =IF($C77="n/a","",'QRY - ExportPupilNumbersbyYearG'!I56) -> Early Years | H77: =IF($C77="n/a","",'QRY - ExportPupilNumbersbyYearG'!H56) -> NA | I77: =IF($C77="n/a","",'QRY - ExportPupilNumbersbyYearG'!J56) -> Nursery School | J77: =IF($C77="n/a","",'QRY - ExportPupilNumbersbyYearG'!L56) -> Community | K77: =IF('QRY - ExportPupilNumbersbyYearG'!Q56="","",'QRY - ExportPupilNumbersbyYearG'!Q56) ->  | L77: =IF($C77="n/a","",'QRY - ExportPupilNumbersbyYearG'!M56) -> None | M77: =IF($C77<>"n/a",'QRY - ExportPupilNumbersbyYearG'!R56,"n/a") -> 0 | N77: =IF($C77<>"n/a",'QRY - ExportPupilNumbersbyYearG'!S56,"n/a") -> 6 | O77: =IF($C77<>"n/a",'QRY - ExportPupilNumbersbyYearG'!T56,"n/a") -> 57 | P77: =IF($C77<>"n/a",'QRY - ExportPupilNumbersbyYearG'!U56,"n/a") -> 67 | Q77: =IF($C77<>"n/a",'QRY - ExportPupilNumbersbyYearG'!V56,"n/a") -> 0 | R77: =IF($C77<>"n/a",'QRY - ExportPupilNumbersbyYearG'!W56,"n/a") -> 0 | S77: =IF($C77<>"n/a",'QRY - ExportPupilNumbersbyYearG'!X56,"n/a") -> 0 | T77: =IF($C77<>"n/a",'QRY - ExportPupilNumbersbyYearG'!Y56,"n/a") -> 0 | U77: =IF($C77<>"n/a",'QRY - ExportPupilNumbersbyYearG'!Z56,"n/a") -> 0 | V77: =IF($C77<>"n/a",'QRY - ExportPupilNumbersbyYearG'!AA56,"n/a") -> 0 | W77: =IF($C77<>"n/a",'QRY - ExportPupilNumbersbyYearG'!AB56,"n/a") -> 0 | X77: =IF($C77<>"n/a",'QRY - ExportPupilNumbersbyYearG'!AC56,"n/a") -> 0 | Y77: =IF($C77<>"n/a",'QRY - ExportPupilNumbersbyYearG'!AD56,"n/a") -> 0 | Z77: =IF($C77<>"n/a",'QRY - ExportPupilNumbersbyYearG'!AE56,"n/a") -> 0 | AA77: =IF($C77<>"n/a",'QRY - ExportPupilNumbersbyYearG'!AF56,"n/a") -> 0 | AB77: =IF($C77<>"n/a",'QRY - ExportPupilNumbersbyYearG'!AG56,"n/a") -> 0 | AC77: =IF($C77<>"n/a",'QRY - ExportPupilNumbersbyYearG'!AH56,"n/a") -> 0 | AD77: =IF($C77<>"n/a",'QRY - ExportPupilNumbersbyYearG'!AI56,"n/a") -> 0 | AE77: =IF($C77<>"n/a",'QRY - ExportPupilNumbersbyYearG'!AJ56,"n/a") -> 0 | AF77: =IF($C77<>"n/a",'QRY - ExportPupilNumbersbyYearG'!AK56,"n/a") -> 0 | AG77: 0 | AH77: 130 | AI77: 130 | AJ77: 0 | AK77: 0 | AL77: 0 | AM77: 0 | AN77: 0
C78: =IF('QRY - ExportPupilNumbersbyYearG'!K57 ="","n/a",'QRY - ExportPupilNumbersbyYearG'!K57) -> The Queen Anne Royal Free CE First School | D78: =IF($C78="n/a","",'QRY - ExportPupilNumbersbyYearG'!E57) -> Windsor | E78: =IF($C78="n/a","",'QRY - ExportPupilNumbersbyYearG'!F57) -> East Windsor | F78: =IF($C78="n/a","",'QRY - ExportPupilNumbersbyYearG'!G57) -> Home Park | G78: =IF($C78="n/a","",'QRY - ExportPupilNumbersbyYearG'!I57) -> Primary | H78: =IF($C78="n/a","",'QRY - ExportPupilNumbersbyYearG'!H57) -> Three Tier | I78: =IF($C78="n/a","",'QRY - ExportPupilNumbersbyYearG'!J57) -> First | J78: =IF($C78="n/a","",'QRY - ExportPupilNumbersbyYearG'!L57) -> Voluntary Controlled | K78: =IF('QRY - ExportPupilNumbersbyYearG'!Q57="","",'QRY - ExportPupilNumbersbyYearG'!Q57) ->  | L78: =IF($C78="n/a","",'QRY - ExportPupilNumbersbyYearG'!M57) -> Church of England | M78: =IF($C78<>"n/a",'QRY - ExportPupilNumbersbyYearG'!R57,"n/a") -> 0 | N78: =IF($C78<>"n/a",'QRY - ExportPupilNumbersbyYearG'!S57,"n/a") -> 0 | O78: =IF($C78<>"n/a",'QRY - ExportPupilNumbersbyYearG'!T57,"n/a") -> 0 | P78: =IF($C78<>"n/a",'QRY - ExportPupilNumbersbyYearG'!U57,"n/a") -> 0 | Q78: =IF($C78<>"n/a",'QRY - ExportPupilNumbersbyYearG'!V57,"n/a") -> 29 | R78: =IF($C78<>"n/a",'QRY - ExportPupilNumbersbyYearG'!W57,"n/a") -> 29 | S78: =IF($C78<>"n/a",'QRY - ExportPupilNumbersbyYearG'!X57,"n/a") -> 30 | T78: =IF($C78<>"n/a",'QRY - ExportPupilNumbersbyYearG'!Y57,"n/a") -> 27 | U78: =IF($C78<>"n/a",'QRY - ExportPupilNumbersbyYearG'!Z57,"n/a") -> 27 | V78: =IF($C78<>"n/a",'QRY - ExportPupilNumbersbyYearG'!AA57,"n/a") -> 0 | W78: =IF($C78<>"n/a",'QRY - ExportPupilNumbersbyYearG'!AB57,"n/a") -> 0 | X78: =IF($C78<>"n/a",'QRY - ExportPupilNumbersbyYearG'!AC57,"n/a") -> 0 | Y78: =IF($C78<>"n/a",'QRY - ExportPupilNumbersbyYearG'!AD57,"n/a") -> 0 | Z78: =IF($C78<>"n/a",'QRY - ExportPupilNumbersbyYearG'!AE57,"n/a") -> 0 | AA78: =IF($C78<>"n/a",'QRY - ExportPupilNumbersbyYearG'!AF57,"n/a") -> 0 | AB78: =IF($C78<>"n/a",'QRY - ExportPupilNumbersbyYearG'!AG57,"n/a") -> 0 | AC78: =IF($C78<>"n/a",'QRY - ExportPupilNumbersbyYearG'!AH57,"n/a") -> 0 | AD78: =IF($C78<>"n/a",'QRY - ExportPupilNumbersbyYearG'!AI57,"n/a") -> 0 | AE78: =IF($C78<>"n/a",'QRY - ExportPupilNumbersbyYearG'!AJ57,"n/a") -> 0 | AF78: =IF($C78<>"n/a",'QRY - ExportPupilNumbersbyYearG'!AK57,"n/a") -> 0 | AG78: 142 | AH78: 142 | AI78: 29 | AJ78: 59 | AK78: 54 | AL78: 0 | AM78: 0 | AN78: 0
C79: =IF('QRY - ExportPupilNumbersbyYearG'!K58 ="","n/a",'QRY - ExportPupilNumbersbyYearG'!K58) -> The Royal School (Crown Aided) | D79: =IF($C79="n/a","",'QRY - ExportPupilNumbersbyYearG'!E58) -> Windsor | E79: =IF($C79="n/a","",'QRY - ExportPupilNumbersbyYearG'!F58) -> Windsor Villages | F79: =IF($C79="n/a","",'QRY - ExportPupilNumbersbyYearG'!G58) -> Great Park | G79: =IF($C79="n/a","",'QRY - ExportPupilNumbersbyYearG'!I58) -> Primary | H79: =IF($C79="n/a","",'QRY - ExportPupilNumbersbyYearG'!H58) -> Three Tier | I79: =IF($C79="n/a","",'QRY - ExportPupilNumbersbyYearG'!J58) -> First | J79: =IF($C79="n/a","",'QRY - ExportPupilNumbersbyYearG'!L58) -> Voluntary Aided | K79: =IF('QRY - ExportPupilNumbersbyYearG'!Q58="","",'QRY - ExportPupilNumbersbyYearG'!Q58) ->  | L79: =IF($C79="n/a","",'QRY - ExportPupilNumbersbyYearG'!M58) -> Church of England | M79: =IF($C79<>"n/a",'QRY - ExportPupilNumbersbyYearG'!R58,"n/a") -> 0 | N79: =IF($C79<>"n/a",'QRY - ExportPupilNumbersbyYearG'!S58,"n/a") -> 0 | O79: =IF($C79<>"n/a",'QRY - ExportPupilNumbersbyYearG'!T58,"n/a") -> 0 | P79: =IF($C79<>"n/a",'QRY - ExportPupilNumbersbyYearG'!U58,"n/a") -> 0 | Q79: =IF($C79<>"n/a",'QRY - ExportPupilNumbersbyYearG'!V58,"n/a") -> 20 | R79: =IF($C79<>"n/a",'QRY - ExportPupilNumbersbyYearG'!W58,"n/a") -> 22 | S79: =IF($C79<>"n/a",'QRY - ExportPupilNumbersbyYearG'!X58,"n/a") -> 21 | T79: =IF($C79<>"n/a",'QRY - ExportPupilNumbersbyYearG'!Y58,"n/a") -> 15 | U79: =IF($C79<>"n/a",'QRY - ExportPupilNumbersbyYearG'!Z58,"n/a") -> 22 | V79: =IF($C79<>"n/a",'QRY - ExportPupilNumbersbyYearG'!AA58,"n/a") -> 0 | W79: =IF($C79<>"n/a",'QRY - ExportPupilNumbersbyYearG'!AB58,"n/a") -> 0 | X79: =IF($C79<>"n/a",'QRY - ExportPupilNumbersbyYearG'!AC58,"n/a") -> 0 | Y79: =IF($C79<>"n/a",'QRY - ExportPupilNumbersbyYearG'!AD58,"n/a") -> 0 | Z79: =IF($C79<>"n/a",'QRY - ExportPupilNumbersbyYearG'!AE58,"n/a") -> 0 | AA79: =IF($C79<>"n/a",'QRY - ExportPupilNumbersbyYearG'!AF58,"n/a") -> 0 | AB79: =IF($C79<>"n/a",'QRY - ExportPupilNumbersbyYearG'!AG58,"n/a") -> 0 | AC79: =IF($C79<>"n/a",'QRY - ExportPupilNumbersbyYearG'!AH58,"n/a") -> 0 | AD79: =IF($C79<>"n/a",'QRY - ExportPupilNumbersbyYearG'!AI58,"n/a") -> 0 | AE79: =IF($C79<>"n/a",'QRY - ExportPupilNumbersbyYearG'!AJ58,"n/a") -> 0 | AF79: =IF($C79<>"n/a",'QRY - ExportPupilNumbersbyYearG'!AK58,"n/a") -> 0 | AG79: 100 | AH79: 100 | AI79: 20 | AJ79: 43 | AK79: 37 | AL79: 0 | AM79: 0 | AN79: 0
C80: =IF('QRY - ExportPupilNumbersbyYearG'!K59 ="","n/a",'QRY - ExportPupilNumbersbyYearG'!K59) -> The Windsor Boys' School | D80: =IF($C80="n/a","",'QRY - ExportPupilNumbersbyYearG'!E59) -> Windsor | E80: =IF($C80="n/a","",'QRY - ExportPupilNumbersbyYearG'!F59) -> East Windsor | F80: =IF($C80="n/a","",'QRY - ExportPupilNumbersbyYearG'!G59) -> Trinity | G80: =IF($C80="n/a","",'QRY - ExportPupilNumbersbyYearG'!I59) -> Secondary | H80: =IF($C80="n/a","",'QRY - ExportPupilNumbersbyYearG'!H59) -> Three Tier | I80: =IF($C80="n/a","",'QRY - ExportPupilNumbersbyYearG'!J59) -> Upper | J80: =IF($C80="n/a","",'QRY - ExportPupilNumbersbyYearG'!L59) -> Academy | K80: =IF('QRY - ExportPupilNumbersbyYearG'!Q59="","",'QRY - ExportPupilNumbersbyYearG'!Q59) -> 2015-03-01 | L80: =IF($C80="n/a","",'QRY - ExportPupilNumbersbyYearG'!M59) -> None | M80: =IF($C80<>"n/a",'QRY - ExportPupilNumbersbyYearG'!R59,"n/a") -> 0 | N80: =IF($C80<>"n/a",'QRY - ExportPupilNumbersbyYearG'!S59,"n/a") -> 0 | O80: =IF($C80<>"n/a",'QRY - ExportPupilNumbersbyYearG'!T59,"n/a") -> 0 | P80: =IF($C80<>"n/a",'QRY - ExportPupilNumbersbyYearG'!U59,"n/a") -> 0 | Q80: =IF($C80<>"n/a",'QRY - ExportPupilNumbersbyYearG'!V59,"n/a") -> 0 | R80: =IF($C80<>"n/a",'QRY - ExportPupilNumbersbyYearG'!W59,"n/a") -> 0 | S80: =IF($C80<>"n/a",'QRY - ExportPupilNumbersbyYearG'!X59,"n/a") -> 0 | T80: =IF($C80<>"n/a",'QRY - ExportPupilNumbersbyYearG'!Y59,"n/a") -> 0 | U80: =IF($C80<>"n/a",'QRY - ExportPupilNumbersbyYearG'!Z59,"n/a") -> 0 | V80: =IF($C80<>"n/a",'QRY - ExportPupilNumbersbyYearG'!AA59,"n/a") -> 0 | W80: =IF($C80<>"n/a",'QRY - ExportPupilNumbersbyYearG'!AB59,"n/a") -> 0 | X80: =IF($C80<>"n/a",'QRY - ExportPupilNumbersbyYearG'!AC59,"n/a") -> 0 | Y80: =IF($C80<>"n/a",'QRY - ExportPupilNumbersbyYearG'!AD59,"n/a") -> 0 | Z80: =IF($C80<>"n/a",'QRY - ExportPupilNumbersbyYearG'!AE59,"n/a") -> 229 | AA80: =IF($C80<>"n/a",'QRY - ExportPupilNumbersbyYearG'!AF59,"n/a") -> 222 | AB80: =IF($C80<>"n/a",'QRY - ExportPupilNumbersbyYearG'!AG59,"n/a") -> 218 | AC80: =IF($C80<>"n/a",'QRY - ExportPupilNumbersbyYearG'!AH59,"n/a") -> 114 | AD80: =IF($C80<>"n/a",'QRY - ExportPupilNumbersbyYearG'!AI59,"n/a") -> 105 | AE80: =IF($C80<>"n/a",'QRY - ExportPupilNumbersbyYearG'!AJ59,"n/a") -> 0 | AF80: =IF($C80<>"n/a",'QRY - ExportPupilNumbersbyYearG'!AK59,"n/a") -> 0 | AG80: 888 | AH80: 888 | AI80: 0 | AJ80: 0 | AK80: 0 | AL80: 229 | AM80: 440 | AN80: 219
C81: =IF('QRY - ExportPupilNumbersbyYearG'!K60 ="","n/a",'QRY - ExportPupilNumbersbyYearG'!K60) -> Trevelyan Middle School | D81: =IF($C81="n/a","",'QRY - ExportPupilNumbersbyYearG'!E60) -> Windsor | E81: =IF($C81="n/a","",'QRY - ExportPupilNumbersbyYearG'!F60) -> East Windsor | F81: =IF($C81="n/a","",'QRY - ExportPupilNumbersbyYearG'!G60) -> Home Park | G81: =IF($C81="n/a","",'QRY - ExportPupilNumbersbyYearG'!I60) -> Secondary | H81: =IF($C81="n/a","",'QRY - ExportPupilNumbersbyYearG'!H60) -> Three Tier | I81: =IF($C81="n/a","",'QRY - ExportPupilNumbersbyYearG'!J60) -> Middle | J81: =IF($C81="n/a","",'QRY - ExportPupilNumbersbyYearG'!L60) -> Academy | K81: =IF('QRY - ExportPupilNumbersbyYearG'!Q60="","",'QRY - ExportPupilNumbersbyYearG'!Q60) -> 2016-11-01 | L81: =IF($C81="n/a","",'QRY - ExportPupilNumbersbyYearG'!M60) -> None | M81: =IF($C81<>"n/a",'QRY - ExportPupilNumbersbyYearG'!R60,"n/a") -> 0 | N81: =IF($C81<>"n/a",'QRY - ExportPupilNumbersbyYearG'!S60,"n/a") -> 0 | O81: =IF($C81<>"n/a",'QRY - ExportPupilNumbersbyYearG'!T60,"n/a") -> 0 | P81: =IF($C81<>"n/a",'QRY - ExportPupilNumbersbyYearG'!U60,"n/a") -> 0 | Q81: =IF($C81<>"n/a",'QRY - ExportPupilNumbersbyYearG'!V60,"n/a") -> 0 | R81: =IF($C81<>"n/a",'QRY - ExportPupilNumbersbyYearG'!W60,"n/a") -> 0 | S81: =IF($C81<>"n/a",'QRY - ExportPupilNumbersbyYearG'!X60,"n/a") -> 0 | T81: =IF($C81<>"n/a",'QRY - ExportPupilNumbersbyYearG'!Y60,"n/a") -> 0 | U81: =IF($C81<>"n/a",'QRY - ExportPupilNumbersbyYearG'!Z60,"n/a") -> 0 | V81: =IF($C81<>"n/a",'QRY - ExportPupilNumbersbyYearG'!AA60,"n/a") -> 148 | W81: =IF($C81<>"n/a",'QRY - ExportPupilNumbersbyYearG'!AB60,"n/a") -> 150 | X81: =IF($C81<>"n/a",'QRY - ExportPupilNumbersbyYearG'!AC60,"n/a") -> 149 | Y81: =IF($C81<>"n/a",'QRY - ExportPupilNumbersbyYearG'!AD60,"n/a") -> 147 | Z81: =IF($C81<>"n/a",'QRY - ExportPupilNumbersbyYearG'!AE60,"n/a") -> 0 | AA81: =IF($C81<>"n/a",'QRY - ExportPupilNumbersbyYearG'!AF60,"n/a") -> 0 | AB81: =IF($C81<>"n/a",'QRY - ExportPupilNumbersbyYearG'!AG60,"n/a") -> 0 | AC81: =IF($C81<>"n/a",'QRY - ExportPupilNumbersbyYearG'!AH60,"n/a") -> 0 | AD81: =IF($C81<>"n/a",'QRY - ExportPupilNumbersbyYearG'!AI60,"n/a") -> 0 | AE81: =IF($C81<>"n/a",'QRY - ExportPupilNumbersbyYearG'!AJ60,"n/a") -> 0 | AF81: =IF($C81<>"n/a",'QRY - ExportPupilNumbersbyYearG'!AK60,"n/a") -> 0 | AG81: 594 | AH81: 594 | AI81: 0 | AJ81: 0 | AK81: 298 | AL81: 296 | AM81: 0 | AN81: 0
C82: =IF('QRY - ExportPupilNumbersbyYearG'!K61 ="","n/a",'QRY - ExportPupilNumbersbyYearG'!K61) -> Trinity St Stephen Church of England First School | D82: =IF($C82="n/a","",'QRY - ExportPupilNumbersbyYearG'!E61) -> Windsor | E82: =IF($C82="n/a","",'QRY - ExportPupilNumbersbyYearG'!F61) -> East Windsor | F82: =IF($C82="n/a","",'QRY - ExportPupilNumbersbyYearG'!G61) -> Trinity | G82: =IF($C82="n/a","",'QRY - ExportPupilNumbersbyYearG'!I61) -> Primary | H82: =IF($C82="n/a","",'QRY - ExportPupilNumbersbyYearG'!H61) -> Three Tier | I82: =IF($C82="n/a","",'QRY - ExportPupilNumbersbyYearG'!J61) -> First | J82: =IF($C82="n/a","",'QRY - ExportPupilNumbersbyYearG'!L61) -> Voluntary Aided | K82: =IF('QRY - ExportPupilNumbersbyYearG'!Q61="","",'QRY - ExportPupilNumbersbyYearG'!Q61) ->  | L82: =IF($C82="n/a","",'QRY - ExportPupilNumbersbyYearG'!M61) -> Church of England | M82: =IF($C82<>"n/a",'QRY - ExportPupilNumbersbyYearG'!R61,"n/a") -> 0 | N82: =IF($C82<>"n/a",'QRY - ExportPupilNumbersbyYearG'!S61,"n/a") -> 0 | O82: =IF($C82<>"n/a",'QRY - ExportPupilNumbersbyYearG'!T61,"n/a") -> 0 | P82: =IF($C82<>"n/a",'QRY - ExportPupilNumbersbyYearG'!U61,"n/a") -> 0 | Q82: =IF($C82<>"n/a",'QRY - ExportPupilNumbersbyYearG'!V61,"n/a") -> 27 | R82: =IF($C82<>"n/a",'QRY - ExportPupilNumbersbyYearG'!W61,"n/a") -> 29 | S82: =IF($C82<>"n/a",'QRY - ExportPupilNumbersbyYearG'!X61,"n/a") -> 28 | T82: =IF($C82<>"n/a",'QRY - ExportPupilNumbersbyYearG'!Y61,"n/a") -> 30 | U82: =IF($C82<>"n/a",'QRY - ExportPupilNumbersbyYearG'!Z61,"n/a") -> 27 | V82: =IF($C82<>"n/a",'QRY - ExportPupilNumbersbyYearG'!AA61,"n/a") -> 0 | W82: =IF($C82<>"n/a",'QRY - ExportPupilNumbersbyYearG'!AB61,"n/a") -> 0 | X82: =IF($C82<>"n/a",'QRY - ExportPupilNumbersbyYearG'!AC61,"n/a") -> 0 | Y82: =IF($C82<>"n/a",'QRY - ExportPupilNumbersbyYearG'!AD61,"n/a") -> 0 | Z82: =IF($C82<>"n/a",'QRY - ExportPupilNumbersbyYearG'!AE61,"n/a") -> 0 | AA82: =IF($C82<>"n/a",'QRY - ExportPupilNumbersbyYearG'!AF61,"n/a") -> 0 | AB82: =IF($C82<>"n/a",'QRY - ExportPupilNumbersbyYearG'!AG61,"n/a") -> 0 | AC82: =IF($C82<>"n/a",'QRY - ExportPupilNumbersbyYearG'!AH61,"n/a") -> 0 | AD82: =IF($C82<>"n/a",'QRY - ExportPupilNumbersbyYearG'!AI61,"n/a") -> 0 | AE82: =IF($C82<>"n/a",'QRY - ExportPupilNumbersbyYearG'!AJ61,"n/a") -> 0 | AF82: =IF($C82<>"n/a",'QRY - ExportPupilNumbersbyYearG'!AK61,"n/a") -> 0 | AG82: 141 | AH82: 141 | AI82: 27 | AJ82: 57 | AK82: 57 | AL82: 0 | AM82: 0 | AN82: 0
C83: =IF('QRY - ExportPupilNumbersbyYearG'!K62 ="","n/a",'QRY - ExportPupilNumbersbyYearG'!K62) -> Waltham St Lawrence Primary School | D83: =IF($C83="n/a","",'QRY - ExportPupilNumbersbyYearG'!E62) -> Maidenhead | E83: =IF($C83="n/a","",'QRY - ExportPupilNumbersbyYearG'!F62) -> Maidenhead Villages | F83: =IF($C83="n/a","",'QRY - ExportPupilNumbersbyYearG'!G62) -> Waltham St Lawrence | G83: =IF($C83="n/a","",'QRY - ExportPupilNumbersbyYearG'!I62) -> Primary | H83: =IF($C83="n/a","",'QRY - ExportPupilNumbersbyYearG'!H62) -> Two Tier | I83: =IF($C83="n/a","",'QRY - ExportPupilNumbersbyYearG'!J62) -> JMI | J83: =IF($C83="n/a","",'QRY - ExportPupilNumbersbyYearG'!L62) -> Community | K83: =IF('QRY - ExportPupilNumbersbyYearG'!Q62="","",'QRY - ExportPupilNumbersbyYearG'!Q62) ->  | L83: =IF($C83="n/a","",'QRY - ExportPupilNumbersbyYearG'!M62) -> None | M83: =IF($C83<>"n/a",'QRY - ExportPupilNumbersbyYearG'!R62,"n/a") -> 0 | N83: =IF($C83<>"n/a",'QRY - ExportPupilNumbersbyYearG'!S62,"n/a") -> 0 | O83: =IF($C83<>"n/a",'QRY - ExportPupilNumbersbyYearG'!T62,"n/a") -> 0 | P83: =IF($C83<>"n/a",'QRY - ExportPupilNumbersbyYearG'!U62,"n/a") -> 0 | Q83: =IF($C83<>"n/a",'QRY - ExportPupilNumbersbyYearG'!V62,"n/a") -> 22 | R83: =IF($C83<>"n/a",'QRY - ExportPupilNumbersbyYearG'!W62,"n/a") -> 22 | S83: =IF($C83<>"n/a",'QRY - ExportPupilNumbersbyYearG'!X62,"n/a") -> 22 | T83: =IF($C83<>"n/a",'QRY - ExportPupilNumbersbyYearG'!Y62,"n/a") -> 20 | U83: =IF($C83<>"n/a",'QRY - ExportPupilNumbersbyYearG'!Z62,"n/a") -> 18 | V83: =IF($C83<>"n/a",'QRY - ExportPupilNumbersbyYearG'!AA62,"n/a") -> 20 | W83: =IF($C83<>"n/a",'QRY - ExportPupilNumbersbyYearG'!AB62,"n/a") -> 16 | X83: =IF($C83<>"n/a",'QRY - ExportPupilNumbersbyYearG'!AC62,"n/a") -> 0 | Y83: =IF($C83<>"n/a",'QRY - ExportPupilNumbersbyYearG'!AD62,"n/a") -> 0 | Z83: =IF($C83<>"n/a",'QRY - ExportPupilNumbersbyYearG'!AE62,"n/a") -> 0 | AA83: =IF($C83<>"n/a",'QRY - ExportPupilNumbersbyYearG'!AF62,"n/a") -> 0 | AB83: =IF($C83<>"n/a",'QRY - ExportPupilNumbersbyYearG'!AG62,"n/a") -> 0 | AC83: =IF($C83<>"n/a",'QRY - ExportPupilNumbersbyYearG'!AH62,"n/a") -> 0 | AD83: =IF($C83<>"n/a",'QRY - ExportPupilNumbersbyYearG'!AI62,"n/a") -> 0 | AE83: =IF($C83<>"n/a",'QRY - ExportPupilNumbersbyYearG'!AJ62,"n/a") -> 0 | AF83: =IF($C83<>"n/a",'QRY - ExportPupilNumbersbyYearG'!AK62,"n/a") -> 0 | AG83: 140 | AH83: 140 | AI83: 22 | AJ83: 44 | AK83: 74 | AL83: 0 | AM83: 0 | AN83: 0
C84: =IF('QRY - ExportPupilNumbersbyYearG'!K63 ="","n/a",'QRY - ExportPupilNumbersbyYearG'!K63) -> Wessex Primary School | D84: =IF($C84="n/a","",'QRY - ExportPupilNumbersbyYearG'!E63) -> Maidenhead | E84: =IF($C84="n/a","",'QRY - ExportPupilNumbersbyYearG'!F63) -> South West Maidenhead | F84: =IF($C84="n/a","",'QRY - ExportPupilNumbersbyYearG'!G63) -> Wessex West | G84: =IF($C84="n/a","",'QRY - ExportPupilNumbersbyYearG'!I63) -> Primary | H84: =IF($C84="n/a","",'QRY - ExportPupilNumbersbyYearG'!H63) -> Two Tier | I84: =IF($C84="n/a","",'QRY - ExportPupilNumbersbyYearG'!J63) -> JMI | J84: =IF($C84="n/a","",'QRY - ExportPupilNumbersbyYearG'!L63) -> Community | K84: =IF('QRY - ExportPupilNumbersbyYearG'!Q63="","",'QRY - ExportPupilNumbersbyYearG'!Q63) ->  | L84: =IF($C84="n/a","",'QRY - ExportPupilNumbersbyYearG'!M63) -> None | M84: =IF($C84<>"n/a",'QRY - ExportPupilNumbersbyYearG'!R63,"n/a") -> 0 | N84: =IF($C84<>"n/a",'QRY - ExportPupilNumbersbyYearG'!S63,"n/a") -> 0 | O84: =IF($C84<>"n/a",'QRY - ExportPupilNumbersbyYearG'!T63,"n/a") -> 6 | P84: =IF($C84<>"n/a",'QRY - ExportPupilNumbersbyYearG'!U63,"n/a") -> 22 | Q84: =IF($C84<>"n/a",'QRY - ExportPupilNumbersbyYearG'!V63,"n/a") -> 45 | R84: =IF($C84<>"n/a",'QRY - ExportPupilNumbersbyYearG'!W63,"n/a") -> 55 | S84: =IF($C84<>"n/a",'QRY - ExportPupilNumbersbyYearG'!X63,"n/a") -> 58 | T84: =IF($C84<>"n/a",'QRY - ExportPupilNumbersbyYearG'!Y63,"n/a") -> 60 | U84: =IF($C84<>"n/a",'QRY - ExportPupilNumbersbyYearG'!Z63,"n/a") -> 59 | V84: =IF($C84<>"n/a",'QRY - ExportPupilNumbersbyYearG'!AA63,"n/a") -> 58 | W84: =IF($C84<>"n/a",'QRY - ExportPupilNumbersbyYearG'!AB63,"n/a") -> 63 | X84: =IF($C84<>"n/a",'QRY - ExportPupilNumbersbyYearG'!AC63,"n/a") -> 0 | Y84: =IF($C84<>"n/a",'QRY - ExportPupilNumbersbyYearG'!AD63,"n/a") -> 0 | Z84: =IF($C84<>"n/a",'QRY - ExportPupilNumbersbyYearG'!AE63,"n/a") -> 0 | AA84: =IF($C84<>"n/a",'QRY - ExportPupilNumbersbyYearG'!AF63,"n/a") -> 0 | AB84: =IF($C84<>"n/a",'QRY - ExportPupilNumbersbyYearG'!AG63,"n/a") -> 0 | AC84: =IF($C84<>"n/a",'QRY - ExportPupilNumbersbyYearG'!AH63,"n/a") -> 0 | AD84: =IF($C84<>"n/a",'QRY - ExportPupilNumbersbyYearG'!AI63,"n/a") -> 0 | AE84: =IF($C84<>"n/a",'QRY - ExportPupilNumbersbyYearG'!AJ63,"n/a") -> 0 | AF84: =IF($C84<>"n/a",'QRY - ExportPupilNumbersbyYearG'!AK63,"n/a") -> 0 | AG84: 398 | AH84: 426 | AI84: 73 | AJ84: 113 | AK84: 240 | AL84: 0 | AM84: 0 | AN84: 0
C85: =IF('QRY - ExportPupilNumbersbyYearG'!K64 ="","n/a",'QRY - ExportPupilNumbersbyYearG'!K64) -> White Waltham C of E Academy | D85: =IF($C85="n/a","",'QRY - ExportPupilNumbersbyYearG'!E64) -> Maidenhead | E85: =IF($C85="n/a","",'QRY - ExportPupilNumbersbyYearG'!F64) -> Maidenhead Villages | F85: =IF($C85="n/a","",'QRY - ExportPupilNumbersbyYearG'!G64) -> White Waltham | G85: =IF($C85="n/a","",'QRY - ExportPupilNumbersbyYearG'!I64) -> Primary | H85: =IF($C85="n/a","",'QRY - ExportPupilNumbersbyYearG'!H64) -> Two Tier | I85: =IF($C85="n/a","",'QRY - ExportPupilNumbersbyYearG'!J64) -> JMI | J85: =IF($C85="n/a","",'QRY - ExportPupilNumbersbyYearG'!L64) -> Academy | K85: =IF('QRY - ExportPupilNumbersbyYearG'!Q64="","",'QRY - ExportPupilNumbersbyYearG'!Q64) -> 2012-09-01 | L85: =IF($C85="n/a","",'QRY - ExportPupilNumbersbyYearG'!M64) -> Church of England | M85: =IF($C85<>"n/a",'QRY - ExportPupilNumbersbyYearG'!R64,"n/a") -> 0 | N85: =IF($C85<>"n/a",'QRY - ExportPupilNumbersbyYearG'!S64,"n/a") -> 0 | O85: =IF($C85<>"n/a",'QRY - ExportPupilNumbersbyYearG'!T64,"n/a") -> 0 | P85: =IF($C85<>"n/a",'QRY - ExportPupilNumbersbyYearG'!U64,"n/a") -> 0 | Q85: =IF($C85<>"n/a",'QRY - ExportPupilNumbersbyYearG'!V64,"n/a") -> 30 | R85: =IF($C85<>"n/a",'QRY - ExportPupilNumbersbyYearG'!W64,"n/a") -> 30 | S85: =IF($C85<>"n/a",'QRY - ExportPupilNumbersbyYearG'!X64,"n/a") -> 30 | T85: =IF($C85<>"n/a",'QRY - ExportPupilNumbersbyYearG'!Y64,"n/a") -> 29 | U85: =IF($C85<>"n/a",'QRY - ExportPupilNumbersbyYearG'!Z64,"n/a") -> 30 | V85: =IF($C85<>"n/a",'QRY - ExportPupilNumbersbyYearG'!AA64,"n/a") -> 31 | W85: =IF($C85<>"n/a",'QRY - ExportPupilNumbersbyYearG'!AB64,"n/a") -> 29 | X85: =IF($C85<>"n/a",'QRY - ExportPupilNumbersbyYearG'!AC64,"n/a") -> 0 | Y85: =IF($C85<>"n/a",'QRY - ExportPupilNumbersbyYearG'!AD64,"n/a") -> 0 | Z85: =IF($C85<>"n/a",'QRY - ExportPupilNumbersbyYearG'!AE64,"n/a") -> 0 | AA85: =IF($C85<>"n/a",'QRY - ExportPupilNumbersbyYearG'!AF64,"n/a") -> 0 | AB85: =IF($C85<>"n/a",'QRY - ExportPupilNumbersbyYearG'!AG64,"n/a") -> 0 | AC85: =IF($C85<>"n/a",'QRY - ExportPupilNumbersbyYearG'!AH64,"n/a") -> 0 | AD85: =IF($C85<>"n/a",'QRY - ExportPupilNumbersbyYearG'!AI64,"n/a") -> 0 | AE85: =IF($C85<>"n/a",'QRY - ExportPupilNumbersbyYearG'!AJ64,"n/a") -> 0 | AF85: =IF($C85<>"n/a",'QRY - ExportPupilNumbersbyYearG'!AK64,"n/a") -> 0 | AG85: 209 | AH85: 209 | AI85: 30 | AJ85: 60 | AK85: 119 | AL85: 0 | AM85: 0 | AN85: 0
C86: =IF('QRY - ExportPupilNumbersbyYearG'!K65 ="","n/a",'QRY - ExportPupilNumbersbyYearG'!K65) -> Windsor Girls' School | D86: =IF($C86="n/a","",'QRY - ExportPupilNumbersbyYearG'!E65) -> Windsor | E86: =IF($C86="n/a","",'QRY - ExportPupilNumbersbyYearG'!F65) -> Windsor South | F86: =IF($C86="n/a","",'QRY - ExportPupilNumbersbyYearG'!G65) -> New Town | G86: =IF($C86="n/a","",'QRY - ExportPupilNumbersbyYearG'!I65) -> Secondary | H86: =IF($C86="n/a","",'QRY - ExportPupilNumbersbyYearG'!H65) -> Three Tier | I86: =IF($C86="n/a","",'QRY - ExportPupilNumbersbyYearG'!J65) -> Upper | J86: =IF($C86="n/a","",'QRY - ExportPupilNumbersbyYearG'!L65) -> Academy | K86: =IF('QRY - ExportPupilNumbersbyYearG'!Q65="","",'QRY - ExportPupilNumbersbyYearG'!Q65) -> 2015-03-01 | L86: =IF($C86="n/a","",'QRY - ExportPupilNumbersbyYearG'!M65) -> None | M86: =IF($C86<>"n/a",'QRY - ExportPupilNumbersbyYearG'!R65,"n/a") -> 0 | N86: =IF($C86<>"n/a",'QRY - ExportPupilNumbersbyYearG'!S65,"n/a") -> 0 | O86: =IF($C86<>"n/a",'QRY - ExportPupilNumbersbyYearG'!T65,"n/a") -> 0 | P86: =IF($C86<>"n/a",'QRY - ExportPupilNumbersbyYearG'!U65,"n/a") -> 0 | Q86: =IF($C86<>"n/a",'QRY - ExportPupilNumbersbyYearG'!V65,"n/a") -> 0 | R86: =IF($C86<>"n/a",'QRY - ExportPupilNumbersbyYearG'!W65,"n/a") -> 0 | S86: =IF($C86<>"n/a",'QRY - ExportPupilNumbersbyYearG'!X65,"n/a") -> 0 | T86: =IF($C86<>"n/a",'QRY - ExportPupilNumbersbyYearG'!Y65,"n/a") -> 0 | U86: =IF($C86<>"n/a",'QRY - ExportPupilNumbersbyYearG'!Z65,"n/a") -> 0 | V86: =IF($C86<>"n/a",'QRY - ExportPupilNumbersbyYearG'!AA65,"n/a") -> 0 | W86: =IF($C86<>"n/a",'QRY - ExportPupilNumbersbyYearG'!AB65,"n/a") -> 0 | X86: =IF($C86<>"n/a",'QRY - ExportPupilNumbersbyYearG'!AC65,"n/a") -> 0 | Y86: =IF($C86<>"n/a",'QRY - ExportPupilNumbersbyYearG'!AD65,"n/a") -> 0 | Z86: =IF($C86<>"n/a",'QRY - ExportPupilNumbersbyYearG'!AE65,"n/a") -> 198 | AA86: =IF($C86<>"n/a",'QRY - ExportPupilNumbersbyYearG'!AF65,"n/a") -> 188 | AB86: =IF($C86<>"n/a",'QRY - ExportPupilNumbersbyYearG'!AG65,"n/a") -> 178 | AC86: =IF($C86<>"n/a",'QRY - ExportPupilNumbersbyYearG'!AH65,"n/a") -> 85 | AD86: =IF($C86<>"n/a",'QRY - ExportPupilNumbersbyYearG'!AI65,"n/a") -> 126 | AE86: =IF($C86<>"n/a",'QRY - ExportPupilNumbersbyYearG'!AJ65,"n/a") -> 0 | AF86: =IF($C86<>"n/a",'QRY - ExportPupilNumbersbyYearG'!AK65,"n/a") -> 0 | AG86: =IF($C86<>"n/a",SUM(Q86:AF86),"n/a") -> 775 | AH86: =IF($C86<>"n/a",SUM(M86:AF86),"n/a") -> 775 | AI86: =IF(C86<>"n/a",SUM(M86:Q86),"n/a") -> 0 | AJ86: =IF(C86<>"n/a",SUM(R86:S86),"n/a") -> 0 | AK86: =IF(C86<>"n/a",SUM(T86:W86),"n/a") -> 0 | AL86: =IF(C86<>"n/a",SUM(X86:Z86),"n/a") -> 198 | AM86: =IF(C86<>"n/a",SUM(AA86:AB86),"n/a") -> 366 | AN86: =IF(C86<>"n/a",SUM(AC86:AF86),"n/a") -> 211
C87: =IF('QRY - ExportPupilNumbersbyYearG'!K66 ="","n/a",'QRY - ExportPupilNumbersbyYearG'!K66) -> Woodlands Park Primary & Nursery School | D87: =IF($C87="n/a","",'QRY - ExportPupilNumbersbyYearG'!E66) -> Maidenhead | E87: =IF($C87="n/a","",'QRY - ExportPupilNumbersbyYearG'!F66) -> South West Maidenhead | F87: =IF($C87="n/a","",'QRY - ExportPupilNumbersbyYearG'!G66) -> Woodlands Park | G87: =IF($C87="n/a","",'QRY - ExportPupilNumbersbyYearG'!I66) -> Primary | H87: =IF($C87="n/a","",'QRY - ExportPupilNumbersbyYearG'!H66) -> Two Tier | I87: =IF($C87="n/a","",'QRY - ExportPupilNumbersbyYearG'!J66) -> JMI | J87: =IF($C87="n/a","",'QRY - ExportPupilNumbersbyYearG'!L66) -> Community | K87: =IF('QRY - ExportPupilNumbersbyYearG'!Q66="","",'QRY - ExportPupilNumbersbyYearG'!Q66) ->  | L87: =IF($C87="n/a","",'QRY - ExportPupilNumbersbyYearG'!M66) -> None | M87: =IF($C87<>"n/a",'QRY - ExportPupilNumbersbyYearG'!R66,"n/a") -> 0 | N87: =IF($C87<>"n/a",'QRY - ExportPupilNumbersbyYearG'!S66,"n/a") -> 0 | O87: =IF($C87<>"n/a",'QRY - ExportPupilNumbersbyYearG'!T66,"n/a") -> 1 | P87: =IF($C87<>"n/a",'QRY - ExportPupilNumbersbyYearG'!U66,"n/a") -> 13 | Q87: =IF($C87<>"n/a",'QRY - ExportPupilNumbersbyYearG'!V66,"n/a") -> 26 | R87: =IF($C87<>"n/a",'QRY - ExportPupilNumbersbyYearG'!W66,"n/a") -> 26 | S87: =IF($C87<>"n/a",'QRY - ExportPupilNumbersbyYearG'!X66,"n/a") -> 15 | T87: =IF($C87<>"n/a",'QRY - ExportPupilNumbersbyYearG'!Y66,"n/a") -> 20 | U87: =IF($C87<>"n/a",'QRY - ExportPupilNumbersbyYearG'!Z66,"n/a") -> 29 | V87: =IF($C87<>"n/a",'QRY - ExportPupilNumbersbyYearG'!AA66,"n/a") -> 10 | W87: =IF($C87<>"n/a",'QRY - ExportPupilNumbersbyYearG'!AB66,"n/a") -> 21 | X87: =IF($C87<>"n/a",'QRY - ExportPupilNumbersbyYearG'!AC66,"n/a") -> 0 | Y87: =IF($C87<>"n/a",'QRY - ExportPupilNumbersbyYearG'!AD66,"n/a") -> 0 | Z87: =IF($C87<>"n/a",'QRY - ExportPupilNumbersbyYearG'!AE66,"n/a") -> 0 | AA87: =IF($C87<>"n/a",'QRY - ExportPupilNumbersbyYearG'!AF66,"n/a") -> 0 | AB87: =IF($C87<>"n/a",'QRY - ExportPupilNumbersbyYearG'!AG66,"n/a") -> 0 | AC87: =IF($C87<>"n/a",'QRY - ExportPupilNumbersbyYearG'!AH66,"n/a") -> 0 | AD87: =IF($C87<>"n/a",'QRY - ExportPupilNumbersbyYearG'!AI66,"n/a") -> 0 | AE87: =IF($C87<>"n/a",'QRY - ExportPupilNumbersbyYearG'!AJ66,"n/a") -> 0 | AF87: =IF($C87<>"n/a",'QRY - ExportPupilNumbersbyYearG'!AK66,"n/a") -> 0 | AG87: 147 | AH87: 161 | AI87: 40 | AJ87: 41 | AK87: 80 | AL87: 0 | AM87: 0 | AN87: 0
C89: =IF(SUBTOTAL(3,C23:C87)<COUNTIF(C23:C87,"<>n/a"),SUBTOTAL(3,C23:C87) & " schools",COUNTIF(C23:C87,"<>n/a") &" schools") -> 65 schools | M89: =SUBTOTAL(9,M23:M87) -> 1 | N89: 7 | O89: 201 | P89: 456 | Q89: 1562 | R89: 1545 | S89: 1550 | T89: 1561 | U89: 1642 | V89: 1572 | W89: 1626 | X89: 1856 | Y89: 1828 | Z89: 1754 | AA89: 1670 | AB89: 1595 | AC89: 983 | AD89: 941 | AE89: 20 | AF89: 0 | AG89: 21705 | AH89: 22370 | AI89: 2227 | AJ89: 3095 | AK89: 6401 | AL89: 5438 | AM89: 3265 | AN89: 1944
